Workbook

Sheet Control
A1: Sheets | B1: Text File Names | C1: Description | E1: Notes: 50 sheets maximum
A2: Inf | B2: Infiltration.txt | C2: Percolation into and through the tailings | E2: Referenced text files must be in same root folder as this spreadsheet

Sheet PlotControl
A2: Model Name: | B2: Plant Site Version 6.0
C4: =B2 & " Model " & "Annual Percolation Statistics into the " & B8 -> Plant Site Version 6.0 Model Annual Percolation Statistics into the East Dam
C5: =B2 & " Model Monthly Percolation Statistics into the " & B8 -> Plant Site Version 6.0 Model Monthly Percolation Statistics into the East Dam
A8: Location to Plot (dropdown): | B8: East Dam | C8: =MATCH(B8,$A$15:$A$22,0) -> 4
A10: Initial Time for Monthly Plot (yr): | B10: 0
B11: =B10+20 -> 20
A12: Standard | B12: =VLOOKUP($B$6,$A$25:$B$52,2,FALSE) -> 
A14: Locations
A15: North Beach
A16: North Dam
A17: East Beach
A18: East Dam
A19: South Beach
A20: South Dam
A21: Closure Beach
I23: Annual Project Results | S23: Monthly Project Results
H24: Time | I24: P10 | J24: P50 | K24: P90 | L24: Mean | R24: Time | S24: P10 | T24: P50 | U24: P90 | V24: Mean
H25: 0 | I25: =IF(OR(LEFT($B$8,1)="E",LEFT($B$8,1)="S",LEFT($B$8,1)="C"),#N/A,SUM(OFFSET(Inf!$A$10,$H25*12,4*($C$8-1)+2,12,1))) ->  | J25: =IF(OR(LEFT($B$8,1)="E",LEFT($B$8,1)="S",LEFT($B$8,1)="C"),#N/A,SUM(OFFSET(Inf!$A$10,$H25*12,4*($C$8-1)+3,12,1))) ->  | K25: =IF(OR(LEFT($B$8,1)="E",LEFT($B$8,1)="S",LEFT($B$8,1)="C"),#N/A,SUM(OFFSET(Inf!$A$10,$H25*12,4*($C$8-1)+4,12,1))) ->  | L25: =IF(OR(LEFT($B$8,1)="E",LEFT($B$8,1)="S",LEFT($B$8,1)="C"),#N/A,SUM(OFFSET(Inf!$A$10,$H25*12,4*($C$8-1)+1,12,1))) ->  | R25: =B10 -> 0 | S25: =IF(OR(LEFT($B$8,1)="E",LEFT($B$8,1)="S",LEFT($B$8,1)="C"),#N/A,VLOOKUP($R25,Inf!$A$10:$AG$2410,4*($C$8-1)+3)) ->  | T25: =IF(OR(LEFT($B$8,1)="E",LEFT($B$8,1)="S",LEFT($B$8,1)="C"),#N/A,VLOOKUP($R25,Inf!$A$10:$AG$2410,4*($C$8-1)+4)) ->  | U25: =IF(OR(LEFT($B$8,1)="E",LEFT($B$8,1)="S",LEFT($B$8,1)="C"),#N/A,VLOOKUP($R25,Inf!$A$10:$AG$2410,4*($C$8-1)+5)) ->  | V25: =IF(OR(LEFT($B$8,1)="E",LEFT($B$8,1)="S",LEFT($B$8,1)="C"),#N/A,VLOOKUP($R25,Inf!$A$10:$AG$2410,4*($C$8-1)+2)) -> 
H26: 1 | I26: =IF(OR(LEFT($B$8,1)="E",LEFT($B$8,1)="S",LEFT($B$8,1)="C"),#N/A,SUM(OFFSET(Inf!$A$10,$H26*12,4*($C$8-1)+2,12,1))) ->  | J26: =IF(OR(LEFT($B$8,1)="E",LEFT($B$8,1)="S",LEFT($B$8,1)="C"),#N/A,SUM(OFFSET(Inf!$A$10,$H26*12,4*($C$8-1)+3,12,1))) ->  | K26: =IF(OR(LEFT($B$8,1)="E",LEFT($B$8,1)="S",LEFT($B$8,1)="C"),#N/A,SUM(OFFSET(Inf!$A$10,$H26*12,4*($C$8-1)+4,12,1))) ->  | L26: =IF(OR(LEFT($B$8,1)="E",LEFT($B$8,1)="S",LEFT($B$8,1)="C"),#N/A,SUM(OFFSET(Inf!$A$10,$H26*12,4*($C$8-1)+1,12,1))) ->  | R26: =R25+1/12 -> 0.08333333333 | S26: =IF(OR(LEFT($B$8,1)="E",LEFT($B$8,1)="S",LEFT($B$8,1)="C"),#N/A,VLOOKUP($R26,Inf!$A$10:$AG$2410,4*($C$8-1)+3)) ->  | T26: =IF(OR(LEFT($B$8,1)="E",LEFT($B$8,1)="S",LEFT($B$8,1)="C"),#N/A,VLOOKUP($R26,Inf!$A$10:$AG$2410,4*($C$8-1)+4)) ->  | U26: =IF(OR(LEFT($B$8,1)="E",LEFT($B$8,1)="S",LEFT($B$8,1)="C"),#N/A,VLOOKUP($R26,Inf!$A$10:$AG$2410,4*($C$8-1)+5)) ->  | V26: =IF(OR(LEFT($B$8,1)="E",LEFT($B$8,1)="S",LEFT($B$8,1)="C"),#N/A,VLOOKUP($R26,Inf!$A$10:$AG$2410,4*($C$8-1)+2)) -> 
H27: 2 | I27: =IF(OR(LEFT($B$8,1)="E",LEFT($B$8,1)="S",LEFT($B$8,1)="C"),#N/A,SUM(OFFSET(Inf!$A$10,$H27*12,4*($C$8-1)+2,12,1))) ->  | J27: =IF(OR(LEFT($B$8,1)="E",LEFT($B$8,1)="S",LEFT($B$8,1)="C"),#N/A,SUM(OFFSET(Inf!$A$10,$H27*12,4*($C$8-1)+3,12,1))) ->  | K27: =IF(OR(LEFT($B$8,1)="E",LEFT($B$8,1)="S",LEFT($B$8,1)="C"),#N/A,SUM(OFFSET(Inf!$A$10,$H27*12,4*($C$8-1)+4,12,1))) ->  | L27: =IF(OR(LEFT($B$8,1)="E",LEFT($B$8,1)="S",LEFT($B$8,1)="C"),#N/A,SUM(OFFSET(Inf!$A$10,$H27*12,4*($C$8-1)+1,12,1))) ->  | R27: =R26+1/12 -> 0.1666666667 | S27: =IF(OR(LEFT($B$8,1)="E",LEFT($B$8,1)="S",LEFT($B$8,1)="C"),#N/A,VLOOKUP($R27,Inf!$A$10:$AG$2410,4*($C$8-1)+3)) ->  | T27: =IF(OR(LEFT($B$8,1)="E",LEFT($B$8,1)="S",LEFT($B$8,1)="C"),#N/A,VLOOKUP($R27,Inf!$A$10:$AG$2410,4*($C$8-1)+4)) ->  | U27: =IF(OR(LEFT($B$8,1)="E",LEFT($B$8,1)="S",LEFT($B$8,1)="C"),#N/A,VLOOKUP($R27,Inf!$A$10:$AG$2410,4*($C$8-1)+5)) ->  | V27: =IF(OR(LEFT($B$8,1)="E",LEFT($B$8,1)="S",LEFT($B$8,1)="C"),#N/A,VLOOKUP($R27,Inf!$A$10:$AG$2410,4*($C$8-1)+2)) -> 
H28: 3 | I28: =IF(OR(LEFT($B$8,1)="E",LEFT($B$8,1)="S",LEFT($B$8,1)="C"),#N/A,SUM(OFFSET(Inf!$A$10,$H28*12,4*($C$8-1)+2,12,1))) ->  | J28: =IF(OR(LEFT($B$8,1)="E",LEFT($B$8,1)="S",LEFT($B$8,1)="C"),#N/A,SUM(OFFSET(Inf!$A$10,$H28*12,4*($C$8-1)+3,12,1))) ->  | K28: =IF(OR(LEFT($B$8,1)="E",LEFT($B$8,1)="S",LEFT($B$8,1)="C"),#N/A,SUM(OFFSET(Inf!$A$10,$H28*12,4*($C$8-1)+4,12,1))) ->  | L28: =IF(OR(LEFT($B$8,1)="E",LEFT($B$8,1)="S",LEFT($B$8,1)="C"),#N/A,SUM(OFFSET(Inf!$A$10,$H28*12,4*($C$8-1)+1,12,1))) ->  | R28: 0.25 | S28: =IF(OR(LEFT($B$8,1)="E",LEFT($B$8,1)="S",LEFT($B$8,1)="C"),#N/A,VLOOKUP($R28,Inf!$A$10:$AG$2410,4*($C$8-1)+3)) ->  | T28: =IF(OR(LEFT($B$8,1)="E",LEFT($B$8,1)="S",LEFT($B$8,1)="C"),#N/A,VLOOKUP($R28,Inf!$A$10:$AG$2410,4*($C$8-1)+4)) ->  | U28: =IF(OR(LEFT($B$8,1)="E",LEFT($B$8,1)="S",LEFT($B$8,1)="C"),#N/A,VLOOKUP($R28,Inf!$A$10:$AG$2410,4*($C$8-1)+5)) ->  | V28: =IF(OR(LEFT($B$8,1)="E",LEFT($B$8,1)="S",LEFT($B$8,1)="C"),#N/A,VLOOKUP($R28,Inf!$A$10:$AG$2410,4*($C$8-1)+2)) -> 
H29: 4 | I29: =IF(OR(LEFT($B$8,1)="E",LEFT($B$8,1)="S",LEFT($B$8,1)="C"),#N/A,SUM(OFFSET(Inf!$A$10,$H29*12,4*($C$8-1)+2,12,1))) ->  | J29: =IF(OR(LEFT($B$8,1)="E",LEFT($B$8,1)="S",LEFT($B$8,1)="C"),#N/A,SUM(OFFSET(Inf!$A$10,$H29*12,4*($C$8-1)+3,12,1))) ->  | K29: =IF(OR(LEFT($B$8,1)="E",LEFT($B$8,1)="S",LEFT($B$8,1)="C"),#N/A,SUM(OFFSET(Inf!$A$10,$H29*12,4*($C$8-1)+4,12,1))) ->  | L29: =IF(OR(LEFT($B$8,1)="E",LEFT($B$8,1)="S",LEFT($B$8,1)="C"),#N/A,SUM(OFFSET(Inf!$A$10,$H29*12,4*($C$8-1)+1,12,1))) ->  | R29: 0.3333333333 | S29: =IF(OR(LEFT($B$8,1)="E",LEFT($B$8,1)="S",LEFT($B$8,1)="C"),#N/A,VLOOKUP($R29,Inf!$A$10:$AG$2410,4*($C$8-1)+3)) ->  | T29: =IF(OR(LEFT($B$8,1)="E",LEFT($B$8,1)="S",LEFT($B$8,1)="C"),#N/A,VLOOKUP($R29,Inf!$A$10:$AG$2410,4*($C$8-1)+4)) ->  | U29: =IF(OR(LEFT($B$8,1)="E",LEFT($B$8,1)="S",LEFT($B$8,1)="C"),#N/A,VLOOKUP($R29,Inf!$A$10:$AG$2410,4*($C$8-1)+5)) ->  | V29: =IF(OR(LEFT($B$8,1)="E",LEFT($B$8,1)="S",LEFT($B$8,1)="C"),#N/A,VLOOKUP($R29,Inf!$A$10:$AG$2410,4*($C$8-1)+2)) -> 
H30: 5 | I30: =IF(OR(LEFT($B$8,1)="E",LEFT($B$8,1)="S",LEFT($B$8,1)="C"),#N/A,SUM(OFFSET(Inf!$A$10,$H30*12,4*($C$8-1)+2,12,1))) ->  | J30: =IF(OR(LEFT($B$8,1)="E",LEFT($B$8,1)="S",LEFT($B$8,1)="C"),#N/A,SUM(OFFSET(Inf!$A$10,$H30*12,4*($C$8-1)+3,12,1))) ->  | K30: =IF(OR(LEFT($B$8,1)="E",LEFT($B$8,1)="S",LEFT($B$8,1)="C"),#N/A,SUM(OFFSET(Inf!$A$10,$H30*12,4*($C$8-1)+4,12,1))) ->  | L30: =IF(OR(LEFT($B$8,1)="E",LEFT($B$8,1)="S",LEFT($B$8,1)="C"),#N/A,SUM(OFFSET(Inf!$A$10,$H30*12,4*($C$8-1)+1,12,1))) ->  | R30: 0.4166666667 | S30: =IF(OR(LEFT($B$8,1)="E",LEFT($B$8,1)="S",LEFT($B$8,1)="C"),#N/A,VLOOKUP($R30,Inf!$A$10:$AG$2410,4*($C$8-1)+3)) ->  | T30: =IF(OR(LEFT($B$8,1)="E",LEFT($B$8,1)="S",LEFT($B$8,1)="C"),#N/A,VLOOKUP($R30,Inf!$A$10:$AG$2410,4*($C$8-1)+4)) ->  | U30: =IF(OR(LEFT($B$8,1)="E",LEFT($B$8,1)="S",LEFT($B$8,1)="C"),#N/A,VLOOKUP($R30,Inf!$A$10:$AG$2410,4*($C$8-1)+5)) ->  | V30: =IF(OR(LEFT($B$8,1)="E",LEFT($B$8,1)="S",LEFT($B$8,1)="C"),#N/A,VLOOKUP($R30,Inf!$A$10:$AG$2410,4*($C$8-1)+2)) -> 
H31: 6 | I31: =IF(OR(LEFT($B$8,1)="E",LEFT($B$8,1)="S",LEFT($B$8,1)="C"),#N/A,SUM(OFFSET(Inf!$A$10,$H31*12,4*($C$8-1)+2,12,1))) ->  | J31: =IF(OR(LEFT($B$8,1)="E",LEFT($B$8,1)="S",LEFT($B$8,1)="C"),#N/A,SUM(OFFSET(Inf!$A$10,$H31*12,4*($C$8-1)+3,12,1))) ->  | K31: =IF(OR(LEFT($B$8,1)="E",LEFT($B$8,1)="S",LEFT($B$8,1)="C"),#N/A,SUM(OFFSET(Inf!$A$10,$H31*12,4*($C$8-1)+4,12,1))) ->  | L31: =IF(OR(LEFT($B$8,1)="E",LEFT($B$8,1)="S",LEFT($B$8,1)="C"),#N/A,SUM(OFFSET(Inf!$A$10,$H31*12,4*($C$8-1)+1,12,1))) ->  | R31: 0.5 | S31: =IF(OR(LEFT($B$8,1)="E",LEFT($B$8,1)="S",LEFT($B$8,1)="C"),#N/A,VLOOKUP($R31,Inf!$A$10:$AG$2410,4*($C$8-1)+3)) ->  | T31: =IF(OR(LEFT($B$8,1)="E",LEFT($B$8,1)="S",LEFT($B$8,1)="C"),#N/A,VLOOKUP($R31,Inf!$A$10:$AG$2410,4*($C$8-1)+4)) ->  | U31: =IF(OR(LEFT($B$8,1)="E",LEFT($B$8,1)="S",LEFT($B$8,1)="C"),#N/A,VLOOKUP($R31,Inf!$A$10:$AG$2410,4*($C$8-1)+5)) ->  | V31: =IF(OR(LEFT($B$8,1)="E",LEFT($B$8,1)="S",LEFT($B$8,1)="C"),#N/A,VLOOKUP($R31,Inf!$A$10:$AG$2410,4*($C$8-1)+2)) -> 
H32: 7 | I32: =IF(OR(LEFT($B$8,1)="C"),#N/A,SUM(OFFSET(Inf!$A$10,$H32*12,4*($C$8-1)+2,12,1))) -> 3.2948832 | J32: =IF(OR(LEFT($B$8,1)="C"),#N/A,SUM(OFFSET(Inf!$A$10,$H32*12,4*($C$8-1)+3,12,1))) -> 5.8926333 | K32: =IF(OR(LEFT($B$8,1)="C"),#N/A,SUM(OFFSET(Inf!$A$10,$H32*12,4*($C$8-1)+4,12,1))) -> 9.919631 | L32: =IF(OR(LEFT($B$8,1)="C"),#N/A,SUM(OFFSET(Inf!$A$10,$H32*12,4*($C$8-1)+1,12,1))) -> 6.264398 | R32: 0.5833333333 | S32: =IF(OR(LEFT($B$8,1)="E",LEFT($B$8,1)="S",LEFT($B$8,1)="C"),#N/A,VLOOKUP($R32,Inf!$A$10:$AG$2410,4*($C$8-1)+3)) ->  | T32: =IF(OR(LEFT($B$8,1)="E",LEFT($B$8,1)="S",LEFT($B$8,1)="C"),#N/A,VLOOKUP($R32,Inf!$A$10:$AG$2410,4*($C$8-1)+4)) ->  | U32: =IF(OR(LEFT($B$8,1)="E",LEFT($B$8,1)="S",LEFT($B$8,1)="C"),#N/A,VLOOKUP($R32,Inf!$A$10:$AG$2410,4*($C$8-1)+5)) ->  | V32: =IF(OR(LEFT($B$8,1)="E",LEFT($B$8,1)="S",LEFT($B$8,1)="C"),#N/A,VLOOKUP($R32,Inf!$A$10:$AG$2410,4*($C$8-1)+2)) -> 
H33: 8 | I33: =IF(OR(LEFT($B$8,1)="C"),#N/A,SUM(OFFSET(Inf!$A$10,$H33*12,4*($C$8-1)+2,12,1))) -> 3.2510392 | J33: =IF(OR(LEFT($B$8,1)="C"),#N/A,SUM(OFFSET(Inf!$A$10,$H33*12,4*($C$8-1)+3,12,1))) -> 5.9516033 | K33: =IF(OR(LEFT($B$8,1)="C"),#N/A,SUM(OFFSET(Inf!$A$10,$H33*12,4*($C$8-1)+4,12,1))) -> 9.569917 | L33: =IF(OR(LEFT($B$8,1)="C"),#N/A,SUM(OFFSET(Inf!$A$10,$H33*12,4*($C$8-1)+1,12,1))) -> 6.191826 | R33: 0.6666666667 | S33: =IF(OR(LEFT($B$8,1)="E",LEFT($B$8,1)="S",LEFT($B$8,1)="C"),#N/A,VLOOKUP($R33,Inf!$A$10:$AG$2410,4*($C$8-1)+3)) ->  | T33: =IF(OR(LEFT($B$8,1)="E",LEFT($B$8,1)="S",LEFT($B$8,1)="C"),#N/A,VLOOKUP($R33,Inf!$A$10:$AG$2410,4*($C$8-1)+4)) ->  | U33: =IF(OR(LEFT($B$8,1)="E",LEFT($B$8,1)="S",LEFT($B$8,1)="C"),#N/A,VLOOKUP($R33,Inf!$A$10:$AG$2410,4*($C$8-1)+5)) ->  | V33: =IF(OR(LEFT($B$8,1)="E",LEFT($B$8,1)="S",LEFT($B$8,1)="C"),#N/A,VLOOKUP($R33,Inf!$A$10:$AG$2410,4*($C$8-1)+2)) -> 
H34: 9 | I34: =IF(OR(LEFT($B$8,1)="C"),#N/A,SUM(OFFSET(Inf!$A$10,$H34*12,4*($C$8-1)+2,12,1))) -> 3.3470832 | J34: =IF(OR(LEFT($B$8,1)="C"),#N/A,SUM(OFFSET(Inf!$A$10,$H34*12,4*($C$8-1)+3,12,1))) -> 6.1337833 | K34: =IF(OR(LEFT($B$8,1)="C"),#N/A,SUM(OFFSET(Inf!$A$10,$H34*12,4*($C$8-1)+4,12,1))) -> 9.751317 | L34: =IF(OR(LEFT($B$8,1)="C"),#N/A,SUM(OFFSET(Inf!$A$10,$H34*12,4*($C$8-1)+1,12,1))) -> 6.350532 | R34: 0.75 | S34: =IF(OR(LEFT($B$8,1)="E",LEFT($B$8,1)="S",LEFT($B$8,1)="C"),#N/A,VLOOKUP($R34,Inf!$A$10:$AG$2410,4*($C$8-1)+3)) ->  | T34: =IF(OR(LEFT($B$8,1)="E",LEFT($B$8,1)="S",LEFT($B$8,1)="C"),#N/A,VLOOKUP($R34,Inf!$A$10:$AG$2410,4*($C$8-1)+4)) ->  | U34: =IF(OR(LEFT($B$8,1)="E",LEFT($B$8,1)="S",LEFT($B$8,1)="C"),#N/A,VLOOKUP($R34,Inf!$A$10:$AG$2410,4*($C$8-1)+5)) ->  | V34: =IF(OR(LEFT($B$8,1)="E",LEFT($B$8,1)="S",LEFT($B$8,1)="C"),#N/A,VLOOKUP($R34,Inf!$A$10:$AG$2410,4*($C$8-1)+2)) -> 
H35: 10 | I35: =IF(OR(LEFT($B$8,1)="C"),#N/A,SUM(OFFSET(Inf!$A$10,$H35*12,4*($C$8-1)+2,12,1))) -> 3.2172612 | J35: =IF(OR(LEFT($B$8,1)="C"),#N/A,SUM(OFFSET(Inf!$A$10,$H35*12,4*($C$8-1)+3,12,1))) -> 5.8887133 | K35: =IF(OR(LEFT($B$8,1)="C"),#N/A,SUM(OFFSET(Inf!$A$10,$H35*12,4*($C$8-1)+4,12,1))) -> 9.755653 | L35: =IF(OR(LEFT($B$8,1)="C"),#N/A,SUM(OFFSET(Inf!$A$10,$H35*12,4*($C$8-1)+1,12,1))) -> 6.219737 | R35: 0.8333333333 | S35: =IF(OR(LEFT($B$8,1)="E",LEFT($B$8,1)="S",LEFT($B$8,1)="C"),#N/A,VLOOKUP($R35,Inf!$A$10:$AG$2410,4*($C$8-1)+3)) ->  | T35: =IF(OR(LEFT($B$8,1)="E",LEFT($B$8,1)="S",LEFT($B$8,1)="C"),#N/A,VLOOKUP($R35,Inf!$A$10:$AG$2410,4*($C$8-1)+4)) ->  | U35: =IF(OR(LEFT($B$8,1)="E",LEFT($B$8,1)="S",LEFT($B$8,1)="C"),#N/A,VLOOKUP($R35,Inf!$A$10:$AG$2410,4*($C$8-1)+5)) ->  | V35: =IF(OR(LEFT($B$8,1)="E",LEFT($B$8,1)="S",LEFT($B$8,1)="C"),#N/A,VLOOKUP($R35,Inf!$A$10:$AG$2410,4*($C$8-1)+2)) -> 
H36: 11 | I36: =IF(OR(LEFT($B$8,1)="C"),#N/A,SUM(OFFSET(Inf!$A$10,$H36*12,4*($C$8-1)+2,12,1))) -> 3.2966132 | J36: =IF(OR(LEFT($B$8,1)="C"),#N/A,SUM(OFFSET(Inf!$A$10,$H36*12,4*($C$8-1)+3,12,1))) -> 5.8224633 | K36: =IF(OR(LEFT($B$8,1)="C"),#N/A,SUM(OFFSET(Inf!$A$10,$H36*12,4*($C$8-1)+4,12,1))) -> 9.365565 | L36: =IF(OR(LEFT($B$8,1)="C"),#N/A,SUM(OFFSET(Inf!$A$10,$H36*12,4*($C$8-1)+1,12,1))) -> 6.12859 | R36: 0.9166666667 | S36: =IF(OR(LEFT($B$8,1)="E",LEFT($B$8,1)="S",LEFT($B$8,1)="C"),#N/A,VLOOKUP($R36,Inf!$A$10:$AG$2410,4*($C$8-1)+3)) ->  | T36: =IF(OR(LEFT($B$8,1)="E",LEFT($B$8,1)="S",LEFT($B$8,1)="C"),#N/A,VLOOKUP($R36,Inf!$A$10:$AG$2410,4*($C$8-1)+4)) ->  | U36: =IF(OR(LEFT($B$8,1)="E",LEFT($B$8,1)="S",LEFT($B$8,1)="C"),#N/A,VLOOKUP($R36,Inf!$A$10:$AG$2410,4*($C$8-1)+5)) ->  | V36: =IF(OR(LEFT($B$8,1)="E",LEFT($B$8,1)="S",LEFT($B$8,1)="C"),#N/A,VLOOKUP($R36,Inf!$A$10:$AG$2410,4*($C$8-1)+2)) -> 
H37: 12 | I37: =IF(OR(LEFT($B$8,1)="C"),#N/A,SUM(OFFSET(Inf!$A$10,$H37*12,4*($C$8-1)+2,12,1))) -> 3.3587732 | J37: =IF(OR(LEFT($B$8,1)="C"),#N/A,SUM(OFFSET(Inf!$A$10,$H37*12,4*($C$8-1)+3,12,1))) -> 6.0378233 | K37: =IF(OR(LEFT($B$8,1)="C"),#N/A,SUM(OFFSET(Inf!$A$10,$H37*12,4*($C$8-1)+4,12,1))) -> 9.74659 | L37: =IF(OR(LEFT($B$8,1)="C"),#N/A,SUM(OFFSET(Inf!$A$10,$H37*12,4*($C$8-1)+1,12,1))) -> 6.328936 | R37: 1 | S37: =IF(OR(LEFT($B$8,1)="E",LEFT($B$8,1)="S",LEFT($B$8,1)="C"),#N/A,VLOOKUP($R37,Inf!$A$10:$AG$2410,4*($C$8-1)+3)) ->  | T37: =IF(OR(LEFT($B$8,1)="E",LEFT($B$8,1)="S",LEFT($B$8,1)="C"),#N/A,VLOOKUP($R37,Inf!$A$10:$AG$2410,4*($C$8-1)+4)) ->  | U37: =IF(OR(LEFT($B$8,1)="E",LEFT($B$8,1)="S",LEFT($B$8,1)="C"),#N/A,VLOOKUP($R37,Inf!$A$10:$AG$2410,4*($C$8-1)+5)) ->  | V37: =IF(OR(LEFT($B$8,1)="E",LEFT($B$8,1)="S",LEFT($B$8,1)="C"),#N/A,VLOOKUP($R37,Inf!$A$10:$AG$2410,4*($C$8-1)+2)) -> 
H38: 13 | I38: =IF(OR(LEFT($B$8,1)="C"),#N/A,SUM(OFFSET(Inf!$A$10,$H38*12,4*($C$8-1)+2,12,1))) -> 3.2163952 | J38: =IF(OR(LEFT($B$8,1)="C"),#N/A,SUM(OFFSET(Inf!$A$10,$H38*12,4*($C$8-1)+3,12,1))) -> 5.9751733 | K38: =IF(OR(LEFT($B$8,1)="C"),#N/A,SUM(OFFSET(Inf!$A$10,$H38*12,4*($C$8-1)+4,12,1))) -> 9.517582 | L38: =IF(OR(LEFT($B$8,1)="C"),#N/A,SUM(OFFSET(Inf!$A$10,$H38*12,4*($C$8-1)+1,12,1))) -> 6.20053 | R38: 1.083333333 | S38: =IF(OR(LEFT($B$8,1)="E",LEFT($B$8,1)="S",LEFT($B$8,1)="C"),#N/A,VLOOKUP($R38,Inf!$A$10:$AG$2410,4*($C$8-1)+3)) ->  | T38: =IF(OR(LEFT($B$8,1)="E",LEFT($B$8,1)="S",LEFT($B$8,1)="C"),#N/A,VLOOKUP($R38,Inf!$A$10:$AG$2410,4*($C$8-1)+4)) ->  | U38: =IF(OR(LEFT($B$8,1)="E",LEFT($B$8,1)="S",LEFT($B$8,1)="C"),#N/A,VLOOKUP($R38,Inf!$A$10:$AG$2410,4*($C$8-1)+5)) ->  | V38: =IF(OR(LEFT($B$8,1)="E",LEFT($B$8,1)="S",LEFT($B$8,1)="C"),#N/A,VLOOKUP($R38,Inf!$A$10:$AG$2410,4*($C$8-1)+2)) -> 
H39: 14 | I39: =IF(OR(LEFT($B$8,1)="C"),#N/A,SUM(OFFSET(Inf!$A$10,$H39*12,4*($C$8-1)+2,12,1))) -> 3.2158982 | J39: =IF(OR(LEFT($B$8,1)="C"),#N/A,SUM(OFFSET(Inf!$A$10,$H39*12,4*($C$8-1)+3,12,1))) -> 5.9095233 | K39: =IF(OR(LEFT($B$8,1)="C"),#N/A,SUM(OFFSET(Inf!$A$10,$H39*12,4*($C$8-1)+4,12,1))) -> 9.909782 | L39: =IF(OR(LEFT($B$8,1)="C"),#N/A,SUM(OFFSET(Inf!$A$10,$H39*12,4*($C$8-1)+1,12,1))) -> 6.254105 | R39: 1.166666667 | S39: =IF(OR(LEFT($B$8,1)="E",LEFT($B$8,1)="S",LEFT($B$8,1)="C"),#N/A,VLOOKUP($R39,Inf!$A$10:$AG$2410,4*($C$8-1)+3)) ->  | T39: =IF(OR(LEFT($B$8,1)="E",LEFT($B$8,1)="S",LEFT($B$8,1)="C"),#N/A,VLOOKUP($R39,Inf!$A$10:$AG$2410,4*($C$8-1)+4)) ->  | U39: =IF(OR(LEFT($B$8,1)="E",LEFT($B$8,1)="S",LEFT($B$8,1)="C"),#N/A,VLOOKUP($R39,Inf!$A$10:$AG$2410,4*($C$8-1)+5)) ->  | V39: =IF(OR(LEFT($B$8,1)="E",LEFT($B$8,1)="S",LEFT($B$8,1)="C"),#N/A,VLOOKUP($R39,Inf!$A$10:$AG$2410,4*($C$8-1)+2)) -> 
H40: 15 | I40: =IF(OR(LEFT($B$8,1)="C"),#N/A,SUM(OFFSET(Inf!$A$10,$H40*12,4*($C$8-1)+2,12,1))) -> 3.2955292 | J40: =IF(OR(LEFT($B$8,1)="C"),#N/A,SUM(OFFSET(Inf!$A$10,$H40*12,4*($C$8-1)+3,12,1))) -> 5.9733833 | K40: =IF(OR(LEFT($B$8,1)="C"),#N/A,SUM(OFFSET(Inf!$A$10,$H40*12,4*($C$8-1)+4,12,1))) -> 9.323558 | L40: =IF(OR(LEFT($B$8,1)="C"),#N/A,SUM(OFFSET(Inf!$A$10,$H40*12,4*($C$8-1)+1,12,1))) -> 6.151733 | R40: 1.25 | S40: =IF(OR(LEFT($B$8,1)="E",LEFT($B$8,1)="S",LEFT($B$8,1)="C"),#N/A,VLOOKUP($R40,Inf!$A$10:$AG$2410,4*($C$8-1)+3)) ->  | T40: =IF(OR(LEFT($B$8,1)="E",LEFT($B$8,1)="S",LEFT($B$8,1)="C"),#N/A,VLOOKUP($R40,Inf!$A$10:$AG$2410,4*($C$8-1)+4)) ->  | U40: =IF(OR(LEFT($B$8,1)="E",LEFT($B$8,1)="S",LEFT($B$8,1)="C"),#N/A,VLOOKUP($R40,Inf!$A$10:$AG$2410,4*($C$8-1)+5)) ->  | V40: =IF(OR(LEFT($B$8,1)="E",LEFT($B$8,1)="S",LEFT($B$8,1)="C"),#N/A,VLOOKUP($R40,Inf!$A$10:$AG$2410,4*($C$8-1)+2)) -> 
H41: 16 | I41: =IF(OR(LEFT($B$8,1)="C"),#N/A,SUM(OFFSET(Inf!$A$10,$H41*12,4*($C$8-1)+2,12,1))) -> 3.5012432 | J41: =IF(OR(LEFT($B$8,1)="C"),#N/A,SUM(OFFSET(Inf!$A$10,$H41*12,4*($C$8-1)+3,12,1))) -> 6.1589933 | K41: =IF(OR(LEFT($B$8,1)="C"),#N/A,SUM(OFFSET(Inf!$A$10,$H41*12,4*($C$8-1)+4,12,1))) -> 10.108984 | L41: =IF(OR(LEFT($B$8,1)="C"),#N/A,SUM(OFFSET(Inf!$A$10,$H41*12,4*($C$8-1)+1,12,1))) -> 6.517674 | R41: 1.333333333 | S41: =IF(OR(LEFT($B$8,1)="E",LEFT($B$8,1)="S",LEFT($B$8,1)="C"),#N/A,VLOOKUP($R41,Inf!$A$10:$AG$2410,4*($C$8-1)+3)) ->  | T41: =IF(OR(LEFT($B$8,1)="E",LEFT($B$8,1)="S",LEFT($B$8,1)="C"),#N/A,VLOOKUP($R41,Inf!$A$10:$AG$2410,4*($C$8-1)+4)) ->  | U41: =IF(OR(LEFT($B$8,1)="E",LEFT($B$8,1)="S",LEFT($B$8,1)="C"),#N/A,VLOOKUP($R41,Inf!$A$10:$AG$2410,4*($C$8-1)+5)) ->  | V41: =IF(OR(LEFT($B$8,1)="E",LEFT($B$8,1)="S",LEFT($B$8,1)="C"),#N/A,VLOOKUP($R41,Inf!$A$10:$AG$2410,4*($C$8-1)+2)) -> 
H42: 17 | I42: =IF(OR(LEFT($B$8,1)="C"),#N/A,SUM(OFFSET(Inf!$A$10,$H42*12,4*($C$8-1)+2,12,1))) -> 3.3593732 | J42: =IF(OR(LEFT($B$8,1)="C"),#N/A,SUM(OFFSET(Inf!$A$10,$H42*12,4*($C$8-1)+3,12,1))) -> 6.0320233 | K42: =IF(OR(LEFT($B$8,1)="C"),#N/A,SUM(OFFSET(Inf!$A$10,$H42*12,4*($C$8-1)+4,12,1))) -> 9.513816 | L42: =IF(OR(LEFT($B$8,1)="C"),#N/A,SUM(OFFSET(Inf!$A$10,$H42*12,4*($C$8-1)+1,12,1))) -> 6.238947 | R42: 1.416666667 | S42: =IF(OR(LEFT($B$8,1)="E",LEFT($B$8,1)="S",LEFT($B$8,1)="C"),#N/A,VLOOKUP($R42,Inf!$A$10:$AG$2410,4*($C$8-1)+3)) ->  | T42: =IF(OR(LEFT($B$8,1)="E",LEFT($B$8,1)="S",LEFT($B$8,1)="C"),#N/A,VLOOKUP($R42,Inf!$A$10:$AG$2410,4*($C$8-1)+4)) ->  | U42: =IF(OR(LEFT($B$8,1)="E",LEFT($B$8,1)="S",LEFT($B$8,1)="C"),#N/A,VLOOKUP($R42,Inf!$A$10:$AG$2410,4*($C$8-1)+5)) ->  | V42: =IF(OR(LEFT($B$8,1)="E",LEFT($B$8,1)="S",LEFT($B$8,1)="C"),#N/A,VLOOKUP($R42,Inf!$A$10:$AG$2410,4*($C$8-1)+2)) -> 
H43: 18 | I43: =SUM(OFFSET(Inf!$A$10,$H43*12,4*($C$8-1)+2,12,1)) -> 3.2493402 | J43: =SUM(OFFSET(Inf!$A$10,$H43*12,4*($C$8-1)+3,12,1)) -> 6.0116933 | K43: =SUM(OFFSET(Inf!$A$10,$H43*12,4*($C$8-1)+4,12,1)) -> 9.698076 | L43: =SUM(OFFSET(Inf!$A$10,$H43*12,4*($C$8-1)+1,12,1)) -> 6.232241 | R43: 1.5 | S43: =IF(OR(LEFT($B$8,1)="E",LEFT($B$8,1)="S",LEFT($B$8,1)="C"),#N/A,VLOOKUP($R43,Inf!$A$10:$AG$2410,4*($C$8-1)+3)) ->  | T43: =IF(OR(LEFT($B$8,1)="E",LEFT($B$8,1)="S",LEFT($B$8,1)="C"),#N/A,VLOOKUP($R43,Inf!$A$10:$AG$2410,4*($C$8-1)+4)) ->  | U43: =IF(OR(LEFT($B$8,1)="E",LEFT($B$8,1)="S",LEFT($B$8,1)="C"),#N/A,VLOOKUP($R43,Inf!$A$10:$AG$2410,4*($C$8-1)+5)) ->  | V43: =IF(OR(LEFT($B$8,1)="E",LEFT($B$8,1)="S",LEFT($B$8,1)="C"),#N/A,VLOOKUP($R43,Inf!$A$10:$AG$2410,4*($C$8-1)+2)) -> 
H44: 19 | I44: =SUM(OFFSET(Inf!$A$10,$H44*12,4*($C$8-1)+2,12,1)) -> 3.1828422 | J44: =SUM(OFFSET(Inf!$A$10,$H44*12,4*($C$8-1)+3,12,1)) -> 5.9315733 | K44: =SUM(OFFSET(Inf!$A$10,$H44*12,4*($C$8-1)+4,12,1)) -> 9.751073 | L44: =SUM(OFFSET(Inf!$A$10,$H44*12,4*($C$8-1)+1,12,1)) -> 6.263744 | R44: 1.583333333 | S44: =IF(OR(LEFT($B$8,1)="E",LEFT($B$8,1)="S",LEFT($B$8,1)="C"),#N/A,VLOOKUP($R44,Inf!$A$10:$AG$2410,4*($C$8-1)+3)) ->  | T44: =IF(OR(LEFT($B$8,1)="E",LEFT($B$8,1)="S",LEFT($B$8,1)="C"),#N/A,VLOOKUP($R44,Inf!$A$10:$AG$2410,4*($C$8-1)+4)) ->  | U44: =IF(OR(LEFT($B$8,1)="E",LEFT($B$8,1)="S",LEFT($B$8,1)="C"),#N/A,VLOOKUP($R44,Inf!$A$10:$AG$2410,4*($C$8-1)+5)) ->  | V44: =IF(OR(LEFT($B$8,1)="E",LEFT($B$8,1)="S",LEFT($B$8,1)="C"),#N/A,VLOOKUP($R44,Inf!$A$10:$AG$2410,4*($C$8-1)+2)) -> 
H45: 20 | I45: =SUM(OFFSET(Inf!$A$10,$H45*12,4*($C$8-1)+2,12,1)) -> 3.1964492 | J45: =SUM(OFFSET(Inf!$A$10,$H45*12,4*($C$8-1)+3,12,1)) -> 5.7483533 | K45: =SUM(OFFSET(Inf!$A$10,$H45*12,4*($C$8-1)+4,12,1)) -> 9.702399 | L45: =SUM(OFFSET(Inf!$A$10,$H45*12,4*($C$8-1)+1,12,1)) -> 6.091703 | R45: 1.666666667 | S45: =IF(OR(LEFT($B$8,1)="E",LEFT($B$8,1)="S",LEFT($B$8,1)="C"),#N/A,VLOOKUP($R45,Inf!$A$10:$AG$2410,4*($C$8-1)+3)) ->  | T45: =IF(OR(LEFT($B$8,1)="E",LEFT($B$8,1)="S",LEFT($B$8,1)="C"),#N/A,VLOOKUP($R45,Inf!$A$10:$AG$2410,4*($C$8-1)+4)) ->  | U45: =IF(OR(LEFT($B$8,1)="E",LEFT($B$8,1)="S",LEFT($B$8,1)="C"),#N/A,VLOOKUP($R45,Inf!$A$10:$AG$2410,4*($C$8-1)+5)) ->  | V45: =IF(OR(LEFT($B$8,1)="E",LEFT($B$8,1)="S",LEFT($B$8,1)="C"),#N/A,VLOOKUP($R45,Inf!$A$10:$AG$2410,4*($C$8-1)+2)) -> 
H46: 21 | I46: =SUM(OFFSET(Inf!$A$10,$H46*12,4*($C$8-1)+2,12,1)) -> 3.4626232 | J46: =SUM(OFFSET(Inf!$A$10,$H46*12,4*($C$8-1)+3,12,1)) -> 6.0815933 | K46: =SUM(OFFSET(Inf!$A$10,$H46*12,4*($C$8-1)+4,12,1)) -> 9.85454 | L46: =SUM(OFFSET(Inf!$A$10,$H46*12,4*($C$8-1)+1,12,1)) -> 6.344179 | R46: 1.75 | S46: =IF(OR(LEFT($B$8,1)="E",LEFT($B$8,1)="S",LEFT($B$8,1)="C"),#N/A,VLOOKUP($R46,Inf!$A$10:$AG$2410,4*($C$8-1)+3)) ->  | T46: =IF(OR(LEFT($B$8,1)="E",LEFT($B$8,1)="S",LEFT($B$8,1)="C"),#N/A,VLOOKUP($R46,Inf!$A$10:$AG$2410,4*($C$8-1)+4)) ->  | U46: =IF(OR(LEFT($B$8,1)="E",LEFT($B$8,1)="S",LEFT($B$8,1)="C"),#N/A,VLOOKUP($R46,Inf!$A$10:$AG$2410,4*($C$8-1)+5)) ->  | V46: =IF(OR(LEFT($B$8,1)="E",LEFT($B$8,1)="S",LEFT($B$8,1)="C"),#N/A,VLOOKUP($R46,Inf!$A$10:$AG$2410,4*($C$8-1)+2)) -> 
H47: 22 | I47: =SUM(OFFSET(Inf!$A$10,$H47*12,4*($C$8-1)+2,12,1)) -> 3.2436692 | J47: =SUM(OFFSET(Inf!$A$10,$H47*12,4*($C$8-1)+3,12,1)) -> 6.0042333 | K47: =SUM(OFFSET(Inf!$A$10,$H47*12,4*($C$8-1)+4,12,1)) -> 9.649229 | L47: =SUM(OFFSET(Inf!$A$10,$H47*12,4*($C$8-1)+1,12,1)) -> 6.273007 | R47: 1.833333333 | S47: =IF(OR(LEFT($B$8,1)="E",LEFT($B$8,1)="S",LEFT($B$8,1)="C"),#N/A,VLOOKUP($R47,Inf!$A$10:$AG$2410,4*($C$8-1)+3)) ->  | T47: =IF(OR(LEFT($B$8,1)="E",LEFT($B$8,1)="S",LEFT($B$8,1)="C"),#N/A,VLOOKUP($R47,Inf!$A$10:$AG$2410,4*($C$8-1)+4)) ->  | U47: =IF(OR(LEFT($B$8,1)="E",LEFT($B$8,1)="S",LEFT($B$8,1)="C"),#N/A,VLOOKUP($R47,Inf!$A$10:$AG$2410,4*($C$8-1)+5)) ->  | V47: =IF(OR(LEFT($B$8,1)="E",LEFT($B$8,1)="S",LEFT($B$8,1)="C"),#N/A,VLOOKUP($R47,Inf!$A$10:$AG$2410,4*($C$8-1)+2)) -> 
H48: 23 | I48: =SUM(OFFSET(Inf!$A$10,$H48*12,4*($C$8-1)+2,12,1)) -> 3.3124932 | J48: =SUM(OFFSET(Inf!$A$10,$H48*12,4*($C$8-1)+3,12,1)) -> 5.8101633 | K48: =SUM(OFFSET(Inf!$A$10,$H48*12,4*($C$8-1)+4,12,1)) -> 9.798396 | L48: =SUM(OFFSET(Inf!$A$10,$H48*12,4*($C$8-1)+1,12,1)) -> 6.198371 | R48: 1.916666667 | S48: =IF(OR(LEFT($B$8,1)="E",LEFT($B$8,1)="S",LEFT($B$8,1)="C"),#N/A,VLOOKUP($R48,Inf!$A$10:$AG$2410,4*($C$8-1)+3)) ->  | T48: =IF(OR(LEFT($B$8,1)="E",LEFT($B$8,1)="S",LEFT($B$8,1)="C"),#N/A,VLOOKUP($R48,Inf!$A$10:$AG$2410,4*($C$8-1)+4)) ->  | U48: =IF(OR(LEFT($B$8,1)="E",LEFT($B$8,1)="S",LEFT($B$8,1)="C"),#N/A,VLOOKUP($R48,Inf!$A$10:$AG$2410,4*($C$8-1)+5)) ->  | V48: =IF(OR(LEFT($B$8,1)="E",LEFT($B$8,1)="S",LEFT($B$8,1)="C"),#N/A,VLOOKUP($R48,Inf!$A$10:$AG$2410,4*($C$8-1)+2)) -> 
H49: 24 | I49: =SUM(OFFSET(Inf!$A$10,$H49*12,4*($C$8-1)+2,12,1)) -> 3.2311932 | J49: =SUM(OFFSET(Inf!$A$10,$H49*12,4*($C$8-1)+3,12,1)) -> 6.0358433 | K49: =SUM(OFFSET(Inf!$A$10,$H49*12,4*($C$8-1)+4,12,1)) -> 9.690418 | L49: =SUM(OFFSET(Inf!$A$10,$H49*12,4*($C$8-1)+1,12,1)) -> 6.266086 | R49: 2 | S49: =IF(OR(LEFT($B$8,1)="E",LEFT($B$8,1)="S",LEFT($B$8,1)="C"),#N/A,VLOOKUP($R49,Inf!$A$10:$AG$2410,4*($C$8-1)+3)) ->  | T49: =IF(OR(LEFT($B$8,1)="E",LEFT($B$8,1)="S",LEFT($B$8,1)="C"),#N/A,VLOOKUP($R49,Inf!$A$10:$AG$2410,4*($C$8-1)+4)) ->  | U49: =IF(OR(LEFT($B$8,1)="E",LEFT($B$8,1)="S",LEFT($B$8,1)="C"),#N/A,VLOOKUP($R49,Inf!$A$10:$AG$2410,4*($C$8-1)+5)) ->  | V49: =IF(OR(LEFT($B$8,1)="E",LEFT($B$8,1)="S",LEFT($B$8,1)="C"),#N/A,VLOOKUP($R49,Inf!$A$10:$AG$2410,4*($C$8-1)+2)) -> 
H50: 25 | I50: =SUM(OFFSET(Inf!$A$10,$H50*12,4*($C$8-1)+2,12,1)) -> 3.2333732 | J50: =SUM(OFFSET(Inf!$A$10,$H50*12,4*($C$8-1)+3,12,1)) -> 5.9342333 | K50: =SUM(OFFSET(Inf!$A$10,$H50*12,4*($C$8-1)+4,12,1)) -> 9.679574 | L50: =SUM(OFFSET(Inf!$A$10,$H50*12,4*($C$8-1)+1,12,1)) -> 6.257985 | R50: 2.083333333 | S50: =IF(OR(LEFT($B$8,1)="E",LEFT($B$8,1)="S",LEFT($B$8,1)="C"),#N/A,VLOOKUP($R50,Inf!$A$10:$AG$2410,4*($C$8-1)+3)) ->  | T50: =IF(OR(LEFT($B$8,1)="E",LEFT($B$8,1)="S",LEFT($B$8,1)="C"),#N/A,VLOOKUP($R50,Inf!$A$10:$AG$2410,4*($C$8-1)+4)) ->  | U50: =IF(OR(LEFT($B$8,1)="E",LEFT($B$8,1)="S",LEFT($B$8,1)="C"),#N/A,VLOOKUP($R50,Inf!$A$10:$AG$2410,4*($C$8-1)+5)) ->  | V50: =IF(OR(LEFT($B$8,1)="E",LEFT($B$8,1)="S",LEFT($B$8,1)="C"),#N/A,VLOOKUP($R50,Inf!$A$10:$AG$2410,4*($C$8-1)+2)) -> 
H51: 26 | I51: =SUM(OFFSET(Inf!$A$10,$H51*12,4*($C$8-1)+2,12,1)) -> 3.3100332 | J51: =SUM(OFFSET(Inf!$A$10,$H51*12,4*($C$8-1)+3,12,1)) -> 5.9682433 | K51: =SUM(OFFSET(Inf!$A$10,$H51*12,4*($C$8-1)+4,12,1)) -> 9.768475 | L51: =SUM(OFFSET(Inf!$A$10,$H51*12,4*($C$8-1)+1,12,1)) -> 6.307389 | R51: 2.166666667 | S51: =IF(OR(LEFT($B$8,1)="E",LEFT($B$8,1)="S",LEFT($B$8,1)="C"),#N/A,VLOOKUP($R51,Inf!$A$10:$AG$2410,4*($C$8-1)+3)) ->  | T51: =IF(OR(LEFT($B$8,1)="E",LEFT($B$8,1)="S",LEFT($B$8,1)="C"),#N/A,VLOOKUP($R51,Inf!$A$10:$AG$2410,4*($C$8-1)+4)) ->  | U51: =IF(OR(LEFT($B$8,1)="E",LEFT($B$8,1)="S",LEFT($B$8,1)="C"),#N/A,VLOOKUP($R51,Inf!$A$10:$AG$2410,4*($C$8-1)+5)) ->  | V51: =IF(OR(LEFT($B$8,1)="E",LEFT($B$8,1)="S",LEFT($B$8,1)="C"),#N/A,VLOOKUP($R51,Inf!$A$10:$AG$2410,4*($C$8-1)+2)) -> 
H52: 27 | I52: =SUM(OFFSET(Inf!$A$10,$H52*12,4*($C$8-1)+2,12,1)) -> 3.2541472 | J52: =SUM(OFFSET(Inf!$A$10,$H52*12,4*($C$8-1)+3,12,1)) -> 6.0606633 | K52: =SUM(OFFSET(Inf!$A$10,$H52*12,4*($C$8-1)+4,12,1)) -> 9.810111 | L52: =SUM(OFFSET(Inf!$A$10,$H52*12,4*($C$8-1)+1,12,1)) -> 6.289873 | R52: 2.25 | S52: =IF(OR(LEFT($B$8,1)="E",LEFT($B$8,1)="S",LEFT($B$8,1)="C"),#N/A,VLOOKUP($R52,Inf!$A$10:$AG$2410,4*($C$8-1)+3)) ->  | T52: =IF(OR(LEFT($B$8,1)="E",LEFT($B$8,1)="S",LEFT($B$8,1)="C"),#N/A,VLOOKUP($R52,Inf!$A$10:$AG$2410,4*($C$8-1)+4)) ->  | U52: =IF(OR(LEFT($B$8,1)="E",LEFT($B$8,1)="S",LEFT($B$8,1)="C"),#N/A,VLOOKUP($R52,Inf!$A$10:$AG$2410,4*($C$8-1)+5)) ->  | V52: =IF(OR(LEFT($B$8,1)="E",LEFT($B$8,1)="S",LEFT($B$8,1)="C"),#N/A,VLOOKUP($R52,Inf!$A$10:$AG$2410,4*($C$8-1)+2)) -> 
H53: 28 | I53: =SUM(OFFSET(Inf!$A$10,$H53*12,4*($C$8-1)+2,12,1)) -> 3.1824912 | J53: =SUM(OFFSET(Inf!$A$10,$H53*12,4*($C$8-1)+3,12,1)) -> 6.2159033 | K53: =SUM(OFFSET(Inf!$A$10,$H53*12,4*($C$8-1)+4,12,1)) -> 9.734103 | L53: =SUM(OFFSET(Inf!$A$10,$H53*12,4*($C$8-1)+1,12,1)) -> 6.358599 | R53: 2.333333333 | S53: =IF(OR(LEFT($B$8,1)="E",LEFT($B$8,1)="S",LEFT($B$8,1)="C"),#N/A,VLOOKUP($R53,Inf!$A$10:$AG$2410,4*($C$8-1)+3)) ->  | T53: =IF(OR(LEFT($B$8,1)="E",LEFT($B$8,1)="S",LEFT($B$8,1)="C"),#N/A,VLOOKUP($R53,Inf!$A$10:$AG$2410,4*($C$8-1)+4)) ->  | U53: =IF(OR(LEFT($B$8,1)="E",LEFT($B$8,1)="S",LEFT($B$8,1)="C"),#N/A,VLOOKUP($R53,Inf!$A$10:$AG$2410,4*($C$8-1)+5)) ->  | V53: =IF(OR(LEFT($B$8,1)="E",LEFT($B$8,1)="S",LEFT($B$8,1)="C"),#N/A,VLOOKUP($R53,Inf!$A$10:$AG$2410,4*($C$8-1)+2)) -> 
H54: 29 | I54: =SUM(OFFSET(Inf!$A$10,$H54*12,4*($C$8-1)+2,12,1)) -> 3.1934562 | J54: =SUM(OFFSET(Inf!$A$10,$H54*12,4*($C$8-1)+3,12,1)) -> 5.8757833 | K54: =SUM(OFFSET(Inf!$A$10,$H54*12,4*($C$8-1)+4,12,1)) -> 9.746898 | L54: =SUM(OFFSET(Inf!$A$10,$H54*12,4*($C$8-1)+1,12,1)) -> 6.20839 | R54: 2.416666667 | S54: =IF(OR(LEFT($B$8,1)="E",LEFT($B$8,1)="S",LEFT($B$8,1)="C"),#N/A,VLOOKUP($R54,Inf!$A$10:$AG$2410,4*($C$8-1)+3)) ->  | T54: =IF(OR(LEFT($B$8,1)="E",LEFT($B$8,1)="S",LEFT($B$8,1)="C"),#N/A,VLOOKUP($R54,Inf!$A$10:$AG$2410,4*($C$8-1)+4)) ->  | U54: =IF(OR(LEFT($B$8,1)="E",LEFT($B$8,1)="S",LEFT($B$8,1)="C"),#N/A,VLOOKUP($R54,Inf!$A$10:$AG$2410,4*($C$8-1)+5)) ->  | V54: =IF(OR(LEFT($B$8,1)="E",LEFT($B$8,1)="S",LEFT($B$8,1)="C"),#N/A,VLOOKUP($R54,Inf!$A$10:$AG$2410,4*($C$8-1)+2)) -> 
H55: 30 | I55: =SUM(OFFSET(Inf!$A$10,$H55*12,4*($C$8-1)+2,12,1)) -> 3.3786232 | J55: =SUM(OFFSET(Inf!$A$10,$H55*12,4*($C$8-1)+3,12,1)) -> 6.0131733 | K55: =SUM(OFFSET(Inf!$A$10,$H55*12,4*($C$8-1)+4,12,1)) -> 9.520856 | L55: =SUM(OFFSET(Inf!$A$10,$H55*12,4*($C$8-1)+1,12,1)) -> 6.255569 | R55: 2.5 | S55: =IF(OR(LEFT($B$8,1)="E",LEFT($B$8,1)="S",LEFT($B$8,1)="C"),#N/A,VLOOKUP($R55,Inf!$A$10:$AG$2410,4*($C$8-1)+3)) ->  | T55: =IF(OR(LEFT($B$8,1)="E",LEFT($B$8,1)="S",LEFT($B$8,1)="C"),#N/A,VLOOKUP($R55,Inf!$A$10:$AG$2410,4*($C$8-1)+4)) ->  | U55: =IF(OR(LEFT($B$8,1)="E",LEFT($B$8,1)="S",LEFT($B$8,1)="C"),#N/A,VLOOKUP($R55,Inf!$A$10:$AG$2410,4*($C$8-1)+5)) ->  | V55: =IF(OR(LEFT($B$8,1)="E",LEFT($B$8,1)="S",LEFT($B$8,1)="C"),#N/A,VLOOKUP($R55,Inf!$A$10:$AG$2410,4*($C$8-1)+2)) -> 
H56: 31 | I56: =SUM(OFFSET(Inf!$A$10,$H56*12,4*($C$8-1)+2,12,1)) -> 3.2656042 | J56: =SUM(OFFSET(Inf!$A$10,$H56*12,4*($C$8-1)+3,12,1)) -> 5.8021733 | K56: =SUM(OFFSET(Inf!$A$10,$H56*12,4*($C$8-1)+4,12,1)) -> 9.870756 | L56: =SUM(OFFSET(Inf!$A$10,$H56*12,4*($C$8-1)+1,12,1)) -> 6.267068 | R56: 2.583333333 | S56: =IF(OR(LEFT($B$8,1)="E",LEFT($B$8,1)="S",LEFT($B$8,1)="C"),#N/A,VLOOKUP($R56,Inf!$A$10:$AG$2410,4*($C$8-1)+3)) ->  | T56: =IF(OR(LEFT($B$8,1)="E",LEFT($B$8,1)="S",LEFT($B$8,1)="C"),#N/A,VLOOKUP($R56,Inf!$A$10:$AG$2410,4*($C$8-1)+4)) ->  | U56: =IF(OR(LEFT($B$8,1)="E",LEFT($B$8,1)="S",LEFT($B$8,1)="C"),#N/A,VLOOKUP($R56,Inf!$A$10:$AG$2410,4*($C$8-1)+5)) ->  | V56: =IF(OR(LEFT($B$8,1)="E",LEFT($B$8,1)="S",LEFT($B$8,1)="C"),#N/A,VLOOKUP($R56,Inf!$A$10:$AG$2410,4*($C$8-1)+2)) -> 
H57: 32 | I57: =SUM(OFFSET(Inf!$A$10,$H57*12,4*($C$8-1)+2,12,1)) -> 3.1969582 | J57: =SUM(OFFSET(Inf!$A$10,$H57*12,4*($C$8-1)+3,12,1)) -> 5.7961033 | K57: =SUM(OFFSET(Inf!$A$10,$H57*12,4*($C$8-1)+4,12,1)) -> 9.640232 | L57: =SUM(OFFSET(Inf!$A$10,$H57*12,4*($C$8-1)+1,12,1)) -> 6.132868 | R57: 2.666666667 | S57: =IF(OR(LEFT($B$8,1)="E",LEFT($B$8,1)="S",LEFT($B$8,1)="C"),#N/A,VLOOKUP($R57,Inf!$A$10:$AG$2410,4*($C$8-1)+3)) ->  | T57: =IF(OR(LEFT($B$8,1)="E",LEFT($B$8,1)="S",LEFT($B$8,1)="C"),#N/A,VLOOKUP($R57,Inf!$A$10:$AG$2410,4*($C$8-1)+4)) ->  | U57: =IF(OR(LEFT($B$8,1)="E",LEFT($B$8,1)="S",LEFT($B$8,1)="C"),#N/A,VLOOKUP($R57,Inf!$A$10:$AG$2410,4*($C$8-1)+5)) ->  | V57: =IF(OR(LEFT($B$8,1)="E",LEFT($B$8,1)="S",LEFT($B$8,1)="C"),#N/A,VLOOKUP($R57,Inf!$A$10:$AG$2410,4*($C$8-1)+2)) -> 
H58: 33 | I58: =SUM(OFFSET(Inf!$A$10,$H58*12,4*($C$8-1)+2,12,1)) -> 3.2013182 | J58: =SUM(OFFSET(Inf!$A$10,$H58*12,4*($C$8-1)+3,12,1)) -> 5.7586133 | K58: =SUM(OFFSET(Inf!$A$10,$H58*12,4*($C$8-1)+4,12,1)) -> 9.525263 | L58: =SUM(OFFSET(Inf!$A$10,$H58*12,4*($C$8-1)+1,12,1)) -> 6.117893 | R58: 2.75 | S58: =IF(OR(LEFT($B$8,1)="E",LEFT($B$8,1)="S",LEFT($B$8,1)="C"),#N/A,VLOOKUP($R58,Inf!$A$10:$AG$2410,4*($C$8-1)+3)) ->  | T58: =IF(OR(LEFT($B$8,1)="E",LEFT($B$8,1)="S",LEFT($B$8,1)="C"),#N/A,VLOOKUP($R58,Inf!$A$10:$AG$2410,4*($C$8-1)+4)) ->  | U58: =IF(OR(LEFT($B$8,1)="E",LEFT($B$8,1)="S",LEFT($B$8,1)="C"),#N/A,VLOOKUP($R58,Inf!$A$10:$AG$2410,4*($C$8-1)+5)) ->  | V58: =IF(OR(LEFT($B$8,1)="E",LEFT($B$8,1)="S",LEFT($B$8,1)="C"),#N/A,VLOOKUP($R58,Inf!$A$10:$AG$2410,4*($C$8-1)+2)) -> 
H59: 34 | I59: =SUM(OFFSET(Inf!$A$10,$H59*12,4*($C$8-1)+2,12,1)) -> 3.3394232 | J59: =SUM(OFFSET(Inf!$A$10,$H59*12,4*($C$8-1)+3,12,1)) -> 5.9987333 | K59: =SUM(OFFSET(Inf!$A$10,$H59*12,4*($C$8-1)+4,12,1)) -> 9.561235 | L59: =SUM(OFFSET(Inf!$A$10,$H59*12,4*($C$8-1)+1,12,1)) -> 6.254406 | R59: 2.833333333 | S59: =IF(OR(LEFT($B$8,1)="E",LEFT($B$8,1)="S",LEFT($B$8,1)="C"),#N/A,VLOOKUP($R59,Inf!$A$10:$AG$2410,4*($C$8-1)+3)) ->  | T59: =IF(OR(LEFT($B$8,1)="E",LEFT($B$8,1)="S",LEFT($B$8,1)="C"),#N/A,VLOOKUP($R59,Inf!$A$10:$AG$2410,4*($C$8-1)+4)) ->  | U59: =IF(OR(LEFT($B$8,1)="E",LEFT($B$8,1)="S",LEFT($B$8,1)="C"),#N/A,VLOOKUP($R59,Inf!$A$10:$AG$2410,4*($C$8-1)+5)) ->  | V59: =IF(OR(LEFT($B$8,1)="E",LEFT($B$8,1)="S",LEFT($B$8,1)="C"),#N/A,VLOOKUP($R59,Inf!$A$10:$AG$2410,4*($C$8-1)+2)) -> 
H60: 35 | I60: =SUM(OFFSET(Inf!$A$10,$H60*12,4*($C$8-1)+2,12,1)) -> 3.3318132 | J60: =SUM(OFFSET(Inf!$A$10,$H60*12,4*($C$8-1)+3,12,1)) -> 5.9815433 | K60: =SUM(OFFSET(Inf!$A$10,$H60*12,4*($C$8-1)+4,12,1)) -> 10.021001 | L60: =SUM(OFFSET(Inf!$A$10,$H60*12,4*($C$8-1)+1,12,1)) -> 6.310207 | R60: 2.916666667 | S60: =IF(OR(LEFT($B$8,1)="E",LEFT($B$8,1)="S",LEFT($B$8,1)="C"),#N/A,VLOOKUP($R60,Inf!$A$10:$AG$2410,4*($C$8-1)+3)) ->  | T60: =IF(OR(LEFT($B$8,1)="E",LEFT($B$8,1)="S",LEFT($B$8,1)="C"),#N/A,VLOOKUP($R60,Inf!$A$10:$AG$2410,4*($C$8-1)+4)) ->  | U60: =IF(OR(LEFT($B$8,1)="E",LEFT($B$8,1)="S",LEFT($B$8,1)="C"),#N/A,VLOOKUP($R60,Inf!$A$10:$AG$2410,4*($C$8-1)+5)) ->  | V60: =IF(OR(LEFT($B$8,1)="E",LEFT($B$8,1)="S",LEFT($B$8,1)="C"),#N/A,VLOOKUP($R60,Inf!$A$10:$AG$2410,4*($C$8-1)+2)) -> 
H61: 36 | I61: =SUM(OFFSET(Inf!$A$10,$H61*12,4*($C$8-1)+2,12,1)) -> 3.3439532 | J61: =SUM(OFFSET(Inf!$A$10,$H61*12,4*($C$8-1)+3,12,1)) -> 5.9785133 | K61: =SUM(OFFSET(Inf!$A$10,$H61*12,4*($C$8-1)+4,12,1)) -> 9.880033 | L61: =SUM(OFFSET(Inf!$A$10,$H61*12,4*($C$8-1)+1,12,1)) -> 6.331812 | R61: 3 | S61: =IF(OR(LEFT($B$8,1)="E",LEFT($B$8,1)="S",LEFT($B$8,1)="C"),#N/A,VLOOKUP($R61,Inf!$A$10:$AG$2410,4*($C$8-1)+3)) ->  | T61: =IF(OR(LEFT($B$8,1)="E",LEFT($B$8,1)="S",LEFT($B$8,1)="C"),#N/A,VLOOKUP($R61,Inf!$A$10:$AG$2410,4*($C$8-1)+4)) ->  | U61: =IF(OR(LEFT($B$8,1)="E",LEFT($B$8,1)="S",LEFT($B$8,1)="C"),#N/A,VLOOKUP($R61,Inf!$A$10:$AG$2410,4*($C$8-1)+5)) ->  | V61: =IF(OR(LEFT($B$8,1)="E",LEFT($B$8,1)="S",LEFT($B$8,1)="C"),#N/A,VLOOKUP($R61,Inf!$A$10:$AG$2410,4*($C$8-1)+2)) -> 
H62: 37 | I62: =SUM(OFFSET(Inf!$A$10,$H62*12,4*($C$8-1)+2,12,1)) -> 3.3647632 | J62: =SUM(OFFSET(Inf!$A$10,$H62*12,4*($C$8-1)+3,12,1)) -> 5.9041133 | K62: =SUM(OFFSET(Inf!$A$10,$H62*12,4*($C$8-1)+4,12,1)) -> 9.829525 | L62: =SUM(OFFSET(Inf!$A$10,$H62*12,4*($C$8-1)+1,12,1)) -> 6.285034 | R62: 3.083333333 | S62: =IF(OR(LEFT($B$8,1)="E",LEFT($B$8,1)="S",LEFT($B$8,1)="C"),#N/A,VLOOKUP($R62,Inf!$A$10:$AG$2410,4*($C$8-1)+3)) ->  | T62: =IF(OR(LEFT($B$8,1)="E",LEFT($B$8,1)="S",LEFT($B$8,1)="C"),#N/A,VLOOKUP($R62,Inf!$A$10:$AG$2410,4*($C$8-1)+4)) ->  | U62: =IF(OR(LEFT($B$8,1)="E",LEFT($B$8,1)="S",LEFT($B$8,1)="C"),#N/A,VLOOKUP($R62,Inf!$A$10:$AG$2410,4*($C$8-1)+5)) ->  | V62: =IF(OR(LEFT($B$8,1)="E",LEFT($B$8,1)="S",LEFT($B$8,1)="C"),#N/A,VLOOKUP($R62,Inf!$A$10:$AG$2410,4*($C$8-1)+2)) -> 
H63: 38 | I63: =SUM(OFFSET(Inf!$A$10,$H63*12,4*($C$8-1)+2,12,1)) -> 3.1305772 | J63: =SUM(OFFSET(Inf!$A$10,$H63*12,4*($C$8-1)+3,12,1)) -> 5.9640333 | K63: =SUM(OFFSET(Inf!$A$10,$H63*12,4*($C$8-1)+4,12,1)) -> 9.823572 | L63: =SUM(OFFSET(Inf!$A$10,$H63*12,4*($C$8-1)+1,12,1)) -> 6.266971 | R63: 3.166666667 | S63: =IF(OR(LEFT($B$8,1)="E",LEFT($B$8,1)="S",LEFT($B$8,1)="C"),#N/A,VLOOKUP($R63,Inf!$A$10:$AG$2410,4*($C$8-1)+3)) ->  | T63: =IF(OR(LEFT($B$8,1)="E",LEFT($B$8,1)="S",LEFT($B$8,1)="C"),#N/A,VLOOKUP($R63,Inf!$A$10:$AG$2410,4*($C$8-1)+4)) ->  | U63: =IF(OR(LEFT($B$8,1)="E",LEFT($B$8,1)="S",LEFT($B$8,1)="C"),#N/A,VLOOKUP($R63,Inf!$A$10:$AG$2410,4*($C$8-1)+5)) ->  | V63: =IF(OR(LEFT($B$8,1)="E",LEFT($B$8,1)="S",LEFT($B$8,1)="C"),#N/A,VLOOKUP($R63,Inf!$A$10:$AG$2410,4*($C$8-1)+2)) -> 
H64: 39 | I64: =SUM(OFFSET(Inf!$A$10,$H64*12,4*($C$8-1)+2,12,1)) -> 3.1993912 | J64: =SUM(OFFSET(Inf!$A$10,$H64*12,4*($C$8-1)+3,12,1)) -> 5.7618333 | K64: =SUM(OFFSET(Inf!$A$10,$H64*12,4*($C$8-1)+4,12,1)) -> 9.258976 | L64: =SUM(OFFSET(Inf!$A$10,$H64*12,4*($C$8-1)+1,12,1)) -> 6.076863 | R64: 3.25 | S64: =IF(OR(LEFT($B$8,1)="E",LEFT($B$8,1)="S",LEFT($B$8,1)="C"),#N/A,VLOOKUP($R64,Inf!$A$10:$AG$2410,4*($C$8-1)+3)) ->  | T64: =IF(OR(LEFT($B$8,1)="E",LEFT($B$8,1)="S",LEFT($B$8,1)="C"),#N/A,VLOOKUP($R64,Inf!$A$10:$AG$2410,4*($C$8-1)+4)) ->  | U64: =IF(OR(LEFT($B$8,1)="E",LEFT($B$8,1)="S",LEFT($B$8,1)="C"),#N/A,VLOOKUP($R64,Inf!$A$10:$AG$2410,4*($C$8-1)+5)) ->  | V64: =IF(OR(LEFT($B$8,1)="E",LEFT($B$8,1)="S",LEFT($B$8,1)="C"),#N/A,VLOOKUP($R64,Inf!$A$10:$AG$2410,4*($C$8-1)+2)) -> 
H65: 40 | I65: =SUM(OFFSET(Inf!$A$10,$H65*12,4*($C$8-1)+2,12,1)) -> 3.2376712 | J65: =SUM(OFFSET(Inf!$A$10,$H65*12,4*($C$8-1)+3,12,1)) -> 6.2165133 | K65: =SUM(OFFSET(Inf!$A$10,$H65*12,4*($C$8-1)+4,12,1)) -> 10.053404 | L65: =SUM(OFFSET(Inf!$A$10,$H65*12,4*($C$8-1)+1,12,1)) -> 6.458163 | R65: 3.333333333 | S65: =IF(OR(LEFT($B$8,1)="E",LEFT($B$8,1)="S",LEFT($B$8,1)="C"),#N/A,VLOOKUP($R65,Inf!$A$10:$AG$2410,4*($C$8-1)+3)) ->  | T65: =IF(OR(LEFT($B$8,1)="E",LEFT($B$8,1)="S",LEFT($B$8,1)="C"),#N/A,VLOOKUP($R65,Inf!$A$10:$AG$2410,4*($C$8-1)+4)) ->  | U65: =IF(OR(LEFT($B$8,1)="E",LEFT($B$8,1)="S",LEFT($B$8,1)="C"),#N/A,VLOOKUP($R65,Inf!$A$10:$AG$2410,4*($C$8-1)+5)) ->  | V65: =IF(OR(LEFT($B$8,1)="E",LEFT($B$8,1)="S",LEFT($B$8,1)="C"),#N/A,VLOOKUP($R65,Inf!$A$10:$AG$2410,4*($C$8-1)+2)) -> 
H66: 41 | I66: =SUM(OFFSET(Inf!$A$10,$H66*12,4*($C$8-1)+2,12,1)) -> 3.2542662 | J66: =SUM(OFFSET(Inf!$A$10,$H66*12,4*($C$8-1)+3,12,1)) -> 5.9655833 | K66: =SUM(OFFSET(Inf!$A$10,$H66*12,4*($C$8-1)+4,12,1)) -> 9.95487 | L66: =SUM(OFFSET(Inf!$A$10,$H66*12,4*($C$8-1)+1,12,1)) -> 6.269737 | R66: 3.416666667 | S66: =IF(OR(LEFT($B$8,1)="E",LEFT($B$8,1)="S",LEFT($B$8,1)="C"),#N/A,VLOOKUP($R66,Inf!$A$10:$AG$2410,4*($C$8-1)+3)) ->  | T66: =IF(OR(LEFT($B$8,1)="E",LEFT($B$8,1)="S",LEFT($B$8,1)="C"),#N/A,VLOOKUP($R66,Inf!$A$10:$AG$2410,4*($C$8-1)+4)) ->  | U66: =IF(OR(LEFT($B$8,1)="E",LEFT($B$8,1)="S",LEFT($B$8,1)="C"),#N/A,VLOOKUP($R66,Inf!$A$10:$AG$2410,4*($C$8-1)+5)) ->  | V66: =IF(OR(LEFT($B$8,1)="E",LEFT($B$8,1)="S",LEFT($B$8,1)="C"),#N/A,VLOOKUP($R66,Inf!$A$10:$AG$2410,4*($C$8-1)+2)) -> 
H67: 42 | I67: =SUM(OFFSET(Inf!$A$10,$H67*12,4*($C$8-1)+2,12,1)) -> 3.2744862 | J67: =SUM(OFFSET(Inf!$A$10,$H67*12,4*($C$8-1)+3,12,1)) -> 5.9916733 | K67: =SUM(OFFSET(Inf!$A$10,$H67*12,4*($C$8-1)+4,12,1)) -> 9.531742 | L67: =SUM(OFFSET(Inf!$A$10,$H67*12,4*($C$8-1)+1,12,1)) -> 6.234308 | R67: 3.5 | S67: =IF(OR(LEFT($B$8,1)="E",LEFT($B$8,1)="S",LEFT($B$8,1)="C"),#N/A,VLOOKUP($R67,Inf!$A$10:$AG$2410,4*($C$8-1)+3)) ->  | T67: =IF(OR(LEFT($B$8,1)="E",LEFT($B$8,1)="S",LEFT($B$8,1)="C"),#N/A,VLOOKUP($R67,Inf!$A$10:$AG$2410,4*($C$8-1)+4)) ->  | U67: =IF(OR(LEFT($B$8,1)="E",LEFT($B$8,1)="S",LEFT($B$8,1)="C"),#N/A,VLOOKUP($R67,Inf!$A$10:$AG$2410,4*($C$8-1)+5)) ->  | V67: =IF(OR(LEFT($B$8,1)="E",LEFT($B$8,1)="S",LEFT($B$8,1)="C"),#N/A,VLOOKUP($R67,Inf!$A$10:$AG$2410,4*($C$8-1)+2)) -> 
H68: 43 | I68: =SUM(OFFSET(Inf!$A$10,$H68*12,4*($C$8-1)+2,12,1)) -> 3.3478832 | J68: =SUM(OFFSET(Inf!$A$10,$H68*12,4*($C$8-1)+3,12,1)) -> 6.0812533 | K68: =SUM(OFFSET(Inf!$A$10,$H68*12,4*($C$8-1)+4,12,1)) -> 9.644369 | L68: =SUM(OFFSET(Inf!$A$10,$H68*12,4*($C$8-1)+1,12,1)) -> 6.310535 | R68: 3.583333333 | S68: =IF(OR(LEFT($B$8,1)="E",LEFT($B$8,1)="S",LEFT($B$8,1)="C"),#N/A,VLOOKUP($R68,Inf!$A$10:$AG$2410,4*($C$8-1)+3)) ->  | T68: =IF(OR(LEFT($B$8,1)="E",LEFT($B$8,1)="S",LEFT($B$8,1)="C"),#N/A,VLOOKUP($R68,Inf!$A$10:$AG$2410,4*($C$8-1)+4)) ->  | U68: =IF(OR(LEFT($B$8,1)="E",LEFT($B$8,1)="S",LEFT($B$8,1)="C"),#N/A,VLOOKUP($R68,Inf!$A$10:$AG$2410,4*($C$8-1)+5)) ->  | V68: =IF(OR(LEFT($B$8,1)="E",LEFT($B$8,1)="S",LEFT($B$8,1)="C"),#N/A,VLOOKUP($R68,Inf!$A$10:$AG$2410,4*($C$8-1)+2)) -> 
H69: 44 | I69: =SUM(OFFSET(Inf!$A$10,$H69*12,4*($C$8-1)+2,12,1)) -> 3.3190132 | J69: =SUM(OFFSET(Inf!$A$10,$H69*12,4*($C$8-1)+3,12,1)) -> 5.9657233 | K69: =SUM(OFFSET(Inf!$A$10,$H69*12,4*($C$8-1)+4,12,1)) -> 9.441956 | L69: =SUM(OFFSET(Inf!$A$10,$H69*12,4*($C$8-1)+1,12,1)) -> 6.185118 | R69: 3.666666667 | S69: =IF(OR(LEFT($B$8,1)="E",LEFT($B$8,1)="S",LEFT($B$8,1)="C"),#N/A,VLOOKUP($R69,Inf!$A$10:$AG$2410,4*($C$8-1)+3)) ->  | T69: =IF(OR(LEFT($B$8,1)="E",LEFT($B$8,1)="S",LEFT($B$8,1)="C"),#N/A,VLOOKUP($R69,Inf!$A$10:$AG$2410,4*($C$8-1)+4)) ->  | U69: =IF(OR(LEFT($B$8,1)="E",LEFT($B$8,1)="S",LEFT($B$8,1)="C"),#N/A,VLOOKUP($R69,Inf!$A$10:$AG$2410,4*($C$8-1)+5)) ->  | V69: =IF(OR(LEFT($B$8,1)="E",LEFT($B$8,1)="S",LEFT($B$8,1)="C"),#N/A,VLOOKUP($R69,Inf!$A$10:$AG$2410,4*($C$8-1)+2)) -> 
H70: 45 | I70: =SUM(OFFSET(Inf!$A$10,$H70*12,4*($C$8-1)+2,12,1)) -> 3.3444532 | J70: =SUM(OFFSET(Inf!$A$10,$H70*12,4*($C$8-1)+3,12,1)) -> 6.0359133 | K70: =SUM(OFFSET(Inf!$A$10,$H70*12,4*($C$8-1)+4,12,1)) -> 9.605831 | L70: =SUM(OFFSET(Inf!$A$10,$H70*12,4*($C$8-1)+1,12,1)) -> 6.257318 | R70: 3.75 | S70: =IF(OR(LEFT($B$8,1)="E",LEFT($B$8,1)="S",LEFT($B$8,1)="C"),#N/A,VLOOKUP($R70,Inf!$A$10:$AG$2410,4*($C$8-1)+3)) ->  | T70: =IF(OR(LEFT($B$8,1)="E",LEFT($B$8,1)="S",LEFT($B$8,1)="C"),#N/A,VLOOKUP($R70,Inf!$A$10:$AG$2410,4*($C$8-1)+4)) ->  | U70: =IF(OR(LEFT($B$8,1)="E",LEFT($B$8,1)="S",LEFT($B$8,1)="C"),#N/A,VLOOKUP($R70,Inf!$A$10:$AG$2410,4*($C$8-1)+5)) ->  | V70: =IF(OR(LEFT($B$8,1)="E",LEFT($B$8,1)="S",LEFT($B$8,1)="C"),#N/A,VLOOKUP($R70,Inf!$A$10:$AG$2410,4*($C$8-1)+2)) -> 
H71: 46 | I71: =SUM(OFFSET(Inf!$A$10,$H71*12,4*($C$8-1)+2,12,1)) -> 3.1554612 | J71: =SUM(OFFSET(Inf!$A$10,$H71*12,4*($C$8-1)+3,12,1)) -> 5.9526133 | K71: =SUM(OFFSET(Inf!$A$10,$H71*12,4*($C$8-1)+4,12,1)) -> 10.257515 | L71: =SUM(OFFSET(Inf!$A$10,$H71*12,4*($C$8-1)+1,12,1)) -> 6.354307 | R71: 3.833333333 | S71: =IF(OR(LEFT($B$8,1)="E",LEFT($B$8,1)="S",LEFT($B$8,1)="C"),#N/A,VLOOKUP($R71,Inf!$A$10:$AG$2410,4*($C$8-1)+3)) ->  | T71: =IF(OR(LEFT($B$8,1)="E",LEFT($B$8,1)="S",LEFT($B$8,1)="C"),#N/A,VLOOKUP($R71,Inf!$A$10:$AG$2410,4*($C$8-1)+4)) ->  | U71: =IF(OR(LEFT($B$8,1)="E",LEFT($B$8,1)="S",LEFT($B$8,1)="C"),#N/A,VLOOKUP($R71,Inf!$A$10:$AG$2410,4*($C$8-1)+5)) ->  | V71: =IF(OR(LEFT($B$8,1)="E",LEFT($B$8,1)="S",LEFT($B$8,1)="C"),#N/A,VLOOKUP($R71,Inf!$A$10:$AG$2410,4*($C$8-1)+2)) -> 
H72: 47 | I72: =SUM(OFFSET(Inf!$A$10,$H72*12,4*($C$8-1)+2,12,1)) -> 3.3801932 | J72: =SUM(OFFSET(Inf!$A$10,$H72*12,4*($C$8-1)+3,12,1)) -> 5.9803933 | K72: =SUM(OFFSET(Inf!$A$10,$H72*12,4*($C$8-1)+4,12,1)) -> 9.895043 | L72: =SUM(OFFSET(Inf!$A$10,$H72*12,4*($C$8-1)+1,12,1)) -> 6.32081 | R72: 3.916666667 | S72: =IF(OR(LEFT($B$8,1)="E",LEFT($B$8,1)="S",LEFT($B$8,1)="C"),#N/A,VLOOKUP($R72,Inf!$A$10:$AG$2410,4*($C$8-1)+3)) ->  | T72: =IF(OR(LEFT($B$8,1)="E",LEFT($B$8,1)="S",LEFT($B$8,1)="C"),#N/A,VLOOKUP($R72,Inf!$A$10:$AG$2410,4*($C$8-1)+4)) ->  | U72: =IF(OR(LEFT($B$8,1)="E",LEFT($B$8,1)="S",LEFT($B$8,1)="C"),#N/A,VLOOKUP($R72,Inf!$A$10:$AG$2410,4*($C$8-1)+5)) ->  | V72: =IF(OR(LEFT($B$8,1)="E",LEFT($B$8,1)="S",LEFT($B$8,1)="C"),#N/A,VLOOKUP($R72,Inf!$A$10:$AG$2410,4*($C$8-1)+2)) -> 
H73: 48 | I73: =SUM(OFFSET(Inf!$A$10,$H73*12,4*($C$8-1)+2,12,1)) -> 3.2670152 | J73: =SUM(OFFSET(Inf!$A$10,$H73*12,4*($C$8-1)+3,12,1)) -> 6.0418733 | K73: =SUM(OFFSET(Inf!$A$10,$H73*12,4*($C$8-1)+4,12,1)) -> 10.107758 | L73: =SUM(OFFSET(Inf!$A$10,$H73*12,4*($C$8-1)+1,12,1)) -> 6.35647 | R73: 4 | S73: =IF(OR(LEFT($B$8,1)="E",LEFT($B$8,1)="S",LEFT($B$8,1)="C"),#N/A,VLOOKUP($R73,Inf!$A$10:$AG$2410,4*($C$8-1)+3)) ->  | T73: =IF(OR(LEFT($B$8,1)="E",LEFT($B$8,1)="S",LEFT($B$8,1)="C"),#N/A,VLOOKUP($R73,Inf!$A$10:$AG$2410,4*($C$8-1)+4)) ->  | U73: =IF(OR(LEFT($B$8,1)="E",LEFT($B$8,1)="S",LEFT($B$8,1)="C"),#N/A,VLOOKUP($R73,Inf!$A$10:$AG$2410,4*($C$8-1)+5)) ->  | V73: =IF(OR(LEFT($B$8,1)="E",LEFT($B$8,1)="S",LEFT($B$8,1)="C"),#N/A,VLOOKUP($R73,Inf!$A$10:$AG$2410,4*($C$8-1)+2)) -> 
H74: 49 | I74: =SUM(OFFSET(Inf!$A$10,$H74*12,4*($C$8-1)+2,12,1)) -> 3.3623232 | J74: =SUM(OFFSET(Inf!$A$10,$H74*12,4*($C$8-1)+3,12,1)) -> 6.0007433 | K74: =SUM(OFFSET(Inf!$A$10,$H74*12,4*($C$8-1)+4,12,1)) -> 9.925545 | L74: =SUM(OFFSET(Inf!$A$10,$H74*12,4*($C$8-1)+1,12,1)) -> 6.3552 | R74: 4.083333333 | S74: =IF(OR(LEFT($B$8,1)="E",LEFT($B$8,1)="S",LEFT($B$8,1)="C"),#N/A,VLOOKUP($R74,Inf!$A$10:$AG$2410,4*($C$8-1)+3)) ->  | T74: =IF(OR(LEFT($B$8,1)="E",LEFT($B$8,1)="S",LEFT($B$8,1)="C"),#N/A,VLOOKUP($R74,Inf!$A$10:$AG$2410,4*($C$8-1)+4)) ->  | U74: =IF(OR(LEFT($B$8,1)="E",LEFT($B$8,1)="S",LEFT($B$8,1)="C"),#N/A,VLOOKUP($R74,Inf!$A$10:$AG$2410,4*($C$8-1)+5)) ->  | V74: =IF(OR(LEFT($B$8,1)="E",LEFT($B$8,1)="S",LEFT($B$8,1)="C"),#N/A,VLOOKUP($R74,Inf!$A$10:$AG$2410,4*($C$8-1)+2)) -> 
H75: 50 | I75: =SUM(OFFSET(Inf!$A$10,$H75*12,4*($C$8-1)+2,12,1)) -> 3.1693582 | J75: =SUM(OFFSET(Inf!$A$10,$H75*12,4*($C$8-1)+3,12,1)) -> 5.8172433 | K75: =SUM(OFFSET(Inf!$A$10,$H75*12,4*($C$8-1)+4,12,1)) -> 9.864968 | L75: =SUM(OFFSET(Inf!$A$10,$H75*12,4*($C$8-1)+1,12,1)) -> 6.198515 | R75: 4.166666667 | S75: =IF(OR(LEFT($B$8,1)="E",LEFT($B$8,1)="S",LEFT($B$8,1)="C"),#N/A,VLOOKUP($R75,Inf!$A$10:$AG$2410,4*($C$8-1)+3)) ->  | T75: =IF(OR(LEFT($B$8,1)="E",LEFT($B$8,1)="S",LEFT($B$8,1)="C"),#N/A,VLOOKUP($R75,Inf!$A$10:$AG$2410,4*($C$8-1)+4)) ->  | U75: =IF(OR(LEFT($B$8,1)="E",LEFT($B$8,1)="S",LEFT($B$8,1)="C"),#N/A,VLOOKUP($R75,Inf!$A$10:$AG$2410,4*($C$8-1)+5)) ->  | V75: =IF(OR(LEFT($B$8,1)="E",LEFT($B$8,1)="S",LEFT($B$8,1)="C"),#N/A,VLOOKUP($R75,Inf!$A$10:$AG$2410,4*($C$8-1)+2)) -> 
H76: 51 | I76: =SUM(OFFSET(Inf!$A$10,$H76*12,4*($C$8-1)+2,12,1)) -> 3.2482622 | J76: =SUM(OFFSET(Inf!$A$10,$H76*12,4*($C$8-1)+3,12,1)) -> 6.0014333 | K76: =SUM(OFFSET(Inf!$A$10,$H76*12,4*($C$8-1)+4,12,1)) -> 9.32911 | L76: =SUM(OFFSET(Inf!$A$10,$H76*12,4*($C$8-1)+1,12,1)) -> 6.172224 | R76: 4.25 | S76: =IF(OR(LEFT($B$8,1)="E",LEFT($B$8,1)="S",LEFT($B$8,1)="C"),#N/A,VLOOKUP($R76,Inf!$A$10:$AG$2410,4*($C$8-1)+3)) ->  | T76: =IF(OR(LEFT($B$8,1)="E",LEFT($B$8,1)="S",LEFT($B$8,1)="C"),#N/A,VLOOKUP($R76,Inf!$A$10:$AG$2410,4*($C$8-1)+4)) ->  | U76: =IF(OR(LEFT($B$8,1)="E",LEFT($B$8,1)="S",LEFT($B$8,1)="C"),#N/A,VLOOKUP($R76,Inf!$A$10:$AG$2410,4*($C$8-1)+5)) ->  | V76: =IF(OR(LEFT($B$8,1)="E",LEFT($B$8,1)="S",LEFT($B$8,1)="C"),#N/A,VLOOKUP($R76,Inf!$A$10:$AG$2410,4*($C$8-1)+2)) -> 
H77: 52 | I77: =SUM(OFFSET(Inf!$A$10,$H77*12,4*($C$8-1)+2,12,1)) -> 3.4242032 | J77: =SUM(OFFSET(Inf!$A$10,$H77*12,4*($C$8-1)+3,12,1)) -> 5.9345933 | K77: =SUM(OFFSET(Inf!$A$10,$H77*12,4*($C$8-1)+4,12,1)) -> 9.59741 | L77: =SUM(OFFSET(Inf!$A$10,$H77*12,4*($C$8-1)+1,12,1)) -> 6.237431 | R77: 4.333333333 | S77: =IF(OR(LEFT($B$8,1)="E",LEFT($B$8,1)="S",LEFT($B$8,1)="C"),#N/A,VLOOKUP($R77,Inf!$A$10:$AG$2410,4*($C$8-1)+3)) ->  | T77: =IF(OR(LEFT($B$8,1)="E",LEFT($B$8,1)="S",LEFT($B$8,1)="C"),#N/A,VLOOKUP($R77,Inf!$A$10:$AG$2410,4*($C$8-1)+4)) ->  | U77: =IF(OR(LEFT($B$8,1)="E",LEFT($B$8,1)="S",LEFT($B$8,1)="C"),#N/A,VLOOKUP($R77,Inf!$A$10:$AG$2410,4*($C$8-1)+5)) ->  | V77: =IF(OR(LEFT($B$8,1)="E",LEFT($B$8,1)="S",LEFT($B$8,1)="C"),#N/A,VLOOKUP($R77,Inf!$A$10:$AG$2410,4*($C$8-1)+2)) -> 
H78: 53 | I78: =SUM(OFFSET(Inf!$A$10,$H78*12,4*($C$8-1)+2,12,1)) -> 3.3511232 | J78: =SUM(OFFSET(Inf!$A$10,$H78*12,4*($C$8-1)+3,12,1)) -> 6.1468033 | K78: =SUM(OFFSET(Inf!$A$10,$H78*12,4*($C$8-1)+4,12,1)) -> 9.830104 | L78: =SUM(OFFSET(Inf!$A$10,$H78*12,4*($C$8-1)+1,12,1)) -> 6.298414 | R78: 4.416666667 | S78: =IF(OR(LEFT($B$8,1)="E",LEFT($B$8,1)="S",LEFT($B$8,1)="C"),#N/A,VLOOKUP($R78,Inf!$A$10:$AG$2410,4*($C$8-1)+3)) ->  | T78: =IF(OR(LEFT($B$8,1)="E",LEFT($B$8,1)="S",LEFT($B$8,1)="C"),#N/A,VLOOKUP($R78,Inf!$A$10:$AG$2410,4*($C$8-1)+4)) ->  | U78: =IF(OR(LEFT($B$8,1)="E",LEFT($B$8,1)="S",LEFT($B$8,1)="C"),#N/A,VLOOKUP($R78,Inf!$A$10:$AG$2410,4*($C$8-1)+5)) ->  | V78: =IF(OR(LEFT($B$8,1)="E",LEFT($B$8,1)="S",LEFT($B$8,1)="C"),#N/A,VLOOKUP($R78,Inf!$A$10:$AG$2410,4*($C$8-1)+2)) -> 
H79: 54 | I79: =SUM(OFFSET(Inf!$A$10,$H79*12,4*($C$8-1)+2,12,1)) -> 3.1840362 | J79: =SUM(OFFSET(Inf!$A$10,$H79*12,4*($C$8-1)+3,12,1)) -> 5.7395833 | K79: =SUM(OFFSET(Inf!$A$10,$H79*12,4*($C$8-1)+4,12,1)) -> 9.585882 | L79: =SUM(OFFSET(Inf!$A$10,$H79*12,4*($C$8-1)+1,12,1)) -> 6.095359 | R79: 4.5 | S79: =IF(OR(LEFT($B$8,1)="E",LEFT($B$8,1)="S",LEFT($B$8,1)="C"),#N/A,VLOOKUP($R79,Inf!$A$10:$AG$2410,4*($C$8-1)+3)) ->  | T79: =IF(OR(LEFT($B$8,1)="E",LEFT($B$8,1)="S",LEFT($B$8,1)="C"),#N/A,VLOOKUP($R79,Inf!$A$10:$AG$2410,4*($C$8-1)+4)) ->  | U79: =IF(OR(LEFT($B$8,1)="E",LEFT($B$8,1)="S",LEFT($B$8,1)="C"),#N/A,VLOOKUP($R79,Inf!$A$10:$AG$2410,4*($C$8-1)+5)) ->  | V79: =IF(OR(LEFT($B$8,1)="E",LEFT($B$8,1)="S",LEFT($B$8,1)="C"),#N/A,VLOOKUP($R79,Inf!$A$10:$AG$2410,4*($C$8-1)+2)) -> 
H80: 55 | I80: =SUM(OFFSET(Inf!$A$10,$H80*12,4*($C$8-1)+2,12,1)) -> 3.2383822 | J80: =SUM(OFFSET(Inf!$A$10,$H80*12,4*($C$8-1)+3,12,1)) -> 5.8795233 | K80: =SUM(OFFSET(Inf!$A$10,$H80*12,4*($C$8-1)+4,12,1)) -> 9.474087 | L80: =SUM(OFFSET(Inf!$A$10,$H80*12,4*($C$8-1)+1,12,1)) -> 6.174459 | R80: 4.583333333 | S80: =IF(OR(LEFT($B$8,1)="E",LEFT($B$8,1)="S",LEFT($B$8,1)="C"),#N/A,VLOOKUP($R80,Inf!$A$10:$AG$2410,4*($C$8-1)+3)) ->  | T80: =IF(OR(LEFT($B$8,1)="E",LEFT($B$8,1)="S",LEFT($B$8,1)="C"),#N/A,VLOOKUP($R80,Inf!$A$10:$AG$2410,4*($C$8-1)+4)) ->  | U80: =IF(OR(LEFT($B$8,1)="E",LEFT($B$8,1)="S",LEFT($B$8,1)="C"),#N/A,VLOOKUP($R80,Inf!$A$10:$AG$2410,4*($C$8-1)+5)) ->  | V80: =IF(OR(LEFT($B$8,1)="E",LEFT($B$8,1)="S",LEFT($B$8,1)="C"),#N/A,VLOOKUP($R80,Inf!$A$10:$AG$2410,4*($C$8-1)+2)) -> 
H81: 56 | I81: =SUM(OFFSET(Inf!$A$10,$H81*12,4*($C$8-1)+2,12,1)) -> 3.0814502 | J81: =SUM(OFFSET(Inf!$A$10,$H81*12,4*($C$8-1)+3,12,1)) -> 6.0024433 | K81: =SUM(OFFSET(Inf!$A$10,$H81*12,4*($C$8-1)+4,12,1)) -> 9.882012 | L81: =SUM(OFFSET(Inf!$A$10,$H81*12,4*($C$8-1)+1,12,1)) -> 6.260969 | R81: 4.666666667 | S81: =IF(OR(LEFT($B$8,1)="E",LEFT($B$8,1)="S",LEFT($B$8,1)="C"),#N/A,VLOOKUP($R81,Inf!$A$10:$AG$2410,4*($C$8-1)+3)) ->  | T81: =IF(OR(LEFT($B$8,1)="E",LEFT($B$8,1)="S",LEFT($B$8,1)="C"),#N/A,VLOOKUP($R81,Inf!$A$10:$AG$2410,4*($C$8-1)+4)) ->  | U81: =IF(OR(LEFT($B$8,1)="E",LEFT($B$8,1)="S",LEFT($B$8,1)="C"),#N/A,VLOOKUP($R81,Inf!$A$10:$AG$2410,4*($C$8-1)+5)) ->  | V81: =IF(OR(LEFT($B$8,1)="E",LEFT($B$8,1)="S",LEFT($B$8,1)="C"),#N/A,VLOOKUP($R81,Inf!$A$10:$AG$2410,4*($C$8-1)+2)) -> 
H82: 57 | I82: =SUM(OFFSET(Inf!$A$10,$H82*12,4*($C$8-1)+2,12,1)) -> 3.2436752 | J82: =SUM(OFFSET(Inf!$A$10,$H82*12,4*($C$8-1)+3,12,1)) -> 6.1040833 | K82: =SUM(OFFSET(Inf!$A$10,$H82*12,4*($C$8-1)+4,12,1)) -> 9.927862 | L82: =SUM(OFFSET(Inf!$A$10,$H82*12,4*($C$8-1)+1,12,1)) -> 6.310338 | R82: 4.75 | S82: =IF(OR(LEFT($B$8,1)="E",LEFT($B$8,1)="S",LEFT($B$8,1)="C"),#N/A,VLOOKUP($R82,Inf!$A$10:$AG$2410,4*($C$8-1)+3)) ->  | T82: =IF(OR(LEFT($B$8,1)="E",LEFT($B$8,1)="S",LEFT($B$8,1)="C"),#N/A,VLOOKUP($R82,Inf!$A$10:$AG$2410,4*($C$8-1)+4)) ->  | U82: =IF(OR(LEFT($B$8,1)="E",LEFT($B$8,1)="S",LEFT($B$8,1)="C"),#N/A,VLOOKUP($R82,Inf!$A$10:$AG$2410,4*($C$8-1)+5)) ->  | V82: =IF(OR(LEFT($B$8,1)="E",LEFT($B$8,1)="S",LEFT($B$8,1)="C"),#N/A,VLOOKUP($R82,Inf!$A$10:$AG$2410,4*($C$8-1)+2)) -> 
H83: 58 | I83: =SUM(OFFSET(Inf!$A$10,$H83*12,4*($C$8-1)+2,12,1)) -> 3.2018812 | J83: =SUM(OFFSET(Inf!$A$10,$H83*12,4*($C$8-1)+3,12,1)) -> 5.9934433 | K83: =SUM(OFFSET(Inf!$A$10,$H83*12,4*($C$8-1)+4,12,1)) -> 9.658403 | L83: =SUM(OFFSET(Inf!$A$10,$H83*12,4*($C$8-1)+1,12,1)) -> 6.236161 | R83: 4.833333333 | S83: =IF(OR(LEFT($B$8,1)="E",LEFT($B$8,1)="S",LEFT($B$8,1)="C"),#N/A,VLOOKUP($R83,Inf!$A$10:$AG$2410,4*($C$8-1)+3)) ->  | T83: =IF(OR(LEFT($B$8,1)="E",LEFT($B$8,1)="S",LEFT($B$8,1)="C"),#N/A,VLOOKUP($R83,Inf!$A$10:$AG$2410,4*($C$8-1)+4)) ->  | U83: =IF(OR(LEFT($B$8,1)="E",LEFT($B$8,1)="S",LEFT($B$8,1)="C"),#N/A,VLOOKUP($R83,Inf!$A$10:$AG$2410,4*($C$8-1)+5)) ->  | V83: =IF(OR(LEFT($B$8,1)="E",LEFT($B$8,1)="S",LEFT($B$8,1)="C"),#N/A,VLOOKUP($R83,Inf!$A$10:$AG$2410,4*($C$8-1)+2)) -> 
H84: 59 | I84: =SUM(OFFSET(Inf!$A$10,$H84*12,4*($C$8-1)+2,12,1)) -> 3.2280502 | J84: =SUM(OFFSET(Inf!$A$10,$H84*12,4*($C$8-1)+3,12,1)) -> 5.8754533 | K84: =SUM(OFFSET(Inf!$A$10,$H84*12,4*($C$8-1)+4,12,1)) -> 9.52737 | L84: =SUM(OFFSET(Inf!$A$10,$H84*12,4*($C$8-1)+1,12,1)) -> 6.123636 | R84: 4.916666667 | S84: =IF(OR(LEFT($B$8,1)="E",LEFT($B$8,1)="S",LEFT($B$8,1)="C"),#N/A,VLOOKUP($R84,Inf!$A$10:$AG$2410,4*($C$8-1)+3)) ->  | T84: =IF(OR(LEFT($B$8,1)="E",LEFT($B$8,1)="S",LEFT($B$8,1)="C"),#N/A,VLOOKUP($R84,Inf!$A$10:$AG$2410,4*($C$8-1)+4)) ->  | U84: =IF(OR(LEFT($B$8,1)="E",LEFT($B$8,1)="S",LEFT($B$8,1)="C"),#N/A,VLOOKUP($R84,Inf!$A$10:$AG$2410,4*($C$8-1)+5)) ->  | V84: =IF(OR(LEFT($B$8,1)="E",LEFT($B$8,1)="S",LEFT($B$8,1)="C"),#N/A,VLOOKUP($R84,Inf!$A$10:$AG$2410,4*($C$8-1)+2)) -> 
H85: 60 | I85: =SUM(OFFSET(Inf!$A$10,$H85*12,4*($C$8-1)+2,12,1)) -> 3.2838632 | J85: =SUM(OFFSET(Inf!$A$10,$H85*12,4*($C$8-1)+3,12,1)) -> 5.9785633 | K85: =SUM(OFFSET(Inf!$A$10,$H85*12,4*($C$8-1)+4,12,1)) -> 9.508495 | L85: =SUM(OFFSET(Inf!$A$10,$H85*12,4*($C$8-1)+1,12,1)) -> 6.216529 | R85: 5 | S85: =IF(OR(LEFT($B$8,1)="E",LEFT($B$8,1)="S",LEFT($B$8,1)="C"),#N/A,VLOOKUP($R85,Inf!$A$10:$AG$2410,4*($C$8-1)+3)) ->  | T85: =IF(OR(LEFT($B$8,1)="E",LEFT($B$8,1)="S",LEFT($B$8,1)="C"),#N/A,VLOOKUP($R85,Inf!$A$10:$AG$2410,4*($C$8-1)+4)) ->  | U85: =IF(OR(LEFT($B$8,1)="E",LEFT($B$8,1)="S",LEFT($B$8,1)="C"),#N/A,VLOOKUP($R85,Inf!$A$10:$AG$2410,4*($C$8-1)+5)) ->  | V85: =IF(OR(LEFT($B$8,1)="E",LEFT($B$8,1)="S",LEFT($B$8,1)="C"),#N/A,VLOOKUP($R85,Inf!$A$10:$AG$2410,4*($C$8-1)+2)) -> 
H86: 61 | I86: =SUM(OFFSET(Inf!$A$10,$H86*12,4*($C$8-1)+2,12,1)) -> 3.3113532 | J86: =SUM(OFFSET(Inf!$A$10,$H86*12,4*($C$8-1)+3,12,1)) -> 6.0860333 | K86: =SUM(OFFSET(Inf!$A$10,$H86*12,4*($C$8-1)+4,12,1)) -> 9.815493 | L86: =SUM(OFFSET(Inf!$A$10,$H86*12,4*($C$8-1)+1,12,1)) -> 6.358256 | R86: 5.083333333 | S86: =IF(OR(LEFT($B$8,1)="E",LEFT($B$8,1)="S",LEFT($B$8,1)="C"),#N/A,VLOOKUP($R86,Inf!$A$10:$AG$2410,4*($C$8-1)+3)) ->  | T86: =IF(OR(LEFT($B$8,1)="E",LEFT($B$8,1)="S",LEFT($B$8,1)="C"),#N/A,VLOOKUP($R86,Inf!$A$10:$AG$2410,4*($C$8-1)+4)) ->  | U86: =IF(OR(LEFT($B$8,1)="E",LEFT($B$8,1)="S",LEFT($B$8,1)="C"),#N/A,VLOOKUP($R86,Inf!$A$10:$AG$2410,4*($C$8-1)+5)) ->  | V86: =IF(OR(LEFT($B$8,1)="E",LEFT($B$8,1)="S",LEFT($B$8,1)="C"),#N/A,VLOOKUP($R86,Inf!$A$10:$AG$2410,4*($C$8-1)+2)) -> 
H87: 62 | I87: =SUM(OFFSET(Inf!$A$10,$H87*12,4*($C$8-1)+2,12,1)) -> 3.3186232 | J87: =SUM(OFFSET(Inf!$A$10,$H87*12,4*($C$8-1)+3,12,1)) -> 6.0678833 | K87: =SUM(OFFSET(Inf!$A$10,$H87*12,4*($C$8-1)+4,12,1)) -> 9.687634 | L87: =SUM(OFFSET(Inf!$A$10,$H87*12,4*($C$8-1)+1,12,1)) -> 6.318174 | R87: 5.166666667 | S87: =IF(OR(LEFT($B$8,1)="E",LEFT($B$8,1)="S",LEFT($B$8,1)="C"),#N/A,VLOOKUP($R87,Inf!$A$10:$AG$2410,4*($C$8-1)+3)) ->  | T87: =IF(OR(LEFT($B$8,1)="E",LEFT($B$8,1)="S",LEFT($B$8,1)="C"),#N/A,VLOOKUP($R87,Inf!$A$10:$AG$2410,4*($C$8-1)+4)) ->  | U87: =IF(OR(LEFT($B$8,1)="E",LEFT($B$8,1)="S",LEFT($B$8,1)="C"),#N/A,VLOOKUP($R87,Inf!$A$10:$AG$2410,4*($C$8-1)+5)) ->  | V87: =IF(OR(LEFT($B$8,1)="E",LEFT($B$8,1)="S",LEFT($B$8,1)="C"),#N/A,VLOOKUP($R87,Inf!$A$10:$AG$2410,4*($C$8-1)+2)) -> 
H88: 63 | I88: =SUM(OFFSET(Inf!$A$10,$H88*12,4*($C$8-1)+2,12,1)) -> 3.3217232 | J88: =SUM(OFFSET(Inf!$A$10,$H88*12,4*($C$8-1)+3,12,1)) -> 6.0592333 | K88: =SUM(OFFSET(Inf!$A$10,$H88*12,4*($C$8-1)+4,12,1)) -> 10.056214 | L88: =SUM(OFFSET(Inf!$A$10,$H88*12,4*($C$8-1)+1,12,1)) -> 6.431331 | R88: 5.25 | S88: =IF(OR(LEFT($B$8,1)="E",LEFT($B$8,1)="S",LEFT($B$8,1)="C"),#N/A,VLOOKUP($R88,Inf!$A$10:$AG$2410,4*($C$8-1)+3)) ->  | T88: =IF(OR(LEFT($B$8,1)="E",LEFT($B$8,1)="S",LEFT($B$8,1)="C"),#N/A,VLOOKUP($R88,Inf!$A$10:$AG$2410,4*($C$8-1)+4)) ->  | U88: =IF(OR(LEFT($B$8,1)="E",LEFT($B$8,1)="S",LEFT($B$8,1)="C"),#N/A,VLOOKUP($R88,Inf!$A$10:$AG$2410,4*($C$8-1)+5)) ->  | V88: =IF(OR(LEFT($B$8,1)="E",LEFT($B$8,1)="S",LEFT($B$8,1)="C"),#N/A,VLOOKUP($R88,Inf!$A$10:$AG$2410,4*($C$8-1)+2)) -> 
H89: 64 | I89: =SUM(OFFSET(Inf!$A$10,$H89*12,4*($C$8-1)+2,12,1)) -> 3.3657132 | J89: =SUM(OFFSET(Inf!$A$10,$H89*12,4*($C$8-1)+3,12,1)) -> 5.9299033 | K89: =SUM(OFFSET(Inf!$A$10,$H89*12,4*($C$8-1)+4,12,1)) -> 10.05923 | L89: =SUM(OFFSET(Inf!$A$10,$H89*12,4*($C$8-1)+1,12,1)) -> 6.382893 | R89: 5.333333333 | S89: =IF(OR(LEFT($B$8,1)="E",LEFT($B$8,1)="S",LEFT($B$8,1)="C"),#N/A,VLOOKUP($R89,Inf!$A$10:$AG$2410,4*($C$8-1)+3)) ->  | T89: =IF(OR(LEFT($B$8,1)="E",LEFT($B$8,1)="S",LEFT($B$8,1)="C"),#N/A,VLOOKUP($R89,Inf!$A$10:$AG$2410,4*($C$8-1)+4)) ->  | U89: =IF(OR(LEFT($B$8,1)="E",LEFT($B$8,1)="S",LEFT($B$8,1)="C"),#N/A,VLOOKUP($R89,Inf!$A$10:$AG$2410,4*($C$8-1)+5)) ->  | V89: =IF(OR(LEFT($B$8,1)="E",LEFT($B$8,1)="S",LEFT($B$8,1)="C"),#N/A,VLOOKUP($R89,Inf!$A$10:$AG$2410,4*($C$8-1)+2)) -> 
H90: 65 | I90: =SUM(OFFSET(Inf!$A$10,$H90*12,4*($C$8-1)+2,12,1)) -> 3.3659832 | J90: =SUM(OFFSET(Inf!$A$10,$H90*12,4*($C$8-1)+3,12,1)) -> 5.7739733 | K90: =SUM(OFFSET(Inf!$A$10,$H90*12,4*($C$8-1)+4,12,1)) -> 9.804267 | L90: =SUM(OFFSET(Inf!$A$10,$H90*12,4*($C$8-1)+1,12,1)) -> 6.154644 | R90: 5.416666667 | S90: =IF(OR(LEFT($B$8,1)="E",LEFT($B$8,1)="S",LEFT($B$8,1)="C"),#N/A,VLOOKUP($R90,Inf!$A$10:$AG$2410,4*($C$8-1)+3)) ->  | T90: =IF(OR(LEFT($B$8,1)="E",LEFT($B$8,1)="S",LEFT($B$8,1)="C"),#N/A,VLOOKUP($R90,Inf!$A$10:$AG$2410,4*($C$8-1)+4)) ->  | U90: =IF(OR(LEFT($B$8,1)="E",LEFT($B$8,1)="S",LEFT($B$8,1)="C"),#N/A,VLOOKUP($R90,Inf!$A$10:$AG$2410,4*($C$8-1)+5)) ->  | V90: =IF(OR(LEFT($B$8,1)="E",LEFT($B$8,1)="S",LEFT($B$8,1)="C"),#N/A,VLOOKUP($R90,Inf!$A$10:$AG$2410,4*($C$8-1)+2)) -> 
H91: 66 | I91: =SUM(OFFSET(Inf!$A$10,$H91*12,4*($C$8-1)+2,12,1)) -> 3.1901432 | J91: =SUM(OFFSET(Inf!$A$10,$H91*12,4*($C$8-1)+3,12,1)) -> 5.8857933 | K91: =SUM(OFFSET(Inf!$A$10,$H91*12,4*($C$8-1)+4,12,1)) -> 9.720677 | L91: =SUM(OFFSET(Inf!$A$10,$H91*12,4*($C$8-1)+1,12,1)) -> 6.212815 | R91: =R90+1/12 -> 5.5 | S91: =IF(OR(LEFT($B$8,1)="E",LEFT($B$8,1)="S",LEFT($B$8,1)="C"),#N/A,VLOOKUP($R91,Inf!$A$10:$AG$2410,4*($C$8-1)+3)) ->  | T91: =IF(OR(LEFT($B$8,1)="E",LEFT($B$8,1)="S",LEFT($B$8,1)="C"),#N/A,VLOOKUP($R91,Inf!$A$10:$AG$2410,4*($C$8-1)+4)) ->  | U91: =IF(OR(LEFT($B$8,1)="E",LEFT($B$8,1)="S",LEFT($B$8,1)="C"),#N/A,VLOOKUP($R91,Inf!$A$10:$AG$2410,4*($C$8-1)+5)) ->  | V91: =IF(OR(LEFT($B$8,1)="E",LEFT($B$8,1)="S",LEFT($B$8,1)="C"),#N/A,VLOOKUP($R91,Inf!$A$10:$AG$2410,4*($C$8-1)+2)) -> 
H92: 67 | I92: =SUM(OFFSET(Inf!$A$10,$H92*12,4*($C$8-1)+2,12,1)) -> 3.3140432 | J92: =SUM(OFFSET(Inf!$A$10,$H92*12,4*($C$8-1)+3,12,1)) -> 6.1095133 | K92: =SUM(OFFSET(Inf!$A$10,$H92*12,4*($C$8-1)+4,12,1)) -> 9.766651 | L92: =SUM(OFFSET(Inf!$A$10,$H92*12,4*($C$8-1)+1,12,1)) -> 6.314422 | R92: 5.583333333 | S92: =IF(OR(LEFT($B$8,1)="E",LEFT($B$8,1)="S",LEFT($B$8,1)="C"),#N/A,VLOOKUP($R92,Inf!$A$10:$AG$2410,4*($C$8-1)+3)) ->  | T92: =IF(OR(LEFT($B$8,1)="E",LEFT($B$8,1)="S",LEFT($B$8,1)="C"),#N/A,VLOOKUP($R92,Inf!$A$10:$AG$2410,4*($C$8-1)+4)) ->  | U92: =IF(OR(LEFT($B$8,1)="E",LEFT($B$8,1)="S",LEFT($B$8,1)="C"),#N/A,VLOOKUP($R92,Inf!$A$10:$AG$2410,4*($C$8-1)+5)) ->  | V92: =IF(OR(LEFT($B$8,1)="E",LEFT($B$8,1)="S",LEFT($B$8,1)="C"),#N/A,VLOOKUP($R92,Inf!$A$10:$AG$2410,4*($C$8-1)+2)) -> 
H93: 68 | I93: =SUM(OFFSET(Inf!$A$10,$H93*12,4*($C$8-1)+2,12,1)) -> 3.2022712 | J93: =SUM(OFFSET(Inf!$A$10,$H93*12,4*($C$8-1)+3,12,1)) -> 5.8156633 | K93: =SUM(OFFSET(Inf!$A$10,$H93*12,4*($C$8-1)+4,12,1)) -> 9.221859 | L93: =SUM(OFFSET(Inf!$A$10,$H93*12,4*($C$8-1)+1,12,1)) -> 6.039936 | R93: 5.666666667 | S93: =IF(OR(LEFT($B$8,1)="E",LEFT($B$8,1)="S",LEFT($B$8,1)="C"),#N/A,VLOOKUP($R93,Inf!$A$10:$AG$2410,4*($C$8-1)+3)) ->  | T93: =IF(OR(LEFT($B$8,1)="E",LEFT($B$8,1)="S",LEFT($B$8,1)="C"),#N/A,VLOOKUP($R93,Inf!$A$10:$AG$2410,4*($C$8-1)+4)) ->  | U93: =IF(OR(LEFT($B$8,1)="E",LEFT($B$8,1)="S",LEFT($B$8,1)="C"),#N/A,VLOOKUP($R93,Inf!$A$10:$AG$2410,4*($C$8-1)+5)) ->  | V93: =IF(OR(LEFT($B$8,1)="E",LEFT($B$8,1)="S",LEFT($B$8,1)="C"),#N/A,VLOOKUP($R93,Inf!$A$10:$AG$2410,4*($C$8-1)+2)) -> 
H94: 69 | I94: =SUM(OFFSET(Inf!$A$10,$H94*12,4*($C$8-1)+2,12,1)) -> 3.3161232 | J94: =SUM(OFFSET(Inf!$A$10,$H94*12,4*($C$8-1)+3,12,1)) -> 6.1682533 | K94: =SUM(OFFSET(Inf!$A$10,$H94*12,4*($C$8-1)+4,12,1)) -> 9.743339 | L94: =SUM(OFFSET(Inf!$A$10,$H94*12,4*($C$8-1)+1,12,1)) -> 6.329186 | R94: 5.75 | S94: =IF(OR(LEFT($B$8,1)="E",LEFT($B$8,1)="S",LEFT($B$8,1)="C"),#N/A,VLOOKUP($R94,Inf!$A$10:$AG$2410,4*($C$8-1)+3)) ->  | T94: =IF(OR(LEFT($B$8,1)="E",LEFT($B$8,1)="S",LEFT($B$8,1)="C"),#N/A,VLOOKUP($R94,Inf!$A$10:$AG$2410,4*($C$8-1)+4)) ->  | U94: =IF(OR(LEFT($B$8,1)="E",LEFT($B$8,1)="S",LEFT($B$8,1)="C"),#N/A,VLOOKUP($R94,Inf!$A$10:$AG$2410,4*($C$8-1)+5)) ->  | V94: =IF(OR(LEFT($B$8,1)="E",LEFT($B$8,1)="S",LEFT($B$8,1)="C"),#N/A,VLOOKUP($R94,Inf!$A$10:$AG$2410,4*($C$8-1)+2)) -> 
H95: 70 | I95: =SUM(OFFSET(Inf!$A$10,$H95*12,4*($C$8-1)+2,12,1)) -> 3.2568832 | J95: =SUM(OFFSET(Inf!$A$10,$H95*12,4*($C$8-1)+3,12,1)) -> 6.0778033 | K95: =SUM(OFFSET(Inf!$A$10,$H95*12,4*($C$8-1)+4,12,1)) -> 9.770643 | L95: =SUM(OFFSET(Inf!$A$10,$H95*12,4*($C$8-1)+1,12,1)) -> 6.296844 | R95: 5.833333333 | S95: =IF(OR(LEFT($B$8,1)="E",LEFT($B$8,1)="S",LEFT($B$8,1)="C"),#N/A,VLOOKUP($R95,Inf!$A$10:$AG$2410,4*($C$8-1)+3)) ->  | T95: =IF(OR(LEFT($B$8,1)="E",LEFT($B$8,1)="S",LEFT($B$8,1)="C"),#N/A,VLOOKUP($R95,Inf!$A$10:$AG$2410,4*($C$8-1)+4)) ->  | U95: =IF(OR(LEFT($B$8,1)="E",LEFT($B$8,1)="S",LEFT($B$8,1)="C"),#N/A,VLOOKUP($R95,Inf!$A$10:$AG$2410,4*($C$8-1)+5)) ->  | V95: =IF(OR(LEFT($B$8,1)="E",LEFT($B$8,1)="S",LEFT($B$8,1)="C"),#N/A,VLOOKUP($R95,Inf!$A$10:$AG$2410,4*($C$8-1)+2)) -> 
H96: 71 | I96: =SUM(OFFSET(Inf!$A$10,$H96*12,4*($C$8-1)+2,12,1)) -> 3.3006832 | J96: =SUM(OFFSET(Inf!$A$10,$H96*12,4*($C$8-1)+3,12,1)) -> 6.1850533 | K96: =SUM(OFFSET(Inf!$A$10,$H96*12,4*($C$8-1)+4,12,1)) -> 9.966478 | L96: =SUM(OFFSET(Inf!$A$10,$H96*12,4*($C$8-1)+1,12,1)) -> 6.42464 | R96: 5.916666667 | S96: =IF(OR(LEFT($B$8,1)="E",LEFT($B$8,1)="S",LEFT($B$8,1)="C"),#N/A,VLOOKUP($R96,Inf!$A$10:$AG$2410,4*($C$8-1)+3)) ->  | T96: =IF(OR(LEFT($B$8,1)="E",LEFT($B$8,1)="S",LEFT($B$8,1)="C"),#N/A,VLOOKUP($R96,Inf!$A$10:$AG$2410,4*($C$8-1)+4)) ->  | U96: =IF(OR(LEFT($B$8,1)="E",LEFT($B$8,1)="S",LEFT($B$8,1)="C"),#N/A,VLOOKUP($R96,Inf!$A$10:$AG$2410,4*($C$8-1)+5)) ->  | V96: =IF(OR(LEFT($B$8,1)="E",LEFT($B$8,1)="S",LEFT($B$8,1)="C"),#N/A,VLOOKUP($R96,Inf!$A$10:$AG$2410,4*($C$8-1)+2)) -> 
H97: 72 | I97: =SUM(OFFSET(Inf!$A$10,$H97*12,4*($C$8-1)+2,12,1)) -> 3.2428902 | J97: =SUM(OFFSET(Inf!$A$10,$H97*12,4*($C$8-1)+3,12,1)) -> 5.9815633 | K97: =SUM(OFFSET(Inf!$A$10,$H97*12,4*($C$8-1)+4,12,1)) -> 9.640109 | L97: =SUM(OFFSET(Inf!$A$10,$H97*12,4*($C$8-1)+1,12,1)) -> 6.207193 | R97: 6 | S97: =IF(OR(LEFT($B$8,1)="E",LEFT($B$8,1)="S",LEFT($B$8,1)="C"),#N/A,VLOOKUP($R97,Inf!$A$10:$AG$2410,4*($C$8-1)+3)) ->  | T97: =IF(OR(LEFT($B$8,1)="E",LEFT($B$8,1)="S",LEFT($B$8,1)="C"),#N/A,VLOOKUP($R97,Inf!$A$10:$AG$2410,4*($C$8-1)+4)) ->  | U97: =IF(OR(LEFT($B$8,1)="E",LEFT($B$8,1)="S",LEFT($B$8,1)="C"),#N/A,VLOOKUP($R97,Inf!$A$10:$AG$2410,4*($C$8-1)+5)) ->  | V97: =IF(OR(LEFT($B$8,1)="E",LEFT($B$8,1)="S",LEFT($B$8,1)="C"),#N/A,VLOOKUP($R97,Inf!$A$10:$AG$2410,4*($C$8-1)+2)) -> 
H98: 73 | I98: =SUM(OFFSET(Inf!$A$10,$H98*12,4*($C$8-1)+2,12,1)) -> 3.1501232 | J98: =SUM(OFFSET(Inf!$A$10,$H98*12,4*($C$8-1)+3,12,1)) -> 5.8745233 | K98: =SUM(OFFSET(Inf!$A$10,$H98*12,4*($C$8-1)+4,12,1)) -> 9.562131 | L98: =SUM(OFFSET(Inf!$A$10,$H98*12,4*($C$8-1)+1,12,1)) -> 6.143174 | R98: 6.083333333 | S98: =IF(OR(LEFT($B$8,1)="E",LEFT($B$8,1)="S",LEFT($B$8,1)="C"),#N/A,VLOOKUP($R98,Inf!$A$10:$AG$2410,4*($C$8-1)+3)) ->  | T98: =IF(OR(LEFT($B$8,1)="E",LEFT($B$8,1)="S",LEFT($B$8,1)="C"),#N/A,VLOOKUP($R98,Inf!$A$10:$AG$2410,4*($C$8-1)+4)) ->  | U98: =IF(OR(LEFT($B$8,1)="E",LEFT($B$8,1)="S",LEFT($B$8,1)="C"),#N/A,VLOOKUP($R98,Inf!$A$10:$AG$2410,4*($C$8-1)+5)) ->  | V98: =IF(OR(LEFT($B$8,1)="E",LEFT($B$8,1)="S",LEFT($B$8,1)="C"),#N/A,VLOOKUP($R98,Inf!$A$10:$AG$2410,4*($C$8-1)+2)) -> 
H99: 74 | I99: =SUM(OFFSET(Inf!$A$10,$H99*12,4*($C$8-1)+2,12,1)) -> 3.4202232 | J99: =SUM(OFFSET(Inf!$A$10,$H99*12,4*($C$8-1)+3,12,1)) -> 6.0542933 | K99: =SUM(OFFSET(Inf!$A$10,$H99*12,4*($C$8-1)+4,12,1)) -> 9.686166 | L99: =SUM(OFFSET(Inf!$A$10,$H99*12,4*($C$8-1)+1,12,1)) -> 6.347268 | R99: 6.166666667 | S99: =IF(OR(LEFT($B$8,1)="E",LEFT($B$8,1)="S",LEFT($B$8,1)="C"),#N/A,VLOOKUP($R99,Inf!$A$10:$AG$2410,4*($C$8-1)+3)) ->  | T99: =IF(OR(LEFT($B$8,1)="E",LEFT($B$8,1)="S",LEFT($B$8,1)="C"),#N/A,VLOOKUP($R99,Inf!$A$10:$AG$2410,4*($C$8-1)+4)) ->  | U99: =IF(OR(LEFT($B$8,1)="E",LEFT($B$8,1)="S",LEFT($B$8,1)="C"),#N/A,VLOOKUP($R99,Inf!$A$10:$AG$2410,4*($C$8-1)+5)) ->  | V99: =IF(OR(LEFT($B$8,1)="E",LEFT($B$8,1)="S",LEFT($B$8,1)="C"),#N/A,VLOOKUP($R99,Inf!$A$10:$AG$2410,4*($C$8-1)+2)) -> 
H100: 75 | I100: =SUM(OFFSET(Inf!$A$10,$H100*12,4*($C$8-1)+2,12,1)) -> 3.4005032 | J100: =SUM(OFFSET(Inf!$A$10,$H100*12,4*($C$8-1)+3,12,1)) -> 6.0335933 | K100: =SUM(OFFSET(Inf!$A$10,$H100*12,4*($C$8-1)+4,12,1)) -> 9.671151 | L100: =SUM(OFFSET(Inf!$A$10,$H100*12,4*($C$8-1)+1,12,1)) -> 6.323466 | R100: 6.25 | S100: =IF(OR(LEFT($B$8,1)="E",LEFT($B$8,1)="S",LEFT($B$8,1)="C"),#N/A,VLOOKUP($R100,Inf!$A$10:$AG$2410,4*($C$8-1)+3)) ->  | T100: =IF(OR(LEFT($B$8,1)="E",LEFT($B$8,1)="S",LEFT($B$8,1)="C"),#N/A,VLOOKUP($R100,Inf!$A$10:$AG$2410,4*($C$8-1)+4)) ->  | U100: =IF(OR(LEFT($B$8,1)="E",LEFT($B$8,1)="S",LEFT($B$8,1)="C"),#N/A,VLOOKUP($R100,Inf!$A$10:$AG$2410,4*($C$8-1)+5)) ->  | V100: =IF(OR(LEFT($B$8,1)="E",LEFT($B$8,1)="S",LEFT($B$8,1)="C"),#N/A,VLOOKUP($R100,Inf!$A$10:$AG$2410,4*($C$8-1)+2)) -> 
H101: 76 | I101: =SUM(OFFSET(Inf!$A$10,$H101*12,4*($C$8-1)+2,12,1)) -> 3.3423032 | J101: =SUM(OFFSET(Inf!$A$10,$H101*12,4*($C$8-1)+3,12,1)) -> 5.9590333 | K101: =SUM(OFFSET(Inf!$A$10,$H101*12,4*($C$8-1)+4,12,1)) -> 9.747563 | L101: =SUM(OFFSET(Inf!$A$10,$H101*12,4*($C$8-1)+1,12,1)) -> 6.331735 | R101: 6.333333333 | S101: =IF(OR(LEFT($B$8,1)="E",LEFT($B$8,1)="S",LEFT($B$8,1)="C"),#N/A,VLOOKUP($R101,Inf!$A$10:$AG$2410,4*($C$8-1)+3)) ->  | T101: =IF(OR(LEFT($B$8,1)="E",LEFT($B$8,1)="S",LEFT($B$8,1)="C"),#N/A,VLOOKUP($R101,Inf!$A$10:$AG$2410,4*($C$8-1)+4)) ->  | U101: =IF(OR(LEFT($B$8,1)="E",LEFT($B$8,1)="S",LEFT($B$8,1)="C"),#N/A,VLOOKUP($R101,Inf!$A$10:$AG$2410,4*($C$8-1)+5)) ->  | V101: =IF(OR(LEFT($B$8,1)="E",LEFT($B$8,1)="S",LEFT($B$8,1)="C"),#N/A,VLOOKUP($R101,Inf!$A$10:$AG$2410,4*($C$8-1)+2)) -> 
H102: 77 | I102: =SUM(OFFSET(Inf!$A$10,$H102*12,4*($C$8-1)+2,12,1)) -> 3.2071422 | J102: =SUM(OFFSET(Inf!$A$10,$H102*12,4*($C$8-1)+3,12,1)) -> 5.9211233 | K102: =SUM(OFFSET(Inf!$A$10,$H102*12,4*($C$8-1)+4,12,1)) -> 9.648956 | L102: =SUM(OFFSET(Inf!$A$10,$H102*12,4*($C$8-1)+1,12,1)) -> 6.155415 | R102: 6.416666667 | S102: =IF(OR(LEFT($B$8,1)="E",LEFT($B$8,1)="S",LEFT($B$8,1)="C"),#N/A,VLOOKUP($R102,Inf!$A$10:$AG$2410,4*($C$8-1)+3)) ->  | T102: =IF(OR(LEFT($B$8,1)="E",LEFT($B$8,1)="S",LEFT($B$8,1)="C"),#N/A,VLOOKUP($R102,Inf!$A$10:$AG$2410,4*($C$8-1)+4)) ->  | U102: =IF(OR(LEFT($B$8,1)="E",LEFT($B$8,1)="S",LEFT($B$8,1)="C"),#N/A,VLOOKUP($R102,Inf!$A$10:$AG$2410,4*($C$8-1)+5)) ->  | V102: =IF(OR(LEFT($B$8,1)="E",LEFT($B$8,1)="S",LEFT($B$8,1)="C"),#N/A,VLOOKUP($R102,Inf!$A$10:$AG$2410,4*($C$8-1)+2)) -> 
H103: 78 | I103: =SUM(OFFSET(Inf!$A$10,$H103*12,4*($C$8-1)+2,12,1)) -> 3.2249242 | J103: =SUM(OFFSET(Inf!$A$10,$H103*12,4*($C$8-1)+3,12,1)) -> 5.9135933 | K103: =SUM(OFFSET(Inf!$A$10,$H103*12,4*($C$8-1)+4,12,1)) -> 9.495835 | L103: =SUM(OFFSET(Inf!$A$10,$H103*12,4*($C$8-1)+1,12,1)) -> 6.200142 | R103: 6.5 | S103: =IF(OR(LEFT($B$8,1)="E",LEFT($B$8,1)="S",LEFT($B$8,1)="C"),#N/A,VLOOKUP($R103,Inf!$A$10:$AG$2410,4*($C$8-1)+3)) ->  | T103: =IF(OR(LEFT($B$8,1)="E",LEFT($B$8,1)="S",LEFT($B$8,1)="C"),#N/A,VLOOKUP($R103,Inf!$A$10:$AG$2410,4*($C$8-1)+4)) ->  | U103: =IF(OR(LEFT($B$8,1)="E",LEFT($B$8,1)="S",LEFT($B$8,1)="C"),#N/A,VLOOKUP($R103,Inf!$A$10:$AG$2410,4*($C$8-1)+5)) ->  | V103: =IF(OR(LEFT($B$8,1)="E",LEFT($B$8,1)="S",LEFT($B$8,1)="C"),#N/A,VLOOKUP($R103,Inf!$A$10:$AG$2410,4*($C$8-1)+2)) -> 
H104: 79 | I104: =SUM(OFFSET(Inf!$A$10,$H104*12,4*($C$8-1)+2,12,1)) -> 3.3604532 | J104: =SUM(OFFSET(Inf!$A$10,$H104*12,4*($C$8-1)+3,12,1)) -> 6.0607633 | K104: =SUM(OFFSET(Inf!$A$10,$H104*12,4*($C$8-1)+4,12,1)) -> 9.852349 | L104: =SUM(OFFSET(Inf!$A$10,$H104*12,4*($C$8-1)+1,12,1)) -> 6.37085 | R104: 6.583333333 | S104: =IF(OR(LEFT($B$8,1)="E",LEFT($B$8,1)="S",LEFT($B$8,1)="C"),#N/A,VLOOKUP($R104,Inf!$A$10:$AG$2410,4*($C$8-1)+3)) ->  | T104: =IF(OR(LEFT($B$8,1)="E",LEFT($B$8,1)="S",LEFT($B$8,1)="C"),#N/A,VLOOKUP($R104,Inf!$A$10:$AG$2410,4*($C$8-1)+4)) ->  | U104: =IF(OR(LEFT($B$8,1)="E",LEFT($B$8,1)="S",LEFT($B$8,1)="C"),#N/A,VLOOKUP($R104,Inf!$A$10:$AG$2410,4*($C$8-1)+5)) ->  | V104: =IF(OR(LEFT($B$8,1)="E",LEFT($B$8,1)="S",LEFT($B$8,1)="C"),#N/A,VLOOKUP($R104,Inf!$A$10:$AG$2410,4*($C$8-1)+2)) -> 
H105: 80 | I105: =SUM(OFFSET(Inf!$A$10,$H105*12,4*($C$8-1)+2,12,1)) -> 3.4093932 | J105: =SUM(OFFSET(Inf!$A$10,$H105*12,4*($C$8-1)+3,12,1)) -> 6.0087333 | K105: =SUM(OFFSET(Inf!$A$10,$H105*12,4*($C$8-1)+4,12,1)) -> 9.898864 | L105: =SUM(OFFSET(Inf!$A$10,$H105*12,4*($C$8-1)+1,12,1)) -> 6.35176 | R105: 6.666666667 | S105: =IF(OR(LEFT($B$8,1)="E",LEFT($B$8,1)="S",LEFT($B$8,1)="C"),#N/A,VLOOKUP($R105,Inf!$A$10:$AG$2410,4*($C$8-1)+3)) ->  | T105: =IF(OR(LEFT($B$8,1)="E",LEFT($B$8,1)="S",LEFT($B$8,1)="C"),#N/A,VLOOKUP($R105,Inf!$A$10:$AG$2410,4*($C$8-1)+4)) ->  | U105: =IF(OR(LEFT($B$8,1)="E",LEFT($B$8,1)="S",LEFT($B$8,1)="C"),#N/A,VLOOKUP($R105,Inf!$A$10:$AG$2410,4*($C$8-1)+5)) ->  | V105: =IF(OR(LEFT($B$8,1)="E",LEFT($B$8,1)="S",LEFT($B$8,1)="C"),#N/A,VLOOKUP($R105,Inf!$A$10:$AG$2410,4*($C$8-1)+2)) -> 
H106: 81 | I106: =SUM(OFFSET(Inf!$A$10,$H106*12,4*($C$8-1)+2,12,1)) -> 3.1824222 | J106: =SUM(OFFSET(Inf!$A$10,$H106*12,4*($C$8-1)+3,12,1)) -> 6.1160033 | K106: =SUM(OFFSET(Inf!$A$10,$H106*12,4*($C$8-1)+4,12,1)) -> 9.569896 | L106: =SUM(OFFSET(Inf!$A$10,$H106*12,4*($C$8-1)+1,12,1)) -> 6.290102 | R106: 6.75 | S106: =IF(OR(LEFT($B$8,1)="E",LEFT($B$8,1)="S",LEFT($B$8,1)="C"),#N/A,VLOOKUP($R106,Inf!$A$10:$AG$2410,4*($C$8-1)+3)) ->  | T106: =IF(OR(LEFT($B$8,1)="E",LEFT($B$8,1)="S",LEFT($B$8,1)="C"),#N/A,VLOOKUP($R106,Inf!$A$10:$AG$2410,4*($C$8-1)+4)) ->  | U106: =IF(OR(LEFT($B$8,1)="E",LEFT($B$8,1)="S",LEFT($B$8,1)="C"),#N/A,VLOOKUP($R106,Inf!$A$10:$AG$2410,4*($C$8-1)+5)) ->  | V106: =IF(OR(LEFT($B$8,1)="E",LEFT($B$8,1)="S",LEFT($B$8,1)="C"),#N/A,VLOOKUP($R106,Inf!$A$10:$AG$2410,4*($C$8-1)+2)) -> 
H107: 82 | I107: =SUM(OFFSET(Inf!$A$10,$H107*12,4*($C$8-1)+2,12,1)) -> 3.3662032 | J107: =SUM(OFFSET(Inf!$A$10,$H107*12,4*($C$8-1)+3,12,1)) -> 5.9157333 | K107: =SUM(OFFSET(Inf!$A$10,$H107*12,4*($C$8-1)+4,12,1)) -> 9.897203 | L107: =SUM(OFFSET(Inf!$A$10,$H107*12,4*($C$8-1)+1,12,1)) -> 6.243857 | R107: 6.833333333 | S107: =IF(OR(LEFT($B$8,1)="E",LEFT($B$8,1)="S",LEFT($B$8,1)="C"),#N/A,VLOOKUP($R107,Inf!$A$10:$AG$2410,4*($C$8-1)+3)) ->  | T107: =IF(OR(LEFT($B$8,1)="E",LEFT($B$8,1)="S",LEFT($B$8,1)="C"),#N/A,VLOOKUP($R107,Inf!$A$10:$AG$2410,4*($C$8-1)+4)) ->  | U107: =IF(OR(LEFT($B$8,1)="E",LEFT($B$8,1)="S",LEFT($B$8,1)="C"),#N/A,VLOOKUP($R107,Inf!$A$10:$AG$2410,4*($C$8-1)+5)) ->  | V107: =IF(OR(LEFT($B$8,1)="E",LEFT($B$8,1)="S",LEFT($B$8,1)="C"),#N/A,VLOOKUP($R107,Inf!$A$10:$AG$2410,4*($C$8-1)+2)) -> 
H108: 83 | I108: =SUM(OFFSET(Inf!$A$10,$H108*12,4*($C$8-1)+2,12,1)) -> 3.4473332 | J108: =SUM(OFFSET(Inf!$A$10,$H108*12,4*($C$8-1)+3,12,1)) -> 6.1026833 | K108: =SUM(OFFSET(Inf!$A$10,$H108*12,4*($C$8-1)+4,12,1)) -> 10.026064 | L108: =SUM(OFFSET(Inf!$A$10,$H108*12,4*($C$8-1)+1,12,1)) -> 6.412798 | R108: 6.916666667 | S108: =IF(OR(LEFT($B$8,1)="E",LEFT($B$8,1)="S",LEFT($B$8,1)="C"),#N/A,VLOOKUP($R108,Inf!$A$10:$AG$2410,4*($C$8-1)+3)) ->  | T108: =IF(OR(LEFT($B$8,1)="E",LEFT($B$8,1)="S",LEFT($B$8,1)="C"),#N/A,VLOOKUP($R108,Inf!$A$10:$AG$2410,4*($C$8-1)+4)) ->  | U108: =IF(OR(LEFT($B$8,1)="E",LEFT($B$8,1)="S",LEFT($B$8,1)="C"),#N/A,VLOOKUP($R108,Inf!$A$10:$AG$2410,4*($C$8-1)+5)) ->  | V108: =IF(OR(LEFT($B$8,1)="E",LEFT($B$8,1)="S",LEFT($B$8,1)="C"),#N/A,VLOOKUP($R108,Inf!$A$10:$AG$2410,4*($C$8-1)+2)) -> 
H109: 84 | I109: =SUM(OFFSET(Inf!$A$10,$H109*12,4*($C$8-1)+2,12,1)) -> 3.2752752 | J109: =SUM(OFFSET(Inf!$A$10,$H109*12,4*($C$8-1)+3,12,1)) -> 6.2084733 | K109: =SUM(OFFSET(Inf!$A$10,$H109*12,4*($C$8-1)+4,12,1)) -> 10.000331 | L109: =SUM(OFFSET(Inf!$A$10,$H109*12,4*($C$8-1)+1,12,1)) -> 6.422555 | R109: 7 | S109: =IF(OR(LEFT($B$8,1)="E",LEFT($B$8,1)="S",LEFT($B$8,1)="C"),#N/A,VLOOKUP($R109,Inf!$A$10:$AG$2410,4*($C$8-1)+3)) ->  | T109: =IF(OR(LEFT($B$8,1)="E",LEFT($B$8,1)="S",LEFT($B$8,1)="C"),#N/A,VLOOKUP($R109,Inf!$A$10:$AG$2410,4*($C$8-1)+4)) ->  | U109: =IF(OR(LEFT($B$8,1)="E",LEFT($B$8,1)="S",LEFT($B$8,1)="C"),#N/A,VLOOKUP($R109,Inf!$A$10:$AG$2410,4*($C$8-1)+5)) ->  | V109: =IF(OR(LEFT($B$8,1)="E",LEFT($B$8,1)="S",LEFT($B$8,1)="C"),#N/A,VLOOKUP($R109,Inf!$A$10:$AG$2410,4*($C$8-1)+2)) -> 
H110: 85 | I110: =SUM(OFFSET(Inf!$A$10,$H110*12,4*($C$8-1)+2,12,1)) -> 3.5021232 | J110: =SUM(OFFSET(Inf!$A$10,$H110*12,4*($C$8-1)+3,12,1)) -> 5.9403833 | K110: =SUM(OFFSET(Inf!$A$10,$H110*12,4*($C$8-1)+4,12,1)) -> 9.902005 | L110: =SUM(OFFSET(Inf!$A$10,$H110*12,4*($C$8-1)+1,12,1)) -> 6.318734 | R110: 7.083333333 | S110: =IF(OR(LEFT($B$8,1)="C"),#N/A,VLOOKUP($R110,Inf!$A$10:$AG$2410,4*($C$8-1)+3)) -> 0.44102 | T110: =IF(OR(LEFT($B$8,1)="C"),#N/A,VLOOKUP($R110,Inf!$A$10:$AG$2410,4*($C$8-1)+4)) -> 0.55387 | U110: =IF(OR(LEFT($B$8,1)="C"),#N/A,VLOOKUP($R110,Inf!$A$10:$AG$2410,4*($C$8-1)+5)) -> 0.68363 | V110: =IF(OR(LEFT($B$8,1)="C"),#N/A,VLOOKUP($R110,Inf!$A$10:$AG$2410,4*($C$8-1)+2)) -> 0.56066
H111: 86 | I111: =SUM(OFFSET(Inf!$A$10,$H111*12,4*($C$8-1)+2,12,1)) -> 3.2713832 | J111: =SUM(OFFSET(Inf!$A$10,$H111*12,4*($C$8-1)+3,12,1)) -> 5.9250633 | K111: =SUM(OFFSET(Inf!$A$10,$H111*12,4*($C$8-1)+4,12,1)) -> 9.738529 | L111: =SUM(OFFSET(Inf!$A$10,$H111*12,4*($C$8-1)+1,12,1)) -> 6.215575 | R111: 7.166666667 | S111: =IF(OR(LEFT($B$8,1)="C"),#N/A,VLOOKUP($R111,Inf!$A$10:$AG$2410,4*($C$8-1)+3)) -> 0.44102 | T111: =IF(OR(LEFT($B$8,1)="C"),#N/A,VLOOKUP($R111,Inf!$A$10:$AG$2410,4*($C$8-1)+4)) -> 0.55387 | U111: =IF(OR(LEFT($B$8,1)="C"),#N/A,VLOOKUP($R111,Inf!$A$10:$AG$2410,4*($C$8-1)+5)) -> 0.68363 | V111: =IF(OR(LEFT($B$8,1)="C"),#N/A,VLOOKUP($R111,Inf!$A$10:$AG$2410,4*($C$8-1)+2)) -> 0.56066
H112: 87 | I112: =SUM(OFFSET(Inf!$A$10,$H112*12,4*($C$8-1)+2,12,1)) -> 3.1300812 | J112: =SUM(OFFSET(Inf!$A$10,$H112*12,4*($C$8-1)+3,12,1)) -> 5.7948633 | K112: =SUM(OFFSET(Inf!$A$10,$H112*12,4*($C$8-1)+4,12,1)) -> 9.777423 | L112: =SUM(OFFSET(Inf!$A$10,$H112*12,4*($C$8-1)+1,12,1)) -> 6.200739 | R112: 7.25 | S112: =IF(OR(LEFT($B$8,1)="C"),#N/A,VLOOKUP($R112,Inf!$A$10:$AG$2410,4*($C$8-1)+3)) -> 0.10379 | T112: =IF(OR(LEFT($B$8,1)="C"),#N/A,VLOOKUP($R112,Inf!$A$10:$AG$2410,4*($C$8-1)+4)) -> 0.21043 | U112: =IF(OR(LEFT($B$8,1)="C"),#N/A,VLOOKUP($R112,Inf!$A$10:$AG$2410,4*($C$8-1)+5)) -> 0.34693 | V112: =IF(OR(LEFT($B$8,1)="C"),#N/A,VLOOKUP($R112,Inf!$A$10:$AG$2410,4*($C$8-1)+2)) -> 0.21733
H113: 88 | I113: =SUM(OFFSET(Inf!$A$10,$H113*12,4*($C$8-1)+2,12,1)) -> 3.2137222 | J113: =SUM(OFFSET(Inf!$A$10,$H113*12,4*($C$8-1)+3,12,1)) -> 6.1317333 | K113: =SUM(OFFSET(Inf!$A$10,$H113*12,4*($C$8-1)+4,12,1)) -> 9.888291 | L113: =SUM(OFFSET(Inf!$A$10,$H113*12,4*($C$8-1)+1,12,1)) -> 6.326199 | R113: 7.333333333 | S113: =IF(OR(LEFT($B$8,1)="C"),#N/A,VLOOKUP($R113,Inf!$A$10:$AG$2410,4*($C$8-1)+3)) -> 0.0083333 | T113: =IF(OR(LEFT($B$8,1)="C"),#N/A,VLOOKUP($R113,Inf!$A$10:$AG$2410,4*($C$8-1)+4)) -> 0.19891 | U113: =IF(OR(LEFT($B$8,1)="C"),#N/A,VLOOKUP($R113,Inf!$A$10:$AG$2410,4*($C$8-1)+5)) -> 0.66463 | V113: =IF(OR(LEFT($B$8,1)="C"),#N/A,VLOOKUP($R113,Inf!$A$10:$AG$2410,4*($C$8-1)+2)) -> 0.26639
H114: 89 | I114: =SUM(OFFSET(Inf!$A$10,$H114*12,4*($C$8-1)+2,12,1)) -> 3.2799092 | J114: =SUM(OFFSET(Inf!$A$10,$H114*12,4*($C$8-1)+3,12,1)) -> 5.8392333 | K114: =SUM(OFFSET(Inf!$A$10,$H114*12,4*($C$8-1)+4,12,1)) -> 9.843894 | L114: =SUM(OFFSET(Inf!$A$10,$H114*12,4*($C$8-1)+1,12,1)) -> 6.214957 | R114: 7.416666667 | S114: =IF(OR(LEFT($B$8,1)="C"),#N/A,VLOOKUP($R114,Inf!$A$10:$AG$2410,4*($C$8-1)+3)) -> 0.0083333 | T114: =IF(OR(LEFT($B$8,1)="C"),#N/A,VLOOKUP($R114,Inf!$A$10:$AG$2410,4*($C$8-1)+4)) -> 0.19891 | U114: =IF(OR(LEFT($B$8,1)="C"),#N/A,VLOOKUP($R114,Inf!$A$10:$AG$2410,4*($C$8-1)+5)) -> 0.66463 | V114: =IF(OR(LEFT($B$8,1)="C"),#N/A,VLOOKUP($R114,Inf!$A$10:$AG$2410,4*($C$8-1)+2)) -> 0.26639
H115: 90 | I115: =SUM(OFFSET(Inf!$A$10,$H115*12,4*($C$8-1)+2,12,1)) -> 3.1419522 | J115: =SUM(OFFSET(Inf!$A$10,$H115*12,4*($C$8-1)+3,12,1)) -> 5.8010233 | K115: =SUM(OFFSET(Inf!$A$10,$H115*12,4*($C$8-1)+4,12,1)) -> 9.758513 | L115: =SUM(OFFSET(Inf!$A$10,$H115*12,4*($C$8-1)+1,12,1)) -> 6.16853 | R115: 7.5 | S115: =IF(OR(LEFT($B$8,1)="C"),#N/A,VLOOKUP($R115,Inf!$A$10:$AG$2410,4*($C$8-1)+3)) -> 0.36836 | T115: =IF(OR(LEFT($B$8,1)="C"),#N/A,VLOOKUP($R115,Inf!$A$10:$AG$2410,4*($C$8-1)+4)) -> 0.84577 | U115: =IF(OR(LEFT($B$8,1)="C"),#N/A,VLOOKUP($R115,Inf!$A$10:$AG$2410,4*($C$8-1)+5)) -> 1.4285 | V115: =IF(OR(LEFT($B$8,1)="C"),#N/A,VLOOKUP($R115,Inf!$A$10:$AG$2410,4*($C$8-1)+2)) -> 0.87279
H116: 91 | I116: =SUM(OFFSET(Inf!$A$10,$H116*12,4*($C$8-1)+2,12,1)) -> 3.3295232 | J116: =SUM(OFFSET(Inf!$A$10,$H116*12,4*($C$8-1)+3,12,1)) -> 5.8675933 | K116: =SUM(OFFSET(Inf!$A$10,$H116*12,4*($C$8-1)+4,12,1)) -> 9.629898 | L116: =SUM(OFFSET(Inf!$A$10,$H116*12,4*($C$8-1)+1,12,1)) -> 6.174972 | R116: 7.583333333 | S116: =IF(OR(LEFT($B$8,1)="C"),#N/A,VLOOKUP($R116,Inf!$A$10:$AG$2410,4*($C$8-1)+3)) -> 0.0083333 | T116: =IF(OR(LEFT($B$8,1)="C"),#N/A,VLOOKUP($R116,Inf!$A$10:$AG$2410,4*($C$8-1)+4)) -> 0.21059 | U116: =IF(OR(LEFT($B$8,1)="C"),#N/A,VLOOKUP($R116,Inf!$A$10:$AG$2410,4*($C$8-1)+5)) -> 0.77164 | V116: =IF(OR(LEFT($B$8,1)="C"),#N/A,VLOOKUP($R116,Inf!$A$10:$AG$2410,4*($C$8-1)+2)) -> 0.30205
H117: 92 | I117: =SUM(OFFSET(Inf!$A$10,$H117*12,4*($C$8-1)+2,12,1)) -> 3.4426132 | J117: =SUM(OFFSET(Inf!$A$10,$H117*12,4*($C$8-1)+3,12,1)) -> 5.8043033 | K117: =SUM(OFFSET(Inf!$A$10,$H117*12,4*($C$8-1)+4,12,1)) -> 9.667946 | L117: =SUM(OFFSET(Inf!$A$10,$H117*12,4*($C$8-1)+1,12,1)) -> 6.208995 | R117: 7.666666667 | S117: =IF(OR(LEFT($B$8,1)="C"),#N/A,VLOOKUP($R117,Inf!$A$10:$AG$2410,4*($C$8-1)+3)) -> 0.0083333 | T117: =IF(OR(LEFT($B$8,1)="C"),#N/A,VLOOKUP($R117,Inf!$A$10:$AG$2410,4*($C$8-1)+4)) -> 0.21059 | U117: =IF(OR(LEFT($B$8,1)="C"),#N/A,VLOOKUP($R117,Inf!$A$10:$AG$2410,4*($C$8-1)+5)) -> 0.77164 | V117: =IF(OR(LEFT($B$8,1)="C"),#N/A,VLOOKUP($R117,Inf!$A$10:$AG$2410,4*($C$8-1)+2)) -> 0.30205
H118: 93 | I118: =SUM(OFFSET(Inf!$A$10,$H118*12,4*($C$8-1)+2,12,1)) -> 3.1906892 | J118: =SUM(OFFSET(Inf!$A$10,$H118*12,4*($C$8-1)+3,12,1)) -> 6.0118733 | K118: =SUM(OFFSET(Inf!$A$10,$H118*12,4*($C$8-1)+4,12,1)) -> 9.98622 | L118: =SUM(OFFSET(Inf!$A$10,$H118*12,4*($C$8-1)+1,12,1)) -> 6.357869 | R118: 7.75 | S118: =IF(OR(LEFT($B$8,1)="C"),#N/A,VLOOKUP($R118,Inf!$A$10:$AG$2410,4*($C$8-1)+3)) -> 0.44455 | T118: =IF(OR(LEFT($B$8,1)="C"),#N/A,VLOOKUP($R118,Inf!$A$10:$AG$2410,4*($C$8-1)+4)) -> 0.87783 | U118: =IF(OR(LEFT($B$8,1)="C"),#N/A,VLOOKUP($R118,Inf!$A$10:$AG$2410,4*($C$8-1)+5)) -> 1.4339 | V118: =IF(OR(LEFT($B$8,1)="C"),#N/A,VLOOKUP($R118,Inf!$A$10:$AG$2410,4*($C$8-1)+2)) -> 0.90493
H119: 94 | I119: =SUM(OFFSET(Inf!$A$10,$H119*12,4*($C$8-1)+2,12,1)) -> 3.5147932 | J119: =SUM(OFFSET(Inf!$A$10,$H119*12,4*($C$8-1)+3,12,1)) -> 5.9531833 | K119: =SUM(OFFSET(Inf!$A$10,$H119*12,4*($C$8-1)+4,12,1)) -> 9.364682 | L119: =SUM(OFFSET(Inf!$A$10,$H119*12,4*($C$8-1)+1,12,1)) -> 6.230992 | R119: 7.833333333 | S119: =IF(OR(LEFT($B$8,1)="C"),#N/A,VLOOKUP($R119,Inf!$A$10:$AG$2410,4*($C$8-1)+3)) -> 0.39571 | T119: =IF(OR(LEFT($B$8,1)="C"),#N/A,VLOOKUP($R119,Inf!$A$10:$AG$2410,4*($C$8-1)+4)) -> 0.56248 | U119: =IF(OR(LEFT($B$8,1)="C"),#N/A,VLOOKUP($R119,Inf!$A$10:$AG$2410,4*($C$8-1)+5)) -> 0.78634 | V119: =IF(OR(LEFT($B$8,1)="C"),#N/A,VLOOKUP($R119,Inf!$A$10:$AG$2410,4*($C$8-1)+2)) -> 0.58176
H120: 95 | I120: =SUM(OFFSET(Inf!$A$10,$H120*12,4*($C$8-1)+2,12,1)) -> 3.2417552 | J120: =SUM(OFFSET(Inf!$A$10,$H120*12,4*($C$8-1)+3,12,1)) -> 5.9304233 | K120: =SUM(OFFSET(Inf!$A$10,$H120*12,4*($C$8-1)+4,12,1)) -> 9.916048 | L120: =SUM(OFFSET(Inf!$A$10,$H120*12,4*($C$8-1)+1,12,1)) -> 6.217093 | R120: 7.916666667 | S120: =IF(OR(LEFT($B$8,1)="C"),#N/A,VLOOKUP($R120,Inf!$A$10:$AG$2410,4*($C$8-1)+3)) -> 0.39571 | T120: =IF(OR(LEFT($B$8,1)="C"),#N/A,VLOOKUP($R120,Inf!$A$10:$AG$2410,4*($C$8-1)+4)) -> 0.56248 | U120: =IF(OR(LEFT($B$8,1)="C"),#N/A,VLOOKUP($R120,Inf!$A$10:$AG$2410,4*($C$8-1)+5)) -> 0.78634 | V120: =IF(OR(LEFT($B$8,1)="C"),#N/A,VLOOKUP($R120,Inf!$A$10:$AG$2410,4*($C$8-1)+2)) -> 0.58176
H121: 96 | I121: =SUM(OFFSET(Inf!$A$10,$H121*12,4*($C$8-1)+2,12,1)) -> 3.2803432 | J121: =SUM(OFFSET(Inf!$A$10,$H121*12,4*($C$8-1)+3,12,1)) -> 6.0556633 | K121: =SUM(OFFSET(Inf!$A$10,$H121*12,4*($C$8-1)+4,12,1)) -> 9.813722 | L121: =SUM(OFFSET(Inf!$A$10,$H121*12,4*($C$8-1)+1,12,1)) -> 6.270181 | R121: 8 | S121: =IF(OR(LEFT($B$8,1)="C"),#N/A,VLOOKUP($R121,Inf!$A$10:$AG$2410,4*($C$8-1)+3)) -> 0.65194 | T121: =IF(OR(LEFT($B$8,1)="C"),#N/A,VLOOKUP($R121,Inf!$A$10:$AG$2410,4*($C$8-1)+4)) -> 0.81877 | U121: =IF(OR(LEFT($B$8,1)="C"),#N/A,VLOOKUP($R121,Inf!$A$10:$AG$2410,4*($C$8-1)+5)) -> 1.0106 | V121: =IF(OR(LEFT($B$8,1)="C"),#N/A,VLOOKUP($R121,Inf!$A$10:$AG$2410,4*($C$8-1)+2)) -> 0.8288
H122: 97 | I122: =SUM(OFFSET(Inf!$A$10,$H122*12,4*($C$8-1)+2,12,1)) -> 3.2731872 | J122: =SUM(OFFSET(Inf!$A$10,$H122*12,4*($C$8-1)+3,12,1)) -> 6.0596033 | K122: =SUM(OFFSET(Inf!$A$10,$H122*12,4*($C$8-1)+4,12,1)) -> 9.932309 | L122: =SUM(OFFSET(Inf!$A$10,$H122*12,4*($C$8-1)+1,12,1)) -> 6.322143 | R122: 8.083333333 | S122: =IF(OR(LEFT($B$8,1)="C"),#N/A,VLOOKUP($R122,Inf!$A$10:$AG$2410,4*($C$8-1)+3)) -> 0.44944 | T122: =IF(OR(LEFT($B$8,1)="C"),#N/A,VLOOKUP($R122,Inf!$A$10:$AG$2410,4*($C$8-1)+4)) -> 0.56326 | U122: =IF(OR(LEFT($B$8,1)="C"),#N/A,VLOOKUP($R122,Inf!$A$10:$AG$2410,4*($C$8-1)+5)) -> 0.66983 | V122: =IF(OR(LEFT($B$8,1)="C"),#N/A,VLOOKUP($R122,Inf!$A$10:$AG$2410,4*($C$8-1)+2)) -> 0.56034
H123: 98 | I123: =SUM(OFFSET(Inf!$A$10,$H123*12,4*($C$8-1)+2,12,1)) -> 3.3414232 | J123: =SUM(OFFSET(Inf!$A$10,$H123*12,4*($C$8-1)+3,12,1)) -> 6.0719933 | K123: =SUM(OFFSET(Inf!$A$10,$H123*12,4*($C$8-1)+4,12,1)) -> 10.139615 | L123: =SUM(OFFSET(Inf!$A$10,$H123*12,4*($C$8-1)+1,12,1)) -> 6.400832 | R123: 8.166666667 | S123: =IF(OR(LEFT($B$8,1)="C"),#N/A,VLOOKUP($R123,Inf!$A$10:$AG$2410,4*($C$8-1)+3)) -> 0.44944 | T123: =IF(OR(LEFT($B$8,1)="C"),#N/A,VLOOKUP($R123,Inf!$A$10:$AG$2410,4*($C$8-1)+4)) -> 0.56326 | U123: =IF(OR(LEFT($B$8,1)="C"),#N/A,VLOOKUP($R123,Inf!$A$10:$AG$2410,4*($C$8-1)+5)) -> 0.66983 | V123: =IF(OR(LEFT($B$8,1)="C"),#N/A,VLOOKUP($R123,Inf!$A$10:$AG$2410,4*($C$8-1)+2)) -> 0.56034
H124: 99 | I124: =SUM(OFFSET(Inf!$A$10,$H124*12,4*($C$8-1)+2,12,1)) -> 3.3236332 | J124: =SUM(OFFSET(Inf!$A$10,$H124*12,4*($C$8-1)+3,12,1)) -> 5.9802133 | K124: =SUM(OFFSET(Inf!$A$10,$H124*12,4*($C$8-1)+4,12,1)) -> 9.91588 | L124: =SUM(OFFSET(Inf!$A$10,$H124*12,4*($C$8-1)+1,12,1)) -> 6.334409 | R124: 8.25 | S124: =IF(OR(LEFT($B$8,1)="C"),#N/A,VLOOKUP($R124,Inf!$A$10:$AG$2410,4*($C$8-1)+3)) -> 0.097686 | T124: =IF(OR(LEFT($B$8,1)="C"),#N/A,VLOOKUP($R124,Inf!$A$10:$AG$2410,4*($C$8-1)+4)) -> 0.21308 | U124: =IF(OR(LEFT($B$8,1)="C"),#N/A,VLOOKUP($R124,Inf!$A$10:$AG$2410,4*($C$8-1)+5)) -> 0.3362 | V124: =IF(OR(LEFT($B$8,1)="C"),#N/A,VLOOKUP($R124,Inf!$A$10:$AG$2410,4*($C$8-1)+2)) -> 0.21502
H125: 100 | I125: =SUM(OFFSET(Inf!$A$10,$H125*12,4*($C$8-1)+2,12,1)) -> 3.1847402 | J125: =SUM(OFFSET(Inf!$A$10,$H125*12,4*($C$8-1)+3,12,1)) -> 5.7744233 | K125: =SUM(OFFSET(Inf!$A$10,$H125*12,4*($C$8-1)+4,12,1)) -> 9.815323 | L125: =SUM(OFFSET(Inf!$A$10,$H125*12,4*($C$8-1)+1,12,1)) -> 6.151329 | R125: 8.333333333 | S125: =IF(OR(LEFT($B$8,1)="C"),#N/A,VLOOKUP($R125,Inf!$A$10:$AG$2410,4*($C$8-1)+3)) -> 0.0083333 | T125: =IF(OR(LEFT($B$8,1)="C"),#N/A,VLOOKUP($R125,Inf!$A$10:$AG$2410,4*($C$8-1)+4)) -> 0.1893 | U125: =IF(OR(LEFT($B$8,1)="C"),#N/A,VLOOKUP($R125,Inf!$A$10:$AG$2410,4*($C$8-1)+5)) -> 0.62036 | V125: =IF(OR(LEFT($B$8,1)="C"),#N/A,VLOOKUP($R125,Inf!$A$10:$AG$2410,4*($C$8-1)+2)) -> 0.25455
H126: 101 | I126: =SUM(OFFSET(Inf!$A$10,$H126*12,4*($C$8-1)+2,12,1)) -> 3.4577632 | J126: =SUM(OFFSET(Inf!$A$10,$H126*12,4*($C$8-1)+3,12,1)) -> 6.0351633 | K126: =SUM(OFFSET(Inf!$A$10,$H126*12,4*($C$8-1)+4,12,1)) -> 10.051567 | L126: =SUM(OFFSET(Inf!$A$10,$H126*12,4*($C$8-1)+1,12,1)) -> 6.422158 | R126: 8.416666667 | S126: =IF(OR(LEFT($B$8,1)="C"),#N/A,VLOOKUP($R126,Inf!$A$10:$AG$2410,4*($C$8-1)+3)) -> 0.0083333 | T126: =IF(OR(LEFT($B$8,1)="C"),#N/A,VLOOKUP($R126,Inf!$A$10:$AG$2410,4*($C$8-1)+4)) -> 0.1893 | U126: =IF(OR(LEFT($B$8,1)="C"),#N/A,VLOOKUP($R126,Inf!$A$10:$AG$2410,4*($C$8-1)+5)) -> 0.62036 | V126: =IF(OR(LEFT($B$8,1)="C"),#N/A,VLOOKUP($R126,Inf!$A$10:$AG$2410,4*($C$8-1)+2)) -> 0.25455
H127: 102 | I127: =SUM(OFFSET(Inf!$A$10,$H127*12,4*($C$8-1)+2,12,1)) -> 3.3336432 | J127: =SUM(OFFSET(Inf!$A$10,$H127*12,4*($C$8-1)+3,12,1)) -> 6.1401933 | K127: =SUM(OFFSET(Inf!$A$10,$H127*12,4*($C$8-1)+4,12,1)) -> 10.14951 | L127: =SUM(OFFSET(Inf!$A$10,$H127*12,4*($C$8-1)+1,12,1)) -> 6.472944 | R127: 8.5 | S127: =IF(OR(LEFT($B$8,1)="C"),#N/A,VLOOKUP($R127,Inf!$A$10:$AG$2410,4*($C$8-1)+3)) -> 0.35382 | T127: =IF(OR(LEFT($B$8,1)="C"),#N/A,VLOOKUP($R127,Inf!$A$10:$AG$2410,4*($C$8-1)+4)) -> 0.85168 | U127: =IF(OR(LEFT($B$8,1)="C"),#N/A,VLOOKUP($R127,Inf!$A$10:$AG$2410,4*($C$8-1)+5)) -> 1.378 | V127: =IF(OR(LEFT($B$8,1)="C"),#N/A,VLOOKUP($R127,Inf!$A$10:$AG$2410,4*($C$8-1)+2)) -> 0.86268
H128: 103 | I128: =SUM(OFFSET(Inf!$A$10,$H128*12,4*($C$8-1)+2,12,1)) -> 3.3447132 | J128: =SUM(OFFSET(Inf!$A$10,$H128*12,4*($C$8-1)+3,12,1)) -> 6.1562533 | K128: =SUM(OFFSET(Inf!$A$10,$H128*12,4*($C$8-1)+4,12,1)) -> 10.075642 | L128: =SUM(OFFSET(Inf!$A$10,$H128*12,4*($C$8-1)+1,12,1)) -> 6.421786 | R128: 8.583333333 | S128: =IF(OR(LEFT($B$8,1)="C"),#N/A,VLOOKUP($R128,Inf!$A$10:$AG$2410,4*($C$8-1)+3)) -> 0.0083333 | T128: =IF(OR(LEFT($B$8,1)="C"),#N/A,VLOOKUP($R128,Inf!$A$10:$AG$2410,4*($C$8-1)+4)) -> 0.20535 | U128: =IF(OR(LEFT($B$8,1)="C"),#N/A,VLOOKUP($R128,Inf!$A$10:$AG$2410,4*($C$8-1)+5)) -> 0.7207 | V128: =IF(OR(LEFT($B$8,1)="C"),#N/A,VLOOKUP($R128,Inf!$A$10:$AG$2410,4*($C$8-1)+2)) -> 0.28764
H129: 104 | I129: =SUM(OFFSET(Inf!$A$10,$H129*12,4*($C$8-1)+2,12,1)) -> 3.2257502 | J129: =SUM(OFFSET(Inf!$A$10,$H129*12,4*($C$8-1)+3,12,1)) -> 5.9385433 | K129: =SUM(OFFSET(Inf!$A$10,$H129*12,4*($C$8-1)+4,12,1)) -> 9.552034 | L129: =SUM(OFFSET(Inf!$A$10,$H129*12,4*($C$8-1)+1,12,1)) -> 6.212087 | R129: 8.666666667 | S129: =IF(OR(LEFT($B$8,1)="C"),#N/A,VLOOKUP($R129,Inf!$A$10:$AG$2410,4*($C$8-1)+3)) -> 0.0083333 | T129: =IF(OR(LEFT($B$8,1)="C"),#N/A,VLOOKUP($R129,Inf!$A$10:$AG$2410,4*($C$8-1)+4)) -> 0.20535 | U129: =IF(OR(LEFT($B$8,1)="C"),#N/A,VLOOKUP($R129,Inf!$A$10:$AG$2410,4*($C$8-1)+5)) -> 0.7207 | V129: =IF(OR(LEFT($B$8,1)="C"),#N/A,VLOOKUP($R129,Inf!$A$10:$AG$2410,4*($C$8-1)+2)) -> 0.28764
H130: 105 | I130: =SUM(OFFSET(Inf!$A$10,$H130*12,4*($C$8-1)+2,12,1)) -> 3.1340292 | J130: =SUM(OFFSET(Inf!$A$10,$H130*12,4*($C$8-1)+3,12,1)) -> 5.8929233 | K130: =SUM(OFFSET(Inf!$A$10,$H130*12,4*($C$8-1)+4,12,1)) -> 9.783826 | L130: =SUM(OFFSET(Inf!$A$10,$H130*12,4*($C$8-1)+1,12,1)) -> 6.270556 | R130: 8.75 | S130: =IF(OR(LEFT($B$8,1)="C"),#N/A,VLOOKUP($R130,Inf!$A$10:$AG$2410,4*($C$8-1)+3)) -> 0.41716 | T130: =IF(OR(LEFT($B$8,1)="C"),#N/A,VLOOKUP($R130,Inf!$A$10:$AG$2410,4*($C$8-1)+4)) -> 0.88526 | U130: =IF(OR(LEFT($B$8,1)="C"),#N/A,VLOOKUP($R130,Inf!$A$10:$AG$2410,4*($C$8-1)+5)) -> 1.393 | V130: =IF(OR(LEFT($B$8,1)="C"),#N/A,VLOOKUP($R130,Inf!$A$10:$AG$2410,4*($C$8-1)+2)) -> 0.89548
H131: 106 | I131: =SUM(OFFSET(Inf!$A$10,$H131*12,4*($C$8-1)+2,12,1)) -> 3.2832082 | J131: =SUM(OFFSET(Inf!$A$10,$H131*12,4*($C$8-1)+3,12,1)) -> 5.7907833 | K131: =SUM(OFFSET(Inf!$A$10,$H131*12,4*($C$8-1)+4,12,1)) -> 9.607718 | L131: =SUM(OFFSET(Inf!$A$10,$H131*12,4*($C$8-1)+1,12,1)) -> 6.141738 | R131: 8.833333333 | S131: =IF(OR(LEFT($B$8,1)="C"),#N/A,VLOOKUP($R131,Inf!$A$10:$AG$2410,4*($C$8-1)+3)) -> 0.388 | T131: =IF(OR(LEFT($B$8,1)="C"),#N/A,VLOOKUP($R131,Inf!$A$10:$AG$2410,4*($C$8-1)+4)) -> 0.57902 | U131: =IF(OR(LEFT($B$8,1)="C"),#N/A,VLOOKUP($R131,Inf!$A$10:$AG$2410,4*($C$8-1)+5)) -> 0.76442 | V131: =IF(OR(LEFT($B$8,1)="C"),#N/A,VLOOKUP($R131,Inf!$A$10:$AG$2410,4*($C$8-1)+2)) -> 0.57882
H132: 107 | I132: =SUM(OFFSET(Inf!$A$10,$H132*12,4*($C$8-1)+2,12,1)) -> 3.4306332 | J132: =SUM(OFFSET(Inf!$A$10,$H132*12,4*($C$8-1)+3,12,1)) -> 6.2315533 | K132: =SUM(OFFSET(Inf!$A$10,$H132*12,4*($C$8-1)+4,12,1)) -> 9.735241 | L132: =SUM(OFFSET(Inf!$A$10,$H132*12,4*($C$8-1)+1,12,1)) -> 6.439952 | R132: 8.916666667 | S132: =IF(OR(LEFT($B$8,1)="C"),#N/A,VLOOKUP($R132,Inf!$A$10:$AG$2410,4*($C$8-1)+3)) -> 0.388 | T132: =IF(OR(LEFT($B$8,1)="C"),#N/A,VLOOKUP($R132,Inf!$A$10:$AG$2410,4*($C$8-1)+4)) -> 0.57902 | U132: =IF(OR(LEFT($B$8,1)="C"),#N/A,VLOOKUP($R132,Inf!$A$10:$AG$2410,4*($C$8-1)+5)) -> 0.76442 | V132: =IF(OR(LEFT($B$8,1)="C"),#N/A,VLOOKUP($R132,Inf!$A$10:$AG$2410,4*($C$8-1)+2)) -> 0.57882
H133: 108 | I133: =SUM(OFFSET(Inf!$A$10,$H133*12,4*($C$8-1)+2,12,1)) -> 3.1939372 | J133: =SUM(OFFSET(Inf!$A$10,$H133*12,4*($C$8-1)+3,12,1)) -> 5.8534633 | K133: =SUM(OFFSET(Inf!$A$10,$H133*12,4*($C$8-1)+4,12,1)) -> 9.523423 | L133: =SUM(OFFSET(Inf!$A$10,$H133*12,4*($C$8-1)+1,12,1)) -> 6.142368 | R133: 9 | S133: =IF(OR(LEFT($B$8,1)="C"),#N/A,VLOOKUP($R133,Inf!$A$10:$AG$2410,4*($C$8-1)+3)) -> 0.66439 | T133: =IF(OR(LEFT($B$8,1)="C"),#N/A,VLOOKUP($R133,Inf!$A$10:$AG$2410,4*($C$8-1)+4)) -> 0.83264 | U133: =IF(OR(LEFT($B$8,1)="C"),#N/A,VLOOKUP($R133,Inf!$A$10:$AG$2410,4*($C$8-1)+5)) -> 0.99019 | V133: =IF(OR(LEFT($B$8,1)="C"),#N/A,VLOOKUP($R133,Inf!$A$10:$AG$2410,4*($C$8-1)+2)) -> 0.82832
H134: 109 | I134: =SUM(OFFSET(Inf!$A$10,$H134*12,4*($C$8-1)+2,12,1)) -> 3.1450712 | J134: =SUM(OFFSET(Inf!$A$10,$H134*12,4*($C$8-1)+3,12,1)) -> 5.7725533 | K134: =SUM(OFFSET(Inf!$A$10,$H134*12,4*($C$8-1)+4,12,1)) -> 9.914816 | L134: =SUM(OFFSET(Inf!$A$10,$H134*12,4*($C$8-1)+1,12,1)) -> 6.194836 | R134: 9.083333333 | S134: =IF(OR(LEFT($B$8,1)="C"),#N/A,VLOOKUP($R134,Inf!$A$10:$AG$2410,4*($C$8-1)+3)) -> 0.44622 | T134: =IF(OR(LEFT($B$8,1)="C"),#N/A,VLOOKUP($R134,Inf!$A$10:$AG$2410,4*($C$8-1)+4)) -> 0.55922 | U134: =IF(OR(LEFT($B$8,1)="C"),#N/A,VLOOKUP($R134,Inf!$A$10:$AG$2410,4*($C$8-1)+5)) -> 0.68375 | V134: =IF(OR(LEFT($B$8,1)="C"),#N/A,VLOOKUP($R134,Inf!$A$10:$AG$2410,4*($C$8-1)+2)) -> 0.56396
H135: 110 | I135: =SUM(OFFSET(Inf!$A$10,$H135*12,4*($C$8-1)+2,12,1)) -> 3.1698782 | J135: =SUM(OFFSET(Inf!$A$10,$H135*12,4*($C$8-1)+3,12,1)) -> 5.8783933 | K135: =SUM(OFFSET(Inf!$A$10,$H135*12,4*($C$8-1)+4,12,1)) -> 9.644239 | L135: =SUM(OFFSET(Inf!$A$10,$H135*12,4*($C$8-1)+1,12,1)) -> 6.207098 | R135: 9.166666667 | S135: =IF(OR(LEFT($B$8,1)="C"),#N/A,VLOOKUP($R135,Inf!$A$10:$AG$2410,4*($C$8-1)+3)) -> 0.44622 | T135: =IF(OR(LEFT($B$8,1)="C"),#N/A,VLOOKUP($R135,Inf!$A$10:$AG$2410,4*($C$8-1)+4)) -> 0.55922 | U135: =IF(OR(LEFT($B$8,1)="C"),#N/A,VLOOKUP($R135,Inf!$A$10:$AG$2410,4*($C$8-1)+5)) -> 0.68375 | V135: =IF(OR(LEFT($B$8,1)="C"),#N/A,VLOOKUP($R135,Inf!$A$10:$AG$2410,4*($C$8-1)+2)) -> 0.56396
H136: 111 | I136: =SUM(OFFSET(Inf!$A$10,$H136*12,4*($C$8-1)+2,12,1)) -> 3.4050732 | J136: =SUM(OFFSET(Inf!$A$10,$H136*12,4*($C$8-1)+3,12,1)) -> 5.9580333 | K136: =SUM(OFFSET(Inf!$A$10,$H136*12,4*($C$8-1)+4,12,1)) -> 9.425589 | L136: =SUM(OFFSET(Inf!$A$10,$H136*12,4*($C$8-1)+1,12,1)) -> 6.230355 | R136: 9.25 | S136: =IF(OR(LEFT($B$8,1)="C"),#N/A,VLOOKUP($R136,Inf!$A$10:$AG$2410,4*($C$8-1)+3)) -> 0.10342 | T136: =IF(OR(LEFT($B$8,1)="C"),#N/A,VLOOKUP($R136,Inf!$A$10:$AG$2410,4*($C$8-1)+4)) -> 0.21962 | U136: =IF(OR(LEFT($B$8,1)="C"),#N/A,VLOOKUP($R136,Inf!$A$10:$AG$2410,4*($C$8-1)+5)) -> 0.34259 | V136: =IF(OR(LEFT($B$8,1)="C"),#N/A,VLOOKUP($R136,Inf!$A$10:$AG$2410,4*($C$8-1)+2)) -> 0.22078
H137: 112 | I137: =SUM(OFFSET(Inf!$A$10,$H137*12,4*($C$8-1)+2,12,1)) -> 3.1861992 | J137: =SUM(OFFSET(Inf!$A$10,$H137*12,4*($C$8-1)+3,12,1)) -> 5.8551633 | K137: =SUM(OFFSET(Inf!$A$10,$H137*12,4*($C$8-1)+4,12,1)) -> 9.707002 | L137: =SUM(OFFSET(Inf!$A$10,$H137*12,4*($C$8-1)+1,12,1)) -> 6.179661 | R137: 9.333333333 | S137: =IF(OR(LEFT($B$8,1)="C"),#N/A,VLOOKUP($R137,Inf!$A$10:$AG$2410,4*($C$8-1)+3)) -> 0.0083333 | T137: =IF(OR(LEFT($B$8,1)="C"),#N/A,VLOOKUP($R137,Inf!$A$10:$AG$2410,4*($C$8-1)+4)) -> 0.22202 | U137: =IF(OR(LEFT($B$8,1)="C"),#N/A,VLOOKUP($R137,Inf!$A$10:$AG$2410,4*($C$8-1)+5)) -> 0.63423 | V137: =IF(OR(LEFT($B$8,1)="C"),#N/A,VLOOKUP($R137,Inf!$A$10:$AG$2410,4*($C$8-1)+2)) -> 0.27389
H138: 113 | I138: =SUM(OFFSET(Inf!$A$10,$H138*12,4*($C$8-1)+2,12,1)) -> 3.3726632 | J138: =SUM(OFFSET(Inf!$A$10,$H138*12,4*($C$8-1)+3,12,1)) -> 5.7196333 | K138: =SUM(OFFSET(Inf!$A$10,$H138*12,4*($C$8-1)+4,12,1)) -> 9.648385 | L138: =SUM(OFFSET(Inf!$A$10,$H138*12,4*($C$8-1)+1,12,1)) -> 6.163501 | R138: 9.416666667 | S138: =IF(OR(LEFT($B$8,1)="C"),#N/A,VLOOKUP($R138,Inf!$A$10:$AG$2410,4*($C$8-1)+3)) -> 0.0083333 | T138: =IF(OR(LEFT($B$8,1)="C"),#N/A,VLOOKUP($R138,Inf!$A$10:$AG$2410,4*($C$8-1)+4)) -> 0.22202 | U138: =IF(OR(LEFT($B$8,1)="C"),#N/A,VLOOKUP($R138,Inf!$A$10:$AG$2410,4*($C$8-1)+5)) -> 0.63423 | V138: =IF(OR(LEFT($B$8,1)="C"),#N/A,VLOOKUP($R138,Inf!$A$10:$AG$2410,4*($C$8-1)+2)) -> 0.27389
H139: 114 | I139: =SUM(OFFSET(Inf!$A$10,$H139*12,4*($C$8-1)+2,12,1)) -> 3.3050552 | J139: =SUM(OFFSET(Inf!$A$10,$H139*12,4*($C$8-1)+3,12,1)) -> 6.0127733 | K139: =SUM(OFFSET(Inf!$A$10,$H139*12,4*($C$8-1)+4,12,1)) -> 9.937538 | L139: =SUM(OFFSET(Inf!$A$10,$H139*12,4*($C$8-1)+1,12,1)) -> 6.388356 | R139: 9.5 | S139: =IF(OR(LEFT($B$8,1)="C"),#N/A,VLOOKUP($R139,Inf!$A$10:$AG$2410,4*($C$8-1)+3)) -> 0.38954 | T139: =IF(OR(LEFT($B$8,1)="C"),#N/A,VLOOKUP($R139,Inf!$A$10:$AG$2410,4*($C$8-1)+4)) -> 0.88196 | U139: =IF(OR(LEFT($B$8,1)="C"),#N/A,VLOOKUP($R139,Inf!$A$10:$AG$2410,4*($C$8-1)+5)) -> 1.4045 | V139: =IF(OR(LEFT($B$8,1)="C"),#N/A,VLOOKUP($R139,Inf!$A$10:$AG$2410,4*($C$8-1)+2)) -> 0.88714
H140: 115 | I140: =SUM(OFFSET(Inf!$A$10,$H140*12,4*($C$8-1)+2,12,1)) -> 3.1037462 | J140: =SUM(OFFSET(Inf!$A$10,$H140*12,4*($C$8-1)+3,12,1)) -> 5.7215033 | K140: =SUM(OFFSET(Inf!$A$10,$H140*12,4*($C$8-1)+4,12,1)) -> 9.640517 | L140: =SUM(OFFSET(Inf!$A$10,$H140*12,4*($C$8-1)+1,12,1)) -> 6.08291 | R140: 9.583333333 | S140: =IF(OR(LEFT($B$8,1)="C"),#N/A,VLOOKUP($R140,Inf!$A$10:$AG$2410,4*($C$8-1)+3)) -> 0.0083333 | T140: =IF(OR(LEFT($B$8,1)="C"),#N/A,VLOOKUP($R140,Inf!$A$10:$AG$2410,4*($C$8-1)+4)) -> 0.2413 | U140: =IF(OR(LEFT($B$8,1)="C"),#N/A,VLOOKUP($R140,Inf!$A$10:$AG$2410,4*($C$8-1)+5)) -> 0.73864 | V140: =IF(OR(LEFT($B$8,1)="C"),#N/A,VLOOKUP($R140,Inf!$A$10:$AG$2410,4*($C$8-1)+2)) -> 0.31078
H141: 116 | I141: =SUM(OFFSET(Inf!$A$10,$H141*12,4*($C$8-1)+2,12,1)) -> 3.2925652 | J141: =SUM(OFFSET(Inf!$A$10,$H141*12,4*($C$8-1)+3,12,1)) -> 5.9478133 | K141: =SUM(OFFSET(Inf!$A$10,$H141*12,4*($C$8-1)+4,12,1)) -> 10.06799 | L141: =SUM(OFFSET(Inf!$A$10,$H141*12,4*($C$8-1)+1,12,1)) -> 6.351764 | R141: 9.666666667 | S141: =IF(OR(LEFT($B$8,1)="C"),#N/A,VLOOKUP($R141,Inf!$A$10:$AG$2410,4*($C$8-1)+3)) -> 0.0083333 | T141: =IF(OR(LEFT($B$8,1)="C"),#N/A,VLOOKUP($R141,Inf!$A$10:$AG$2410,4*($C$8-1)+4)) -> 0.2413 | U141: =IF(OR(LEFT($B$8,1)="C"),#N/A,VLOOKUP($R141,Inf!$A$10:$AG$2410,4*($C$8-1)+5)) -> 0.73864 | V141: =IF(OR(LEFT($B$8,1)="C"),#N/A,VLOOKUP($R141,Inf!$A$10:$AG$2410,4*($C$8-1)+2)) -> 0.31078
H142: 117 | I142: =SUM(OFFSET(Inf!$A$10,$H142*12,4*($C$8-1)+2,12,1)) -> 3.3280232 | J142: =SUM(OFFSET(Inf!$A$10,$H142*12,4*($C$8-1)+3,12,1)) -> 6.1925433 | K142: =SUM(OFFSET(Inf!$A$10,$H142*12,4*($C$8-1)+4,12,1)) -> 10.383778 | L142: =SUM(OFFSET(Inf!$A$10,$H142*12,4*($C$8-1)+1,12,1)) -> 6.547515 | R142: 9.75 | S142: =IF(OR(LEFT($B$8,1)="C"),#N/A,VLOOKUP($R142,Inf!$A$10:$AG$2410,4*($C$8-1)+3)) -> 0.31609 | T142: =IF(OR(LEFT($B$8,1)="C"),#N/A,VLOOKUP($R142,Inf!$A$10:$AG$2410,4*($C$8-1)+4)) -> 0.64819 | U142: =IF(OR(LEFT($B$8,1)="C"),#N/A,VLOOKUP($R142,Inf!$A$10:$AG$2410,4*($C$8-1)+5)) -> 0.99537 | V142: =IF(OR(LEFT($B$8,1)="C"),#N/A,VLOOKUP($R142,Inf!$A$10:$AG$2410,4*($C$8-1)+2)) -> 0.65101
H143: 118 | I143: =SUM(OFFSET(Inf!$A$10,$H143*12,4*($C$8-1)+2,12,1)) -> 3.3681932 | J143: =SUM(OFFSET(Inf!$A$10,$H143*12,4*($C$8-1)+3,12,1)) -> 6.2602733 | K143: =SUM(OFFSET(Inf!$A$10,$H143*12,4*($C$8-1)+4,12,1)) -> 9.904726 | L143: =SUM(OFFSET(Inf!$A$10,$H143*12,4*($C$8-1)+1,12,1)) -> 6.45368 | R143: 9.833333333 | S143: =IF(OR(LEFT($B$8,1)="C"),#N/A,VLOOKUP($R143,Inf!$A$10:$AG$2410,4*($C$8-1)+3)) -> 0.41637 | T143: =IF(OR(LEFT($B$8,1)="C"),#N/A,VLOOKUP($R143,Inf!$A$10:$AG$2410,4*($C$8-1)+4)) -> 0.58234 | U143: =IF(OR(LEFT($B$8,1)="C"),#N/A,VLOOKUP($R143,Inf!$A$10:$AG$2410,4*($C$8-1)+5)) -> 0.78257 | V143: =IF(OR(LEFT($B$8,1)="C"),#N/A,VLOOKUP($R143,Inf!$A$10:$AG$2410,4*($C$8-1)+2)) -> 0.58759
H144: 119 | I144: =SUM(OFFSET(Inf!$A$10,$H144*12,4*($C$8-1)+2,12,1)) -> 3.5772232 | J144: =SUM(OFFSET(Inf!$A$10,$H144*12,4*($C$8-1)+3,12,1)) -> 6.1592933 | K144: =SUM(OFFSET(Inf!$A$10,$H144*12,4*($C$8-1)+4,12,1)) -> 9.586633 | L144: =SUM(OFFSET(Inf!$A$10,$H144*12,4*($C$8-1)+1,12,1)) -> 6.382194 | R144: 9.916666667 | S144: =IF(OR(LEFT($B$8,1)="C"),#N/A,VLOOKUP($R144,Inf!$A$10:$AG$2410,4*($C$8-1)+3)) -> 0.41637 | T144: =IF(OR(LEFT($B$8,1)="C"),#N/A,VLOOKUP($R144,Inf!$A$10:$AG$2410,4*($C$8-1)+4)) -> 0.58234 | U144: =IF(OR(LEFT($B$8,1)="C"),#N/A,VLOOKUP($R144,Inf!$A$10:$AG$2410,4*($C$8-1)+5)) -> 0.78257 | V144: =IF(OR(LEFT($B$8,1)="C"),#N/A,VLOOKUP($R144,Inf!$A$10:$AG$2410,4*($C$8-1)+2)) -> 0.58759
H145: 120 | I145: =SUM(OFFSET(Inf!$A$10,$H145*12,4*($C$8-1)+2,12,1)) -> 3.1731952 | J145: =SUM(OFFSET(Inf!$A$10,$H145*12,4*($C$8-1)+3,12,1)) -> 5.9338533 | K145: =SUM(OFFSET(Inf!$A$10,$H145*12,4*($C$8-1)+4,12,1)) -> 9.707951 | L145: =SUM(OFFSET(Inf!$A$10,$H145*12,4*($C$8-1)+1,12,1)) -> 6.282113 | R145: 10 | S145: =IF(OR(LEFT($B$8,1)="C"),#N/A,VLOOKUP($R145,Inf!$A$10:$AG$2410,4*($C$8-1)+3)) -> 0.54479 | T145: =IF(OR(LEFT($B$8,1)="C"),#N/A,VLOOKUP($R145,Inf!$A$10:$AG$2410,4*($C$8-1)+4)) -> 0.67093 | U145: =IF(OR(LEFT($B$8,1)="C"),#N/A,VLOOKUP($R145,Inf!$A$10:$AG$2410,4*($C$8-1)+5)) -> 0.82157 | V145: =IF(OR(LEFT($B$8,1)="C"),#N/A,VLOOKUP($R145,Inf!$A$10:$AG$2410,4*($C$8-1)+2)) -> 0.67833
H146: 121 | I146: =SUM(OFFSET(Inf!$A$10,$H146*12,4*($C$8-1)+2,12,1)) -> 3.2704512 | J146: =SUM(OFFSET(Inf!$A$10,$H146*12,4*($C$8-1)+3,12,1)) -> 5.7970233 | K146: =SUM(OFFSET(Inf!$A$10,$H146*12,4*($C$8-1)+4,12,1)) -> 9.608202 | L146: =SUM(OFFSET(Inf!$A$10,$H146*12,4*($C$8-1)+1,12,1)) -> 6.091707 | R146: 10.08333333 | S146: =IF(OR(LEFT($B$8,1)="C"),#N/A,VLOOKUP($R146,Inf!$A$10:$AG$2410,4*($C$8-1)+3)) -> 0.4475 | T146: =IF(OR(LEFT($B$8,1)="C"),#N/A,VLOOKUP($R146,Inf!$A$10:$AG$2410,4*($C$8-1)+4)) -> 0.55112 | U146: =IF(OR(LEFT($B$8,1)="C"),#N/A,VLOOKUP($R146,Inf!$A$10:$AG$2410,4*($C$8-1)+5)) -> 0.67486 | V146: =IF(OR(LEFT($B$8,1)="C"),#N/A,VLOOKUP($R146,Inf!$A$10:$AG$2410,4*($C$8-1)+2)) -> 0.5572
H147: 122 | I147: =SUM(OFFSET(Inf!$A$10,$H147*12,4*($C$8-1)+2,12,1)) -> 3.4237132 | J147: =SUM(OFFSET(Inf!$A$10,$H147*12,4*($C$8-1)+3,12,1)) -> 6.2469633 | K147: =SUM(OFFSET(Inf!$A$10,$H147*12,4*($C$8-1)+4,12,1)) -> 9.85293 | L147: =SUM(OFFSET(Inf!$A$10,$H147*12,4*($C$8-1)+1,12,1)) -> 6.437426 | R147: 10.16666667 | S147: =IF(OR(LEFT($B$8,1)="C"),#N/A,VLOOKUP($R147,Inf!$A$10:$AG$2410,4*($C$8-1)+3)) -> 0.4475 | T147: =IF(OR(LEFT($B$8,1)="C"),#N/A,VLOOKUP($R147,Inf!$A$10:$AG$2410,4*($C$8-1)+4)) -> 0.55112 | U147: =IF(OR(LEFT($B$8,1)="C"),#N/A,VLOOKUP($R147,Inf!$A$10:$AG$2410,4*($C$8-1)+5)) -> 0.67486 | V147: =IF(OR(LEFT($B$8,1)="C"),#N/A,VLOOKUP($R147,Inf!$A$10:$AG$2410,4*($C$8-1)+2)) -> 0.5572
H148: 123 | I148: =SUM(OFFSET(Inf!$A$10,$H148*12,4*($C$8-1)+2,12,1)) -> 3.1787562 | J148: =SUM(OFFSET(Inf!$A$10,$H148*12,4*($C$8-1)+3,12,1)) -> 5.7119533 | K148: =SUM(OFFSET(Inf!$A$10,$H148*12,4*($C$8-1)+4,12,1)) -> 9.097546 | L148: =SUM(OFFSET(Inf!$A$10,$H148*12,4*($C$8-1)+1,12,1)) -> 5.940731 | R148: 10.25 | S148: =IF(OR(LEFT($B$8,1)="C"),#N/A,VLOOKUP($R148,Inf!$A$10:$AG$2410,4*($C$8-1)+3)) -> 0.0083333 | T148: =IF(OR(LEFT($B$8,1)="C"),#N/A,VLOOKUP($R148,Inf!$A$10:$AG$2410,4*($C$8-1)+4)) -> 0.0083333 | U148: =IF(OR(LEFT($B$8,1)="C"),#N/A,VLOOKUP($R148,Inf!$A$10:$AG$2410,4*($C$8-1)+5)) -> 0.071953 | V148: =IF(OR(LEFT($B$8,1)="C"),#N/A,VLOOKUP($R148,Inf!$A$10:$AG$2410,4*($C$8-1)+2)) -> 0.025857
H149: 124 | I149: =SUM(OFFSET(Inf!$A$10,$H149*12,4*($C$8-1)+2,12,1)) -> 3.3322232 | J149: =SUM(OFFSET(Inf!$A$10,$H149*12,4*($C$8-1)+3,12,1)) -> 5.9365533 | K149: =SUM(OFFSET(Inf!$A$10,$H149*12,4*($C$8-1)+4,12,1)) -> 9.780564 | L149: =SUM(OFFSET(Inf!$A$10,$H149*12,4*($C$8-1)+1,12,1)) -> 6.266306 | R149: 10.33333333 | S149: =IF(OR(LEFT($B$8,1)="C"),#N/A,VLOOKUP($R149,Inf!$A$10:$AG$2410,4*($C$8-1)+3)) -> 0.0083333 | T149: =IF(OR(LEFT($B$8,1)="C"),#N/A,VLOOKUP($R149,Inf!$A$10:$AG$2410,4*($C$8-1)+4)) -> 0.20461 | U149: =IF(OR(LEFT($B$8,1)="C"),#N/A,VLOOKUP($R149,Inf!$A$10:$AG$2410,4*($C$8-1)+5)) -> 0.66355 | V149: =IF(OR(LEFT($B$8,1)="C"),#N/A,VLOOKUP($R149,Inf!$A$10:$AG$2410,4*($C$8-1)+2)) -> 0.2644
H150: 125 | I150: =SUM(OFFSET(Inf!$A$10,$H150*12,4*($C$8-1)+2,12,1)) -> 3.2990732 | J150: =SUM(OFFSET(Inf!$A$10,$H150*12,4*($C$8-1)+3,12,1)) -> 5.8978233 | K150: =SUM(OFFSET(Inf!$A$10,$H150*12,4*($C$8-1)+4,12,1)) -> 9.599825 | L150: =SUM(OFFSET(Inf!$A$10,$H150*12,4*($C$8-1)+1,12,1)) -> 6.233305 | R150: 10.41666667 | S150: =IF(OR(LEFT($B$8,1)="C"),#N/A,VLOOKUP($R150,Inf!$A$10:$AG$2410,4*($C$8-1)+3)) -> 0.0083333 | T150: =IF(OR(LEFT($B$8,1)="C"),#N/A,VLOOKUP($R150,Inf!$A$10:$AG$2410,4*($C$8-1)+4)) -> 0.20461 | U150: =IF(OR(LEFT($B$8,1)="C"),#N/A,VLOOKUP($R150,Inf!$A$10:$AG$2410,4*($C$8-1)+5)) -> 0.66355 | V150: =IF(OR(LEFT($B$8,1)="C"),#N/A,VLOOKUP($R150,Inf!$A$10:$AG$2410,4*($C$8-1)+2)) -> 0.2644
H151: 126 | I151: =SUM(OFFSET(Inf!$A$10,$H151*12,4*($C$8-1)+2,12,1)) -> 3.2425382 | J151: =SUM(OFFSET(Inf!$A$10,$H151*12,4*($C$8-1)+3,12,1)) -> 5.9793133 | K151: =SUM(OFFSET(Inf!$A$10,$H151*12,4*($C$8-1)+4,12,1)) -> 9.687183 | L151: =SUM(OFFSET(Inf!$A$10,$H151*12,4*($C$8-1)+1,12,1)) -> 6.230015 | R151: 10.5 | S151: =IF(OR(LEFT($B$8,1)="C"),#N/A,VLOOKUP($R151,Inf!$A$10:$AG$2410,4*($C$8-1)+3)) -> 0.0083333 | T151: =IF(OR(LEFT($B$8,1)="C"),#N/A,VLOOKUP($R151,Inf!$A$10:$AG$2410,4*($C$8-1)+4)) -> 0.32257 | U151: =IF(OR(LEFT($B$8,1)="C"),#N/A,VLOOKUP($R151,Inf!$A$10:$AG$2410,4*($C$8-1)+5)) -> 0.8775 | V151: =IF(OR(LEFT($B$8,1)="C"),#N/A,VLOOKUP($R151,Inf!$A$10:$AG$2410,4*($C$8-1)+2)) -> 0.37828
H152: 127 | I152: =SUM(OFFSET(Inf!$A$10,$H152*12,4*($C$8-1)+2,12,1)) -> 3.3748032 | J152: =SUM(OFFSET(Inf!$A$10,$H152*12,4*($C$8-1)+3,12,1)) -> 5.9422433 | K152: =SUM(OFFSET(Inf!$A$10,$H152*12,4*($C$8-1)+4,12,1)) -> 9.915421 | L152: =SUM(OFFSET(Inf!$A$10,$H152*12,4*($C$8-1)+1,12,1)) -> 6.331258 | R152: 10.58333333 | S152: =IF(OR(LEFT($B$8,1)="C"),#N/A,VLOOKUP($R152,Inf!$A$10:$AG$2410,4*($C$8-1)+3)) -> 0.0083333 | T152: =IF(OR(LEFT($B$8,1)="C"),#N/A,VLOOKUP($R152,Inf!$A$10:$AG$2410,4*($C$8-1)+4)) -> 0.22077 | U152: =IF(OR(LEFT($B$8,1)="C"),#N/A,VLOOKUP($R152,Inf!$A$10:$AG$2410,4*($C$8-1)+5)) -> 0.7701 | V152: =IF(OR(LEFT($B$8,1)="C"),#N/A,VLOOKUP($R152,Inf!$A$10:$AG$2410,4*($C$8-1)+2)) -> 0.29962
H153: 128 | I153: =SUM(OFFSET(Inf!$A$10,$H153*12,4*($C$8-1)+2,12,1)) -> 3.3448032 | J153: =SUM(OFFSET(Inf!$A$10,$H153*12,4*($C$8-1)+3,12,1)) -> 5.8881833 | K153: =SUM(OFFSET(Inf!$A$10,$H153*12,4*($C$8-1)+4,12,1)) -> 9.797374 | L153: =SUM(OFFSET(Inf!$A$10,$H153*12,4*($C$8-1)+1,12,1)) -> 6.219928 | R153: 10.66666667 | S153: =IF(OR(LEFT($B$8,1)="C"),#N/A,VLOOKUP($R153,Inf!$A$10:$AG$2410,4*($C$8-1)+3)) -> 0.0083333 | T153: =IF(OR(LEFT($B$8,1)="C"),#N/A,VLOOKUP($R153,Inf!$A$10:$AG$2410,4*($C$8-1)+4)) -> 0.22077 | U153: =IF(OR(LEFT($B$8,1)="C"),#N/A,VLOOKUP($R153,Inf!$A$10:$AG$2410,4*($C$8-1)+5)) -> 0.7701 | V153: =IF(OR(LEFT($B$8,1)="C"),#N/A,VLOOKUP($R153,Inf!$A$10:$AG$2410,4*($C$8-1)+2)) -> 0.29962
H154: 129 | I154: =SUM(OFFSET(Inf!$A$10,$H154*12,4*($C$8-1)+2,12,1)) -> 3.2049832 | J154: =SUM(OFFSET(Inf!$A$10,$H154*12,4*($C$8-1)+3,12,1)) -> 6.1598933 | K154: =SUM(OFFSET(Inf!$A$10,$H154*12,4*($C$8-1)+4,12,1)) -> 9.728624 | L154: =SUM(OFFSET(Inf!$A$10,$H154*12,4*($C$8-1)+1,12,1)) -> 6.278721 | R154: 10.75 | S154: =IF(OR(LEFT($B$8,1)="C"),#N/A,VLOOKUP($R154,Inf!$A$10:$AG$2410,4*($C$8-1)+3)) -> 0.29233 | T154: =IF(OR(LEFT($B$8,1)="C"),#N/A,VLOOKUP($R154,Inf!$A$10:$AG$2410,4*($C$8-1)+4)) -> 0.6166 | U154: =IF(OR(LEFT($B$8,1)="C"),#N/A,VLOOKUP($R154,Inf!$A$10:$AG$2410,4*($C$8-1)+5)) -> 0.9862 | V154: =IF(OR(LEFT($B$8,1)="C"),#N/A,VLOOKUP($R154,Inf!$A$10:$AG$2410,4*($C$8-1)+2)) -> 0.63591
H155: 130 | I155: =SUM(OFFSET(Inf!$A$10,$H155*12,4*($C$8-1)+2,12,1)) -> 3.3751132 | J155: =SUM(OFFSET(Inf!$A$10,$H155*12,4*($C$8-1)+3,12,1)) -> 5.9608133 | K155: =SUM(OFFSET(Inf!$A$10,$H155*12,4*($C$8-1)+4,12,1)) -> 9.727646 | L155: =SUM(OFFSET(Inf!$A$10,$H155*12,4*($C$8-1)+1,12,1)) -> 6.297847 | R155: =R154+1/12 -> 10.83333333 | S155: =IF(OR(LEFT($B$8,1)="C"),#N/A,VLOOKUP($R155,Inf!$A$10:$AG$2410,4*($C$8-1)+3)) -> 0.39796 | T155: =IF(OR(LEFT($B$8,1)="C"),#N/A,VLOOKUP($R155,Inf!$A$10:$AG$2410,4*($C$8-1)+4)) -> 0.56351 | U155: =IF(OR(LEFT($B$8,1)="C"),#N/A,VLOOKUP($R155,Inf!$A$10:$AG$2410,4*($C$8-1)+5)) -> 0.77387 | V155: =IF(OR(LEFT($B$8,1)="C"),#N/A,VLOOKUP($R155,Inf!$A$10:$AG$2410,4*($C$8-1)+2)) -> 0.57759
H156: 131 | I156: =SUM(OFFSET(Inf!$A$10,$H156*12,4*($C$8-1)+2,12,1)) -> 3.3210232 | J156: =SUM(OFFSET(Inf!$A$10,$H156*12,4*($C$8-1)+3,12,1)) -> 5.9263633 | K156: =SUM(OFFSET(Inf!$A$10,$H156*12,4*($C$8-1)+4,12,1)) -> 9.391528 | L156: =SUM(OFFSET(Inf!$A$10,$H156*12,4*($C$8-1)+1,12,1)) -> 6.217079 | R156: 10.91666667 | S156: =IF(OR(LEFT($B$8,1)="C"),#N/A,VLOOKUP($R156,Inf!$A$10:$AG$2410,4*($C$8-1)+3)) -> 0.39796 | T156: =IF(OR(LEFT($B$8,1)="C"),#N/A,VLOOKUP($R156,Inf!$A$10:$AG$2410,4*($C$8-1)+4)) -> 0.56351 | U156: =IF(OR(LEFT($B$8,1)="C"),#N/A,VLOOKUP($R156,Inf!$A$10:$AG$2410,4*($C$8-1)+5)) -> 0.77387 | V156: =IF(OR(LEFT($B$8,1)="C"),#N/A,VLOOKUP($R156,Inf!$A$10:$AG$2410,4*($C$8-1)+2)) -> 0.57759
H157: 132 | I157: =SUM(OFFSET(Inf!$A$10,$H157*12,4*($C$8-1)+2,12,1)) -> 3.3308432 | J157: =SUM(OFFSET(Inf!$A$10,$H157*12,4*($C$8-1)+3,12,1)) -> 5.9742233 | K157: =SUM(OFFSET(Inf!$A$10,$H157*12,4*($C$8-1)+4,12,1)) -> 9.468556 | L157: =SUM(OFFSET(Inf!$A$10,$H157*12,4*($C$8-1)+1,12,1)) -> 6.243875 | R157: 11 | S157: =IF(OR(LEFT($B$8,1)="C"),#N/A,VLOOKUP($R157,Inf!$A$10:$AG$2410,4*($C$8-1)+3)) -> 0.54636 | T157: =IF(OR(LEFT($B$8,1)="C"),#N/A,VLOOKUP($R157,Inf!$A$10:$AG$2410,4*($C$8-1)+4)) -> 0.67573 | U157: =IF(OR(LEFT($B$8,1)="C"),#N/A,VLOOKUP($R157,Inf!$A$10:$AG$2410,4*($C$8-1)+5)) -> 0.82805 | V157: =IF(OR(LEFT($B$8,1)="C"),#N/A,VLOOKUP($R157,Inf!$A$10:$AG$2410,4*($C$8-1)+2)) -> 0.68384
H158: 133 | I158: =SUM(OFFSET(Inf!$A$10,$H158*12,4*($C$8-1)+2,12,1)) -> 3.2978942 | J158: =SUM(OFFSET(Inf!$A$10,$H158*12,4*($C$8-1)+3,12,1)) -> 6.0321833 | K158: =SUM(OFFSET(Inf!$A$10,$H158*12,4*($C$8-1)+4,12,1)) -> 9.366967 | L158: =SUM(OFFSET(Inf!$A$10,$H158*12,4*($C$8-1)+1,12,1)) -> 6.224185 | R158: 11.08333333 | S158: =IF(OR(LEFT($B$8,1)="C"),#N/A,VLOOKUP($R158,Inf!$A$10:$AG$2410,4*($C$8-1)+3)) -> 0.4488 | T158: =IF(OR(LEFT($B$8,1)="C"),#N/A,VLOOKUP($R158,Inf!$A$10:$AG$2410,4*($C$8-1)+4)) -> 0.55506 | U158: =IF(OR(LEFT($B$8,1)="C"),#N/A,VLOOKUP($R158,Inf!$A$10:$AG$2410,4*($C$8-1)+5)) -> 0.68018 | V158: =IF(OR(LEFT($B$8,1)="C"),#N/A,VLOOKUP($R158,Inf!$A$10:$AG$2410,4*($C$8-1)+2)) -> 0.56172
H159: 134 | I159: =SUM(OFFSET(Inf!$A$10,$H159*12,4*($C$8-1)+2,12,1)) -> 3.1885182 | J159: =SUM(OFFSET(Inf!$A$10,$H159*12,4*($C$8-1)+3,12,1)) -> 5.8834233 | K159: =SUM(OFFSET(Inf!$A$10,$H159*12,4*($C$8-1)+4,12,1)) -> 9.791023 | L159: =SUM(OFFSET(Inf!$A$10,$H159*12,4*($C$8-1)+1,12,1)) -> 6.171642 | R159: 11.16666667 | S159: =IF(OR(LEFT($B$8,1)="C"),#N/A,VLOOKUP($R159,Inf!$A$10:$AG$2410,4*($C$8-1)+3)) -> 0.4488 | T159: =IF(OR(LEFT($B$8,1)="C"),#N/A,VLOOKUP($R159,Inf!$A$10:$AG$2410,4*($C$8-1)+4)) -> 0.55506 | U159: =IF(OR(LEFT($B$8,1)="C"),#N/A,VLOOKUP($R159,Inf!$A$10:$AG$2410,4*($C$8-1)+5)) -> 0.68018 | V159: =IF(OR(LEFT($B$8,1)="C"),#N/A,VLOOKUP($R159,Inf!$A$10:$AG$2410,4*($C$8-1)+2)) -> 0.56172
H160: 135 | I160: =SUM(OFFSET(Inf!$A$10,$H160*12,4*($C$8-1)+2,12,1)) -> 3.2036592 | J160: =SUM(OFFSET(Inf!$A$10,$H160*12,4*($C$8-1)+3,12,1)) -> 5.8242133 | K160: =SUM(OFFSET(Inf!$A$10,$H160*12,4*($C$8-1)+4,12,1)) -> 9.743825 | L160: =SUM(OFFSET(Inf!$A$10,$H160*12,4*($C$8-1)+1,12,1)) -> 6.162017 | R160: 11.25 | S160: =IF(OR(LEFT($B$8,1)="C"),#N/A,VLOOKUP($R160,Inf!$A$10:$AG$2410,4*($C$8-1)+3)) -> 0.0083333 | T160: =IF(OR(LEFT($B$8,1)="C"),#N/A,VLOOKUP($R160,Inf!$A$10:$AG$2410,4*($C$8-1)+4)) -> 0.0083333 | U160: =IF(OR(LEFT($B$8,1)="C"),#N/A,VLOOKUP($R160,Inf!$A$10:$AG$2410,4*($C$8-1)+5)) -> 0.026105 | V160: =IF(OR(LEFT($B$8,1)="C"),#N/A,VLOOKUP($R160,Inf!$A$10:$AG$2410,4*($C$8-1)+2)) -> 0.02197
H161: 136 | I161: =SUM(OFFSET(Inf!$A$10,$H161*12,4*($C$8-1)+2,12,1)) -> 3.4175632 | J161: =SUM(OFFSET(Inf!$A$10,$H161*12,4*($C$8-1)+3,12,1)) -> 6.0174033 | K161: =SUM(OFFSET(Inf!$A$10,$H161*12,4*($C$8-1)+4,12,1)) -> 9.743869 | L161: =SUM(OFFSET(Inf!$A$10,$H161*12,4*($C$8-1)+1,12,1)) -> 6.255951 | R161: 11.33333333 | S161: =IF(OR(LEFT($B$8,1)="C"),#N/A,VLOOKUP($R161,Inf!$A$10:$AG$2410,4*($C$8-1)+3)) -> 0.0083333 | T161: =IF(OR(LEFT($B$8,1)="C"),#N/A,VLOOKUP($R161,Inf!$A$10:$AG$2410,4*($C$8-1)+4)) -> 0.18605 | U161: =IF(OR(LEFT($B$8,1)="C"),#N/A,VLOOKUP($R161,Inf!$A$10:$AG$2410,4*($C$8-1)+5)) -> 0.58219 | V161: =IF(OR(LEFT($B$8,1)="C"),#N/A,VLOOKUP($R161,Inf!$A$10:$AG$2410,4*($C$8-1)+2)) -> 0.24547
H162: 137 | I162: =SUM(OFFSET(Inf!$A$10,$H162*12,4*($C$8-1)+2,12,1)) -> 3.0638662 | J162: =SUM(OFFSET(Inf!$A$10,$H162*12,4*($C$8-1)+3,12,1)) -> 6.0164533 | K162: =SUM(OFFSET(Inf!$A$10,$H162*12,4*($C$8-1)+4,12,1)) -> 9.789928 | L162: =SUM(OFFSET(Inf!$A$10,$H162*12,4*($C$8-1)+1,12,1)) -> 6.235827 | R162: 11.41666667 | S162: =IF(OR(LEFT($B$8,1)="C"),#N/A,VLOOKUP($R162,Inf!$A$10:$AG$2410,4*($C$8-1)+3)) -> 0.0083333 | T162: =IF(OR(LEFT($B$8,1)="C"),#N/A,VLOOKUP($R162,Inf!$A$10:$AG$2410,4*($C$8-1)+4)) -> 0.18605 | U162: =IF(OR(LEFT($B$8,1)="C"),#N/A,VLOOKUP($R162,Inf!$A$10:$AG$2410,4*($C$8-1)+5)) -> 0.58219 | V162: =IF(OR(LEFT($B$8,1)="C"),#N/A,VLOOKUP($R162,Inf!$A$10:$AG$2410,4*($C$8-1)+2)) -> 0.24547
H163: 138 | I163: =SUM(OFFSET(Inf!$A$10,$H163*12,4*($C$8-1)+2,12,1)) -> 3.2402552 | J163: =SUM(OFFSET(Inf!$A$10,$H163*12,4*($C$8-1)+3,12,1)) -> 5.9197433 | K163: =SUM(OFFSET(Inf!$A$10,$H163*12,4*($C$8-1)+4,12,1)) -> 9.207699 | L163: =SUM(OFFSET(Inf!$A$10,$H163*12,4*($C$8-1)+1,12,1)) -> 6.119545 | R163: 11.5 | S163: =IF(OR(LEFT($B$8,1)="C"),#N/A,VLOOKUP($R163,Inf!$A$10:$AG$2410,4*($C$8-1)+3)) -> 0.0083333 | T163: =IF(OR(LEFT($B$8,1)="C"),#N/A,VLOOKUP($R163,Inf!$A$10:$AG$2410,4*($C$8-1)+4)) -> 0.29657 | U163: =IF(OR(LEFT($B$8,1)="C"),#N/A,VLOOKUP($R163,Inf!$A$10:$AG$2410,4*($C$8-1)+5)) -> 0.79236 | V163: =IF(OR(LEFT($B$8,1)="C"),#N/A,VLOOKUP($R163,Inf!$A$10:$AG$2410,4*($C$8-1)+2)) -> 0.35556
H164: 139 | I164: =SUM(OFFSET(Inf!$A$10,$H164*12,4*($C$8-1)+2,12,1)) -> 3.2343682 | J164: =SUM(OFFSET(Inf!$A$10,$H164*12,4*($C$8-1)+3,12,1)) -> 6.0101733 | K164: =SUM(OFFSET(Inf!$A$10,$H164*12,4*($C$8-1)+4,12,1)) -> 9.635615 | L164: =SUM(OFFSET(Inf!$A$10,$H164*12,4*($C$8-1)+1,12,1)) -> 6.265213 | R164: 11.58333333 | S164: =IF(OR(LEFT($B$8,1)="C"),#N/A,VLOOKUP($R164,Inf!$A$10:$AG$2410,4*($C$8-1)+3)) -> 0.0083333 | T164: =IF(OR(LEFT($B$8,1)="C"),#N/A,VLOOKUP($R164,Inf!$A$10:$AG$2410,4*($C$8-1)+4)) -> 0.19885 | U164: =IF(OR(LEFT($B$8,1)="C"),#N/A,VLOOKUP($R164,Inf!$A$10:$AG$2410,4*($C$8-1)+5)) -> 0.6757 | V164: =IF(OR(LEFT($B$8,1)="C"),#N/A,VLOOKUP($R164,Inf!$A$10:$AG$2410,4*($C$8-1)+2)) -> 0.27688
H165: 140 | I165: =SUM(OFFSET(Inf!$A$10,$H165*12,4*($C$8-1)+2,12,1)) -> 3.3442332 | J165: =SUM(OFFSET(Inf!$A$10,$H165*12,4*($C$8-1)+3,12,1)) -> 6.1329433 | K165: =SUM(OFFSET(Inf!$A$10,$H165*12,4*($C$8-1)+4,12,1)) -> 9.935327 | L165: =SUM(OFFSET(Inf!$A$10,$H165*12,4*($C$8-1)+1,12,1)) -> 6.374156 | R165: 11.66666667 | S165: =IF(OR(LEFT($B$8,1)="C"),#N/A,VLOOKUP($R165,Inf!$A$10:$AG$2410,4*($C$8-1)+3)) -> 0.0083333 | T165: =IF(OR(LEFT($B$8,1)="C"),#N/A,VLOOKUP($R165,Inf!$A$10:$AG$2410,4*($C$8-1)+4)) -> 0.19885 | U165: =IF(OR(LEFT($B$8,1)="C"),#N/A,VLOOKUP($R165,Inf!$A$10:$AG$2410,4*($C$8-1)+5)) -> 0.6757 | V165: =IF(OR(LEFT($B$8,1)="C"),#N/A,VLOOKUP($R165,Inf!$A$10:$AG$2410,4*($C$8-1)+2)) -> 0.27688
H166: 141 | I166: =SUM(OFFSET(Inf!$A$10,$H166*12,4*($C$8-1)+2,12,1)) -> 3.2416432 | J166: =SUM(OFFSET(Inf!$A$10,$H166*12,4*($C$8-1)+3,12,1)) -> 5.9642433 | K166: =SUM(OFFSET(Inf!$A$10,$H166*12,4*($C$8-1)+4,12,1)) -> 9.534945 | L166: =SUM(OFFSET(Inf!$A$10,$H166*12,4*($C$8-1)+1,12,1)) -> 6.221386 | R166: 11.75 | S166: =IF(OR(LEFT($B$8,1)="C"),#N/A,VLOOKUP($R166,Inf!$A$10:$AG$2410,4*($C$8-1)+3)) -> 0.31154 | T166: =IF(OR(LEFT($B$8,1)="C"),#N/A,VLOOKUP($R166,Inf!$A$10:$AG$2410,4*($C$8-1)+4)) -> 0.61394 | U166: =IF(OR(LEFT($B$8,1)="C"),#N/A,VLOOKUP($R166,Inf!$A$10:$AG$2410,4*($C$8-1)+5)) -> 0.96432 | V166: =IF(OR(LEFT($B$8,1)="C"),#N/A,VLOOKUP($R166,Inf!$A$10:$AG$2410,4*($C$8-1)+2)) -> 0.62715
H167: 142 | I167: =SUM(OFFSET(Inf!$A$10,$H167*12,4*($C$8-1)+2,12,1)) -> 3.3544032 | J167: =SUM(OFFSET(Inf!$A$10,$H167*12,4*($C$8-1)+3,12,1)) -> 5.8327733 | K167: =SUM(OFFSET(Inf!$A$10,$H167*12,4*($C$8-1)+4,12,1)) -> 9.908794 | L167: =SUM(OFFSET(Inf!$A$10,$H167*12,4*($C$8-1)+1,12,1)) -> 6.246782 | R167: 11.83333333 | S167: =IF(OR(LEFT($B$8,1)="C"),#N/A,VLOOKUP($R167,Inf!$A$10:$AG$2410,4*($C$8-1)+3)) -> 0.38872 | T167: =IF(OR(LEFT($B$8,1)="C"),#N/A,VLOOKUP($R167,Inf!$A$10:$AG$2410,4*($C$8-1)+4)) -> 0.56081 | U167: =IF(OR(LEFT($B$8,1)="C"),#N/A,VLOOKUP($R167,Inf!$A$10:$AG$2410,4*($C$8-1)+5)) -> 0.76141 | V167: =IF(OR(LEFT($B$8,1)="C"),#N/A,VLOOKUP($R167,Inf!$A$10:$AG$2410,4*($C$8-1)+2)) -> 0.57691
H168: 143 | I168: =SUM(OFFSET(Inf!$A$10,$H168*12,4*($C$8-1)+2,12,1)) -> 3.3539132 | J168: =SUM(OFFSET(Inf!$A$10,$H168*12,4*($C$8-1)+3,12,1)) -> 6.1068933 | K168: =SUM(OFFSET(Inf!$A$10,$H168*12,4*($C$8-1)+4,12,1)) -> 9.724058 | L168: =SUM(OFFSET(Inf!$A$10,$H168*12,4*($C$8-1)+1,12,1)) -> 6.339949 | R168: 11.91666667 | S168: =IF(OR(LEFT($B$8,1)="C"),#N/A,VLOOKUP($R168,Inf!$A$10:$AG$2410,4*($C$8-1)+3)) -> 0.38872 | T168: =IF(OR(LEFT($B$8,1)="C"),#N/A,VLOOKUP($R168,Inf!$A$10:$AG$2410,4*($C$8-1)+4)) -> 0.56081 | U168: =IF(OR(LEFT($B$8,1)="C"),#N/A,VLOOKUP($R168,Inf!$A$10:$AG$2410,4*($C$8-1)+5)) -> 0.76141 | V168: =IF(OR(LEFT($B$8,1)="C"),#N/A,VLOOKUP($R168,Inf!$A$10:$AG$2410,4*($C$8-1)+2)) -> 0.57691
H169: 144 | I169: =SUM(OFFSET(Inf!$A$10,$H169*12,4*($C$8-1)+2,12,1)) -> 3.0687922 | J169: =SUM(OFFSET(Inf!$A$10,$H169*12,4*($C$8-1)+3,12,1)) -> 5.9314233 | K169: =SUM(OFFSET(Inf!$A$10,$H169*12,4*($C$8-1)+4,12,1)) -> 9.359232 | L169: =SUM(OFFSET(Inf!$A$10,$H169*12,4*($C$8-1)+1,12,1)) -> 6.126664 | R169: 12 | S169: =IF(OR(LEFT($B$8,1)="C"),#N/A,VLOOKUP($R169,Inf!$A$10:$AG$2410,4*($C$8-1)+3)) -> 0.55268 | T169: =IF(OR(LEFT($B$8,1)="C"),#N/A,VLOOKUP($R169,Inf!$A$10:$AG$2410,4*($C$8-1)+4)) -> 0.69362 | U169: =IF(OR(LEFT($B$8,1)="C"),#N/A,VLOOKUP($R169,Inf!$A$10:$AG$2410,4*($C$8-1)+5)) -> 0.83091 | V169: =IF(OR(LEFT($B$8,1)="C"),#N/A,VLOOKUP($R169,Inf!$A$10:$AG$2410,4*($C$8-1)+2)) -> 0.69282
H170: 145 | I170: =SUM(OFFSET(Inf!$A$10,$H170*12,4*($C$8-1)+2,12,1)) -> 3.3707932 | J170: =SUM(OFFSET(Inf!$A$10,$H170*12,4*($C$8-1)+3,12,1)) -> 6.1222833 | K170: =SUM(OFFSET(Inf!$A$10,$H170*12,4*($C$8-1)+4,12,1)) -> 9.654475 | L170: =SUM(OFFSET(Inf!$A$10,$H170*12,4*($C$8-1)+1,12,1)) -> 6.361525 | R170: 12.08333333 | S170: =IF(OR(LEFT($B$8,1)="C"),#N/A,VLOOKUP($R170,Inf!$A$10:$AG$2410,4*($C$8-1)+3)) -> 0.45399 | T170: =IF(OR(LEFT($B$8,1)="C"),#N/A,VLOOKUP($R170,Inf!$A$10:$AG$2410,4*($C$8-1)+4)) -> 0.56976 | U170: =IF(OR(LEFT($B$8,1)="C"),#N/A,VLOOKUP($R170,Inf!$A$10:$AG$2410,4*($C$8-1)+5)) -> 0.68254 | V170: =IF(OR(LEFT($B$8,1)="C"),#N/A,VLOOKUP($R170,Inf!$A$10:$AG$2410,4*($C$8-1)+2)) -> 0.5691
H171: 146 | I171: =SUM(OFFSET(Inf!$A$10,$H171*12,4*($C$8-1)+2,12,1)) -> 3.4263732 | J171: =SUM(OFFSET(Inf!$A$10,$H171*12,4*($C$8-1)+3,12,1)) -> 5.8730133 | K171: =SUM(OFFSET(Inf!$A$10,$H171*12,4*($C$8-1)+4,12,1)) -> 9.483002 | L171: =SUM(OFFSET(Inf!$A$10,$H171*12,4*($C$8-1)+1,12,1)) -> 6.187351 | R171: 12.16666667 | S171: =IF(OR(LEFT($B$8,1)="C"),#N/A,VLOOKUP($R171,Inf!$A$10:$AG$2410,4*($C$8-1)+3)) -> 0.45399 | T171: =IF(OR(LEFT($B$8,1)="C"),#N/A,VLOOKUP($R171,Inf!$A$10:$AG$2410,4*($C$8-1)+4)) -> 0.56976 | U171: =IF(OR(LEFT($B$8,1)="C"),#N/A,VLOOKUP($R171,Inf!$A$10:$AG$2410,4*($C$8-1)+5)) -> 0.68254 | V171: =IF(OR(LEFT($B$8,1)="C"),#N/A,VLOOKUP($R171,Inf!$A$10:$AG$2410,4*($C$8-1)+2)) -> 0.5691
H172: 147 | I172: =SUM(OFFSET(Inf!$A$10,$H172*12,4*($C$8-1)+2,12,1)) -> 3.2761572 | J172: =SUM(OFFSET(Inf!$A$10,$H172*12,4*($C$8-1)+3,12,1)) -> 6.0111833 | K172: =SUM(OFFSET(Inf!$A$10,$H172*12,4*($C$8-1)+4,12,1)) -> 10.072332 | L172: =SUM(OFFSET(Inf!$A$10,$H172*12,4*($C$8-1)+1,12,1)) -> 6.263862 | R172: 12.25 | S172: =IF(OR(LEFT($B$8,1)="C"),#N/A,VLOOKUP($R172,Inf!$A$10:$AG$2410,4*($C$8-1)+3)) -> 0.0083333 | T172: =IF(OR(LEFT($B$8,1)="C"),#N/A,VLOOKUP($R172,Inf!$A$10:$AG$2410,4*($C$8-1)+4)) -> 0.0083333 | U172: =IF(OR(LEFT($B$8,1)="C"),#N/A,VLOOKUP($R172,Inf!$A$10:$AG$2410,4*($C$8-1)+5)) -> 0.03849 | V172: =IF(OR(LEFT($B$8,1)="C"),#N/A,VLOOKUP($R172,Inf!$A$10:$AG$2410,4*($C$8-1)+2)) -> 0.025576
H173: 148 | I173: =SUM(OFFSET(Inf!$A$10,$H173*12,4*($C$8-1)+2,12,1)) -> 3.2743602 | J173: =SUM(OFFSET(Inf!$A$10,$H173*12,4*($C$8-1)+3,12,1)) -> 5.8959733 | K173: =SUM(OFFSET(Inf!$A$10,$H173*12,4*($C$8-1)+4,12,1)) -> 9.649695 | L173: =SUM(OFFSET(Inf!$A$10,$H173*12,4*($C$8-1)+1,12,1)) -> 6.187486 | R173: 12.33333333 | S173: =IF(OR(LEFT($B$8,1)="C"),#N/A,VLOOKUP($R173,Inf!$A$10:$AG$2410,4*($C$8-1)+3)) -> 0.0083333 | T173: =IF(OR(LEFT($B$8,1)="C"),#N/A,VLOOKUP($R173,Inf!$A$10:$AG$2410,4*($C$8-1)+4)) -> 0.21355 | U173: =IF(OR(LEFT($B$8,1)="C"),#N/A,VLOOKUP($R173,Inf!$A$10:$AG$2410,4*($C$8-1)+5)) -> 0.63186 | V173: =IF(OR(LEFT($B$8,1)="C"),#N/A,VLOOKUP($R173,Inf!$A$10:$AG$2410,4*($C$8-1)+2)) -> 0.26428
H174: 149 | I174: =SUM(OFFSET(Inf!$A$10,$H174*12,4*($C$8-1)+2,12,1)) -> 3.1835872 | J174: =SUM(OFFSET(Inf!$A$10,$H174*12,4*($C$8-1)+3,12,1)) -> 5.9520733 | K174: =SUM(OFFSET(Inf!$A$10,$H174*12,4*($C$8-1)+4,12,1)) -> 9.868261 | L174: =SUM(OFFSET(Inf!$A$10,$H174*12,4*($C$8-1)+1,12,1)) -> 6.258064 | R174: 12.41666667 | S174: =IF(OR(LEFT($B$8,1)="C"),#N/A,VLOOKUP($R174,Inf!$A$10:$AG$2410,4*($C$8-1)+3)) -> 0.0083333 | T174: =IF(OR(LEFT($B$8,1)="C"),#N/A,VLOOKUP($R174,Inf!$A$10:$AG$2410,4*($C$8-1)+4)) -> 0.21355 | U174: =IF(OR(LEFT($B$8,1)="C"),#N/A,VLOOKUP($R174,Inf!$A$10:$AG$2410,4*($C$8-1)+5)) -> 0.63186 | V174: =IF(OR(LEFT($B$8,1)="C"),#N/A,VLOOKUP($R174,Inf!$A$10:$AG$2410,4*($C$8-1)+2)) -> 0.26428
H175: 150 | I175: =SUM(OFFSET(Inf!$A$10,$H175*12,4*($C$8-1)+2,12,1)) -> 3.2996942 | J175: =SUM(OFFSET(Inf!$A$10,$H175*12,4*($C$8-1)+3,12,1)) -> 5.9006233 | K175: =SUM(OFFSET(Inf!$A$10,$H175*12,4*($C$8-1)+4,12,1)) -> 9.845348 | L175: =SUM(OFFSET(Inf!$A$10,$H175*12,4*($C$8-1)+1,12,1)) -> 6.259693 | R175: 12.5 | S175: =IF(OR(LEFT($B$8,1)="C"),#N/A,VLOOKUP($R175,Inf!$A$10:$AG$2410,4*($C$8-1)+3)) -> 0.0083333 | T175: =IF(OR(LEFT($B$8,1)="C"),#N/A,VLOOKUP($R175,Inf!$A$10:$AG$2410,4*($C$8-1)+4)) -> 0.32884 | U175: =IF(OR(LEFT($B$8,1)="C"),#N/A,VLOOKUP($R175,Inf!$A$10:$AG$2410,4*($C$8-1)+5)) -> 0.85634 | V175: =IF(OR(LEFT($B$8,1)="C"),#N/A,VLOOKUP($R175,Inf!$A$10:$AG$2410,4*($C$8-1)+2)) -> 0.37931
H176: 151 | I176: =SUM(OFFSET(Inf!$A$10,$H176*12,4*($C$8-1)+2,12,1)) -> 3.3313032 | J176: =SUM(OFFSET(Inf!$A$10,$H176*12,4*($C$8-1)+3,12,1)) -> 6.1547733 | K176: =SUM(OFFSET(Inf!$A$10,$H176*12,4*($C$8-1)+4,12,1)) -> 10.083299 | L176: =SUM(OFFSET(Inf!$A$10,$H176*12,4*($C$8-1)+1,12,1)) -> 6.478301 | R176: 12.58333333 | S176: =IF(OR(LEFT($B$8,1)="C"),#N/A,VLOOKUP($R176,Inf!$A$10:$AG$2410,4*($C$8-1)+3)) -> 0.0083333 | T176: =IF(OR(LEFT($B$8,1)="C"),#N/A,VLOOKUP($R176,Inf!$A$10:$AG$2410,4*($C$8-1)+4)) -> 0.23277 | U176: =IF(OR(LEFT($B$8,1)="C"),#N/A,VLOOKUP($R176,Inf!$A$10:$AG$2410,4*($C$8-1)+5)) -> 0.73034 | V176: =IF(OR(LEFT($B$8,1)="C"),#N/A,VLOOKUP($R176,Inf!$A$10:$AG$2410,4*($C$8-1)+2)) -> 0.29926
H177: 152 | I177: =SUM(OFFSET(Inf!$A$10,$H177*12,4*($C$8-1)+2,12,1)) -> 3.2597192 | J177: =SUM(OFFSET(Inf!$A$10,$H177*12,4*($C$8-1)+3,12,1)) -> 5.9655633 | K177: =SUM(OFFSET(Inf!$A$10,$H177*12,4*($C$8-1)+4,12,1)) -> 9.714675 | L177: =SUM(OFFSET(Inf!$A$10,$H177*12,4*($C$8-1)+1,12,1)) -> 6.214054 | R177: 12.66666667 | S177: =IF(OR(LEFT($B$8,1)="C"),#N/A,VLOOKUP($R177,Inf!$A$10:$AG$2410,4*($C$8-1)+3)) -> 0.0083333 | T177: =IF(OR(LEFT($B$8,1)="C"),#N/A,VLOOKUP($R177,Inf!$A$10:$AG$2410,4*($C$8-1)+4)) -> 0.23277 | U177: =IF(OR(LEFT($B$8,1)="C"),#N/A,VLOOKUP($R177,Inf!$A$10:$AG$2410,4*($C$8-1)+5)) -> 0.73034 | V177: =IF(OR(LEFT($B$8,1)="C"),#N/A,VLOOKUP($R177,Inf!$A$10:$AG$2410,4*($C$8-1)+2)) -> 0.29926
H178: 153 | I178: =SUM(OFFSET(Inf!$A$10,$H178*12,4*($C$8-1)+2,12,1)) -> 3.2415842 | J178: =SUM(OFFSET(Inf!$A$10,$H178*12,4*($C$8-1)+3,12,1)) -> 5.7910033 | K178: =SUM(OFFSET(Inf!$A$10,$H178*12,4*($C$8-1)+4,12,1)) -> 9.463951 | L178: =SUM(OFFSET(Inf!$A$10,$H178*12,4*($C$8-1)+1,12,1)) -> 6.132604 | R178: 12.75 | S178: =IF(OR(LEFT($B$8,1)="C"),#N/A,VLOOKUP($R178,Inf!$A$10:$AG$2410,4*($C$8-1)+3)) -> 0.31396 | T178: =IF(OR(LEFT($B$8,1)="C"),#N/A,VLOOKUP($R178,Inf!$A$10:$AG$2410,4*($C$8-1)+4)) -> 0.62665 | U178: =IF(OR(LEFT($B$8,1)="C"),#N/A,VLOOKUP($R178,Inf!$A$10:$AG$2410,4*($C$8-1)+5)) -> 0.99918 | V178: =IF(OR(LEFT($B$8,1)="C"),#N/A,VLOOKUP($R178,Inf!$A$10:$AG$2410,4*($C$8-1)+2)) -> 0.64892
H179: 154 | I179: =SUM(OFFSET(Inf!$A$10,$H179*12,4*($C$8-1)+2,12,1)) -> 3.3180472 | J179: =SUM(OFFSET(Inf!$A$10,$H179*12,4*($C$8-1)+3,12,1)) -> 5.9949633 | K179: =SUM(OFFSET(Inf!$A$10,$H179*12,4*($C$8-1)+4,12,1)) -> 9.442971 | L179: =SUM(OFFSET(Inf!$A$10,$H179*12,4*($C$8-1)+1,12,1)) -> 6.225376 | R179: 12.83333333 | S179: =IF(OR(LEFT($B$8,1)="C"),#N/A,VLOOKUP($R179,Inf!$A$10:$AG$2410,4*($C$8-1)+3)) -> 0.41871 | T179: =IF(OR(LEFT($B$8,1)="C"),#N/A,VLOOKUP($R179,Inf!$A$10:$AG$2410,4*($C$8-1)+4)) -> 0.57811 | U179: =IF(OR(LEFT($B$8,1)="C"),#N/A,VLOOKUP($R179,Inf!$A$10:$AG$2410,4*($C$8-1)+5)) -> 0.78645 | V179: =IF(OR(LEFT($B$8,1)="C"),#N/A,VLOOKUP($R179,Inf!$A$10:$AG$2410,4*($C$8-1)+2)) -> 0.58994
H180: 155 | I180: =SUM(OFFSET(Inf!$A$10,$H180*12,4*($C$8-1)+2,12,1)) -> 3.3030632 | J180: =SUM(OFFSET(Inf!$A$10,$H180*12,4*($C$8-1)+3,12,1)) -> 6.1487833 | K180: =SUM(OFFSET(Inf!$A$10,$H180*12,4*($C$8-1)+4,12,1)) -> 9.827506 | L180: =SUM(OFFSET(Inf!$A$10,$H180*12,4*($C$8-1)+1,12,1)) -> 6.330943 | R180: 12.91666667 | S180: =IF(OR(LEFT($B$8,1)="C"),#N/A,VLOOKUP($R180,Inf!$A$10:$AG$2410,4*($C$8-1)+3)) -> 0.41871 | T180: =IF(OR(LEFT($B$8,1)="C"),#N/A,VLOOKUP($R180,Inf!$A$10:$AG$2410,4*($C$8-1)+4)) -> 0.57811 | U180: =IF(OR(LEFT($B$8,1)="C"),#N/A,VLOOKUP($R180,Inf!$A$10:$AG$2410,4*($C$8-1)+5)) -> 0.78645 | V180: =IF(OR(LEFT($B$8,1)="C"),#N/A,VLOOKUP($R180,Inf!$A$10:$AG$2410,4*($C$8-1)+2)) -> 0.58994
H181: 156 | I181: =SUM(OFFSET(Inf!$A$10,$H181*12,4*($C$8-1)+2,12,1)) -> 3.2573952 | J181: =SUM(OFFSET(Inf!$A$10,$H181*12,4*($C$8-1)+3,12,1)) -> 5.9299833 | K181: =SUM(OFFSET(Inf!$A$10,$H181*12,4*($C$8-1)+4,12,1)) -> 9.84886 | L181: =SUM(OFFSET(Inf!$A$10,$H181*12,4*($C$8-1)+1,12,1)) -> 6.265666 | R181: 13 | S181: =IF(OR(LEFT($B$8,1)="C"),#N/A,VLOOKUP($R181,Inf!$A$10:$AG$2410,4*($C$8-1)+3)) -> 0.55121 | T181: =IF(OR(LEFT($B$8,1)="C"),#N/A,VLOOKUP($R181,Inf!$A$10:$AG$2410,4*($C$8-1)+4)) -> 0.68402 | U181: =IF(OR(LEFT($B$8,1)="C"),#N/A,VLOOKUP($R181,Inf!$A$10:$AG$2410,4*($C$8-1)+5)) -> 0.83037 | V181: =IF(OR(LEFT($B$8,1)="C"),#N/A,VLOOKUP($R181,Inf!$A$10:$AG$2410,4*($C$8-1)+2)) -> 0.691
H182: 157 | I182: =SUM(OFFSET(Inf!$A$10,$H182*12,4*($C$8-1)+2,12,1)) -> 3.2297612 | J182: =SUM(OFFSET(Inf!$A$10,$H182*12,4*($C$8-1)+3,12,1)) -> 6.0674033 | K182: =SUM(OFFSET(Inf!$A$10,$H182*12,4*($C$8-1)+4,12,1)) -> 10.04481 | L182: =SUM(OFFSET(Inf!$A$10,$H182*12,4*($C$8-1)+1,12,1)) -> 6.396272 | R182: 13.08333333 | S182: =IF(OR(LEFT($B$8,1)="C"),#N/A,VLOOKUP($R182,Inf!$A$10:$AG$2410,4*($C$8-1)+3)) -> 0.45278 | T182: =IF(OR(LEFT($B$8,1)="C"),#N/A,VLOOKUP($R182,Inf!$A$10:$AG$2410,4*($C$8-1)+4)) -> 0.56187 | U182: =IF(OR(LEFT($B$8,1)="C"),#N/A,VLOOKUP($R182,Inf!$A$10:$AG$2410,4*($C$8-1)+5)) -> 0.68209 | V182: =IF(OR(LEFT($B$8,1)="C"),#N/A,VLOOKUP($R182,Inf!$A$10:$AG$2410,4*($C$8-1)+2)) -> 0.56761
H183: 158 | I183: =SUM(OFFSET(Inf!$A$10,$H183*12,4*($C$8-1)+2,12,1)) -> 3.1855762 | J183: =SUM(OFFSET(Inf!$A$10,$H183*12,4*($C$8-1)+3,12,1)) -> 5.7658933 | K183: =SUM(OFFSET(Inf!$A$10,$H183*12,4*($C$8-1)+4,12,1)) -> 9.665084 | L183: =SUM(OFFSET(Inf!$A$10,$H183*12,4*($C$8-1)+1,12,1)) -> 6.113254 | R183: 13.16666667 | S183: =IF(OR(LEFT($B$8,1)="C"),#N/A,VLOOKUP($R183,Inf!$A$10:$AG$2410,4*($C$8-1)+3)) -> 0.45278 | T183: =IF(OR(LEFT($B$8,1)="C"),#N/A,VLOOKUP($R183,Inf!$A$10:$AG$2410,4*($C$8-1)+4)) -> 0.56187 | U183: =IF(OR(LEFT($B$8,1)="C"),#N/A,VLOOKUP($R183,Inf!$A$10:$AG$2410,4*($C$8-1)+5)) -> 0.68209 | V183: =IF(OR(LEFT($B$8,1)="C"),#N/A,VLOOKUP($R183,Inf!$A$10:$AG$2410,4*($C$8-1)+2)) -> 0.56761
H184: 159 | I184: =SUM(OFFSET(Inf!$A$10,$H184*12,4*($C$8-1)+2,12,1)) -> 3.2319192 | J184: =SUM(OFFSET(Inf!$A$10,$H184*12,4*($C$8-1)+3,12,1)) -> 5.9391533 | K184: =SUM(OFFSET(Inf!$A$10,$H184*12,4*($C$8-1)+4,12,1)) -> 9.66954 | L184: =SUM(OFFSET(Inf!$A$10,$H184*12,4*($C$8-1)+1,12,1)) -> 6.228084 | R184: 13.25 | S184: =IF(OR(LEFT($B$8,1)="C"),#N/A,VLOOKUP($R184,Inf!$A$10:$AG$2410,4*($C$8-1)+3)) -> 0.0083333 | T184: =IF(OR(LEFT($B$8,1)="C"),#N/A,VLOOKUP($R184,Inf!$A$10:$AG$2410,4*($C$8-1)+4)) -> 0.0083333 | U184: =IF(OR(LEFT($B$8,1)="C"),#N/A,VLOOKUP($R184,Inf!$A$10:$AG$2410,4*($C$8-1)+5)) -> 0.054222 | V184: =IF(OR(LEFT($B$8,1)="C"),#N/A,VLOOKUP($R184,Inf!$A$10:$AG$2410,4*($C$8-1)+2)) -> 0.02188
H185: 160 | I185: =SUM(OFFSET(Inf!$A$10,$H185*12,4*($C$8-1)+2,12,1)) -> 3.1873912 | J185: =SUM(OFFSET(Inf!$A$10,$H185*12,4*($C$8-1)+3,12,1)) -> 5.9516533 | K185: =SUM(OFFSET(Inf!$A$10,$H185*12,4*($C$8-1)+4,12,1)) -> 9.727948 | L185: =SUM(OFFSET(Inf!$A$10,$H185*12,4*($C$8-1)+1,12,1)) -> 6.232769 | R185: 13.33333333 | S185: =IF(OR(LEFT($B$8,1)="C"),#N/A,VLOOKUP($R185,Inf!$A$10:$AG$2410,4*($C$8-1)+3)) -> 0.0083333 | T185: =IF(OR(LEFT($B$8,1)="C"),#N/A,VLOOKUP($R185,Inf!$A$10:$AG$2410,4*($C$8-1)+4)) -> 0.18441 | U185: =IF(OR(LEFT($B$8,1)="C"),#N/A,VLOOKUP($R185,Inf!$A$10:$AG$2410,4*($C$8-1)+5)) -> 0.59866 | V185: =IF(OR(LEFT($B$8,1)="C"),#N/A,VLOOKUP($R185,Inf!$A$10:$AG$2410,4*($C$8-1)+2)) -> 0.25163
H186: 161 | I186: =SUM(OFFSET(Inf!$A$10,$H186*12,4*($C$8-1)+2,12,1)) -> 3.4794432 | J186: =SUM(OFFSET(Inf!$A$10,$H186*12,4*($C$8-1)+3,12,1)) -> 6.1086333 | K186: =SUM(OFFSET(Inf!$A$10,$H186*12,4*($C$8-1)+4,12,1)) -> 9.579535 | L186: =SUM(OFFSET(Inf!$A$10,$H186*12,4*($C$8-1)+1,12,1)) -> 6.309972 | R186: 13.41666667 | S186: =IF(OR(LEFT($B$8,1)="C"),#N/A,VLOOKUP($R186,Inf!$A$10:$AG$2410,4*($C$8-1)+3)) -> 0.0083333 | T186: =IF(OR(LEFT($B$8,1)="C"),#N/A,VLOOKUP($R186,Inf!$A$10:$AG$2410,4*($C$8-1)+4)) -> 0.18441 | U186: =IF(OR(LEFT($B$8,1)="C"),#N/A,VLOOKUP($R186,Inf!$A$10:$AG$2410,4*($C$8-1)+5)) -> 0.59866 | V186: =IF(OR(LEFT($B$8,1)="C"),#N/A,VLOOKUP($R186,Inf!$A$10:$AG$2410,4*($C$8-1)+2)) -> 0.25163
H187: 162 | I187: =SUM(OFFSET(Inf!$A$10,$H187*12,4*($C$8-1)+2,12,1)) -> 3.2118412 | J187: =SUM(OFFSET(Inf!$A$10,$H187*12,4*($C$8-1)+3,12,1)) -> 6.1145733 | K187: =SUM(OFFSET(Inf!$A$10,$H187*12,4*($C$8-1)+4,12,1)) -> 9.772773 | L187: =SUM(OFFSET(Inf!$A$10,$H187*12,4*($C$8-1)+1,12,1)) -> 6.302921 | R187: 13.5 | S187: =IF(OR(LEFT($B$8,1)="C"),#N/A,VLOOKUP($R187,Inf!$A$10:$AG$2410,4*($C$8-1)+3)) -> 0.0083333 | T187: =IF(OR(LEFT($B$8,1)="C"),#N/A,VLOOKUP($R187,Inf!$A$10:$AG$2410,4*($C$8-1)+4)) -> 0.30144 | U187: =IF(OR(LEFT($B$8,1)="C"),#N/A,VLOOKUP($R187,Inf!$A$10:$AG$2410,4*($C$8-1)+5)) -> 0.80784 | V187: =IF(OR(LEFT($B$8,1)="C"),#N/A,VLOOKUP($R187,Inf!$A$10:$AG$2410,4*($C$8-1)+2)) -> 0.36207
H188: 163 | I188: =SUM(OFFSET(Inf!$A$10,$H188*12,4*($C$8-1)+2,12,1)) -> 3.2006422 | J188: =SUM(OFFSET(Inf!$A$10,$H188*12,4*($C$8-1)+3,12,1)) -> 5.9340133 | K188: =SUM(OFFSET(Inf!$A$10,$H188*12,4*($C$8-1)+4,12,1)) -> 9.815663 | L188: =SUM(OFFSET(Inf!$A$10,$H188*12,4*($C$8-1)+1,12,1)) -> 6.225496 | R188: 13.58333333 | S188: =IF(OR(LEFT($B$8,1)="C"),#N/A,VLOOKUP($R188,Inf!$A$10:$AG$2410,4*($C$8-1)+3)) -> 0.0083333 | T188: =IF(OR(LEFT($B$8,1)="C"),#N/A,VLOOKUP($R188,Inf!$A$10:$AG$2410,4*($C$8-1)+4)) -> 0.19518 | U188: =IF(OR(LEFT($B$8,1)="C"),#N/A,VLOOKUP($R188,Inf!$A$10:$AG$2410,4*($C$8-1)+5)) -> 0.69715 | V188: =IF(OR(LEFT($B$8,1)="C"),#N/A,VLOOKUP($R188,Inf!$A$10:$AG$2410,4*($C$8-1)+2)) -> 0.28438
H189: 164 | I189: =SUM(OFFSET(Inf!$A$10,$H189*12,4*($C$8-1)+2,12,1)) -> 3.3738332 | J189: =SUM(OFFSET(Inf!$A$10,$H189*12,4*($C$8-1)+3,12,1)) -> 5.9028533 | K189: =SUM(OFFSET(Inf!$A$10,$H189*12,4*($C$8-1)+4,12,1)) -> 9.781298 | L189: =SUM(OFFSET(Inf!$A$10,$H189*12,4*($C$8-1)+1,12,1)) -> 6.263848 | R189: 13.66666667 | S189: =IF(OR(LEFT($B$8,1)="C"),#N/A,VLOOKUP($R189,Inf!$A$10:$AG$2410,4*($C$8-1)+3)) -> 0.0083333 | T189: =IF(OR(LEFT($B$8,1)="C"),#N/A,VLOOKUP($R189,Inf!$A$10:$AG$2410,4*($C$8-1)+4)) -> 0.19518 | U189: =IF(OR(LEFT($B$8,1)="C"),#N/A,VLOOKUP($R189,Inf!$A$10:$AG$2410,4*($C$8-1)+5)) -> 0.69715 | V189: =IF(OR(LEFT($B$8,1)="C"),#N/A,VLOOKUP($R189,Inf!$A$10:$AG$2410,4*($C$8-1)+2)) -> 0.28438
H190: 165 | I190: =SUM(OFFSET(Inf!$A$10,$H190*12,4*($C$8-1)+2,12,1)) -> 3.2490352 | J190: =SUM(OFFSET(Inf!$A$10,$H190*12,4*($C$8-1)+3,12,1)) -> 5.8974833 | K190: =SUM(OFFSET(Inf!$A$10,$H190*12,4*($C$8-1)+4,12,1)) -> 9.967897 | L190: =SUM(OFFSET(Inf!$A$10,$H190*12,4*($C$8-1)+1,12,1)) -> 6.289569 | R190: 13.75 | S190: =IF(OR(LEFT($B$8,1)="C"),#N/A,VLOOKUP($R190,Inf!$A$10:$AG$2410,4*($C$8-1)+3)) -> 0.2873 | T190: =IF(OR(LEFT($B$8,1)="C"),#N/A,VLOOKUP($R190,Inf!$A$10:$AG$2410,4*($C$8-1)+4)) -> 0.63762 | U190: =IF(OR(LEFT($B$8,1)="C"),#N/A,VLOOKUP($R190,Inf!$A$10:$AG$2410,4*($C$8-1)+5)) -> 0.97735 | V190: =IF(OR(LEFT($B$8,1)="C"),#N/A,VLOOKUP($R190,Inf!$A$10:$AG$2410,4*($C$8-1)+2)) -> 0.63326
H191: 166 | I191: =SUM(OFFSET(Inf!$A$10,$H191*12,4*($C$8-1)+2,12,1)) -> 3.4553932 | J191: =SUM(OFFSET(Inf!$A$10,$H191*12,4*($C$8-1)+3,12,1)) -> 6.1261433 | K191: =SUM(OFFSET(Inf!$A$10,$H191*12,4*($C$8-1)+4,12,1)) -> 9.504134 | L191: =SUM(OFFSET(Inf!$A$10,$H191*12,4*($C$8-1)+1,12,1)) -> 6.326034 | R191: 13.83333333 | S191: =IF(OR(LEFT($B$8,1)="C"),#N/A,VLOOKUP($R191,Inf!$A$10:$AG$2410,4*($C$8-1)+3)) -> 0.39882 | T191: =IF(OR(LEFT($B$8,1)="C"),#N/A,VLOOKUP($R191,Inf!$A$10:$AG$2410,4*($C$8-1)+4)) -> 0.57902 | U191: =IF(OR(LEFT($B$8,1)="C"),#N/A,VLOOKUP($R191,Inf!$A$10:$AG$2410,4*($C$8-1)+5)) -> 0.76579 | V191: =IF(OR(LEFT($B$8,1)="C"),#N/A,VLOOKUP($R191,Inf!$A$10:$AG$2410,4*($C$8-1)+2)) -> 0.58254
H192: 167 | I192: =SUM(OFFSET(Inf!$A$10,$H192*12,4*($C$8-1)+2,12,1)) -> 3.2024622 | J192: =SUM(OFFSET(Inf!$A$10,$H192*12,4*($C$8-1)+3,12,1)) -> 5.8235633 | K192: =SUM(OFFSET(Inf!$A$10,$H192*12,4*($C$8-1)+4,12,1)) -> 9.725179 | L192: =SUM(OFFSET(Inf!$A$10,$H192*12,4*($C$8-1)+1,12,1)) -> 6.211504 | R192: 13.91666667 | S192: =IF(OR(LEFT($B$8,1)="C"),#N/A,VLOOKUP($R192,Inf!$A$10:$AG$2410,4*($C$8-1)+3)) -> 0.39882 | T192: =IF(OR(LEFT($B$8,1)="C"),#N/A,VLOOKUP($R192,Inf!$A$10:$AG$2410,4*($C$8-1)+4)) -> 0.57902 | U192: =IF(OR(LEFT($B$8,1)="C"),#N/A,VLOOKUP($R192,Inf!$A$10:$AG$2410,4*($C$8-1)+5)) -> 0.76579 | V192: =IF(OR(LEFT($B$8,1)="C"),#N/A,VLOOKUP($R192,Inf!$A$10:$AG$2410,4*($C$8-1)+2)) -> 0.58254
H193: 168 | I193: =SUM(OFFSET(Inf!$A$10,$H193*12,4*($C$8-1)+2,12,1)) -> 3.3157932 | J193: =SUM(OFFSET(Inf!$A$10,$H193*12,4*($C$8-1)+3,12,1)) -> 6.0587833 | K193: =SUM(OFFSET(Inf!$A$10,$H193*12,4*($C$8-1)+4,12,1)) -> 9.487108 | L193: =SUM(OFFSET(Inf!$A$10,$H193*12,4*($C$8-1)+1,12,1)) -> 6.223551 | R193: 14 | S193: =IF(OR(LEFT($B$8,1)="C"),#N/A,VLOOKUP($R193,Inf!$A$10:$AG$2410,4*($C$8-1)+3)) -> 0.54582 | T193: =IF(OR(LEFT($B$8,1)="C"),#N/A,VLOOKUP($R193,Inf!$A$10:$AG$2410,4*($C$8-1)+4)) -> 0.6698 | U193: =IF(OR(LEFT($B$8,1)="C"),#N/A,VLOOKUP($R193,Inf!$A$10:$AG$2410,4*($C$8-1)+5)) -> 0.82705 | V193: =IF(OR(LEFT($B$8,1)="C"),#N/A,VLOOKUP($R193,Inf!$A$10:$AG$2410,4*($C$8-1)+2)) -> 0.67985
H194: 169 | I194: =SUM(OFFSET(Inf!$A$10,$H194*12,4*($C$8-1)+2,12,1)) -> 3.3322432 | J194: =SUM(OFFSET(Inf!$A$10,$H194*12,4*($C$8-1)+3,12,1)) -> 5.9218633 | K194: =SUM(OFFSET(Inf!$A$10,$H194*12,4*($C$8-1)+4,12,1)) -> 9.973597 | L194: =SUM(OFFSET(Inf!$A$10,$H194*12,4*($C$8-1)+1,12,1)) -> 6.301129 | R194: 14.08333333 | S194: =IF(OR(LEFT($B$8,1)="C"),#N/A,VLOOKUP($R194,Inf!$A$10:$AG$2410,4*($C$8-1)+3)) -> 0.44835 | T194: =IF(OR(LEFT($B$8,1)="C"),#N/A,VLOOKUP($R194,Inf!$A$10:$AG$2410,4*($C$8-1)+4)) -> 0.55019 | U194: =IF(OR(LEFT($B$8,1)="C"),#N/A,VLOOKUP($R194,Inf!$A$10:$AG$2410,4*($C$8-1)+5)) -> 0.67936 | V194: =IF(OR(LEFT($B$8,1)="C"),#N/A,VLOOKUP($R194,Inf!$A$10:$AG$2410,4*($C$8-1)+2)) -> 0.55845
H195: 170 | I195: =SUM(OFFSET(Inf!$A$10,$H195*12,4*($C$8-1)+2,12,1)) -> 3.1912012 | J195: =SUM(OFFSET(Inf!$A$10,$H195*12,4*($C$8-1)+3,12,1)) -> 5.8996433 | K195: =SUM(OFFSET(Inf!$A$10,$H195*12,4*($C$8-1)+4,12,1)) -> 9.656108 | L195: =SUM(OFFSET(Inf!$A$10,$H195*12,4*($C$8-1)+1,12,1)) -> 6.201515 | R195: 14.16666667 | S195: =IF(OR(LEFT($B$8,1)="C"),#N/A,VLOOKUP($R195,Inf!$A$10:$AG$2410,4*($C$8-1)+3)) -> 0.44835 | T195: =IF(OR(LEFT($B$8,1)="C"),#N/A,VLOOKUP($R195,Inf!$A$10:$AG$2410,4*($C$8-1)+4)) -> 0.55019 | U195: =IF(OR(LEFT($B$8,1)="C"),#N/A,VLOOKUP($R195,Inf!$A$10:$AG$2410,4*($C$8-1)+5)) -> 0.67936 | V195: =IF(OR(LEFT($B$8,1)="C"),#N/A,VLOOKUP($R195,Inf!$A$10:$AG$2410,4*($C$8-1)+2)) -> 0.55845
H196: 171 | I196: =SUM(OFFSET(Inf!$A$10,$H196*12,4*($C$8-1)+2,12,1)) -> 3.1175932 | J196: =SUM(OFFSET(Inf!$A$10,$H196*12,4*($C$8-1)+3,12,1)) -> 5.9006633 | K196: =SUM(OFFSET(Inf!$A$10,$H196*12,4*($C$8-1)+4,12,1)) -> 10.073764 | L196: =SUM(OFFSET(Inf!$A$10,$H196*12,4*($C$8-1)+1,12,1)) -> 6.213619 | R196: 14.25 | S196: =IF(OR(LEFT($B$8,1)="C"),#N/A,VLOOKUP($R196,Inf!$A$10:$AG$2410,4*($C$8-1)+3)) -> 0.0083333 | T196: =IF(OR(LEFT($B$8,1)="C"),#N/A,VLOOKUP($R196,Inf!$A$10:$AG$2410,4*($C$8-1)+4)) -> 0.0083333 | U196: =IF(OR(LEFT($B$8,1)="C"),#N/A,VLOOKUP($R196,Inf!$A$10:$AG$2410,4*($C$8-1)+5)) -> 0.061442 | V196: =IF(OR(LEFT($B$8,1)="C"),#N/A,VLOOKUP($R196,Inf!$A$10:$AG$2410,4*($C$8-1)+2)) -> 0.027415
H197: 172 | I197: =SUM(OFFSET(Inf!$A$10,$H197*12,4*($C$8-1)+2,12,1)) -> 3.4745932 | J197: =SUM(OFFSET(Inf!$A$10,$H197*12,4*($C$8-1)+3,12,1)) -> 6.0393533 | K197: =SUM(OFFSET(Inf!$A$10,$H197*12,4*($C$8-1)+4,12,1)) -> 9.97077 | L197: =SUM(OFFSET(Inf!$A$10,$H197*12,4*($C$8-1)+1,12,1)) -> 6.411019 | R197: 14.33333333 | S197: =IF(OR(LEFT($B$8,1)="C"),#N/A,VLOOKUP($R197,Inf!$A$10:$AG$2410,4*($C$8-1)+3)) -> 0.0083333 | T197: =IF(OR(LEFT($B$8,1)="C"),#N/A,VLOOKUP($R197,Inf!$A$10:$AG$2410,4*($C$8-1)+4)) -> 0.20175 | U197: =IF(OR(LEFT($B$8,1)="C"),#N/A,VLOOKUP($R197,Inf!$A$10:$AG$2410,4*($C$8-1)+5)) -> 0.66385 | V197: =IF(OR(LEFT($B$8,1)="C"),#N/A,VLOOKUP($R197,Inf!$A$10:$AG$2410,4*($C$8-1)+2)) -> 0.26777
H198: 173 | I198: =SUM(OFFSET(Inf!$A$10,$H198*12,4*($C$8-1)+2,12,1)) -> 3.2021352 | J198: =SUM(OFFSET(Inf!$A$10,$H198*12,4*($C$8-1)+3,12,1)) -> 5.5899533 | K198: =SUM(OFFSET(Inf!$A$10,$H198*12,4*($C$8-1)+4,12,1)) -> 9.280652 | L198: =SUM(OFFSET(Inf!$A$10,$H198*12,4*($C$8-1)+1,12,1)) -> 5.967175 | R198: 14.41666667 | S198: =IF(OR(LEFT($B$8,1)="C"),#N/A,VLOOKUP($R198,Inf!$A$10:$AG$2410,4*($C$8-1)+3)) -> 0.0083333 | T198: =IF(OR(LEFT($B$8,1)="C"),#N/A,VLOOKUP($R198,Inf!$A$10:$AG$2410,4*($C$8-1)+4)) -> 0.20175 | U198: =IF(OR(LEFT($B$8,1)="C"),#N/A,VLOOKUP($R198,Inf!$A$10:$AG$2410,4*($C$8-1)+5)) -> 0.66385 | V198: =IF(OR(LEFT($B$8,1)="C"),#N/A,VLOOKUP($R198,Inf!$A$10:$AG$2410,4*($C$8-1)+2)) -> 0.26777
H199: 174 | I199: =SUM(OFFSET(Inf!$A$10,$H199*12,4*($C$8-1)+2,12,1)) -> 3.1389372 | J199: =SUM(OFFSET(Inf!$A$10,$H199*12,4*($C$8-1)+3,12,1)) -> 5.8157633 | K199: =SUM(OFFSET(Inf!$A$10,$H199*12,4*($C$8-1)+4,12,1)) -> 9.617293 | L199: =SUM(OFFSET(Inf!$A$10,$H199*12,4*($C$8-1)+1,12,1)) -> 6.170921 | R199: 14.5 | S199: =IF(OR(LEFT($B$8,1)="C"),#N/A,VLOOKUP($R199,Inf!$A$10:$AG$2410,4*($C$8-1)+3)) -> 0.0083333 | T199: =IF(OR(LEFT($B$8,1)="C"),#N/A,VLOOKUP($R199,Inf!$A$10:$AG$2410,4*($C$8-1)+4)) -> 0.31285 | U199: =IF(OR(LEFT($B$8,1)="C"),#N/A,VLOOKUP($R199,Inf!$A$10:$AG$2410,4*($C$8-1)+5)) -> 0.88901 | V199: =IF(OR(LEFT($B$8,1)="C"),#N/A,VLOOKUP($R199,Inf!$A$10:$AG$2410,4*($C$8-1)+2)) -> 0.38228
H200: 175 | I200: =SUM(OFFSET(Inf!$A$10,$H200*12,4*($C$8-1)+2,12,1)) -> 3.2891132 | J200: =SUM(OFFSET(Inf!$A$10,$H200*12,4*($C$8-1)+3,12,1)) -> 6.0339233 | K200: =SUM(OFFSET(Inf!$A$10,$H200*12,4*($C$8-1)+4,12,1)) -> 9.68792 | L200: =SUM(OFFSET(Inf!$A$10,$H200*12,4*($C$8-1)+1,12,1)) -> 6.280476 | R200: 14.58333333 | S200: =IF(OR(LEFT($B$8,1)="C"),#N/A,VLOOKUP($R200,Inf!$A$10:$AG$2410,4*($C$8-1)+3)) -> 0.0083333 | T200: =IF(OR(LEFT($B$8,1)="C"),#N/A,VLOOKUP($R200,Inf!$A$10:$AG$2410,4*($C$8-1)+4)) -> 0.21708 | U200: =IF(OR(LEFT($B$8,1)="C"),#N/A,VLOOKUP($R200,Inf!$A$10:$AG$2410,4*($C$8-1)+5)) -> 0.77075 | V200: =IF(OR(LEFT($B$8,1)="C"),#N/A,VLOOKUP($R200,Inf!$A$10:$AG$2410,4*($C$8-1)+2)) -> 0.30372
H201: 176 | I201: =SUM(OFFSET(Inf!$A$10,$H201*12,4*($C$8-1)+2,12,1)) -> 3.3801332 | J201: =SUM(OFFSET(Inf!$A$10,$H201*12,4*($C$8-1)+3,12,1)) -> 6.0398933 | K201: =SUM(OFFSET(Inf!$A$10,$H201*12,4*($C$8-1)+4,12,1)) -> 9.437847 | L201: =SUM(OFFSET(Inf!$A$10,$H201*12,4*($C$8-1)+1,12,1)) -> 6.24527 | R201: 14.66666667 | S201: =IF(OR(LEFT($B$8,1)="C"),#N/A,VLOOKUP($R201,Inf!$A$10:$AG$2410,4*($C$8-1)+3)) -> 0.0083333 | T201: =IF(OR(LEFT($B$8,1)="C"),#N/A,VLOOKUP($R201,Inf!$A$10:$AG$2410,4*($C$8-1)+4)) -> 0.21708 | U201: =IF(OR(LEFT($B$8,1)="C"),#N/A,VLOOKUP($R201,Inf!$A$10:$AG$2410,4*($C$8-1)+5)) -> 0.77075 | V201: =IF(OR(LEFT($B$8,1)="C"),#N/A,VLOOKUP($R201,Inf!$A$10:$AG$2410,4*($C$8-1)+2)) -> 0.30372
H202: 177 | I202: =SUM(OFFSET(Inf!$A$10,$H202*12,4*($C$8-1)+2,12,1)) -> 3.3492832 | J202: =SUM(OFFSET(Inf!$A$10,$H202*12,4*($C$8-1)+3,12,1)) -> 5.9735933 | K202: =SUM(OFFSET(Inf!$A$10,$H202*12,4*($C$8-1)+4,12,1)) -> 9.499564 | L202: =SUM(OFFSET(Inf!$A$10,$H202*12,4*($C$8-1)+1,12,1)) -> 6.267043 | R202: 14.75 | S202: =IF(OR(LEFT($B$8,1)="C"),#N/A,VLOOKUP($R202,Inf!$A$10:$AG$2410,4*($C$8-1)+3)) -> 0.28756 | T202: =IF(OR(LEFT($B$8,1)="C"),#N/A,VLOOKUP($R202,Inf!$A$10:$AG$2410,4*($C$8-1)+4)) -> 0.62615 | U202: =IF(OR(LEFT($B$8,1)="C"),#N/A,VLOOKUP($R202,Inf!$A$10:$AG$2410,4*($C$8-1)+5)) -> 1.0142 | V202: =IF(OR(LEFT($B$8,1)="C"),#N/A,VLOOKUP($R202,Inf!$A$10:$AG$2410,4*($C$8-1)+2)) -> 0.63946
H203: 178 | I203: =SUM(OFFSET(Inf!$A$10,$H203*12,4*($C$8-1)+2,12,1)) -> 3.3556732 | J203: =SUM(OFFSET(Inf!$A$10,$H203*12,4*($C$8-1)+3,12,1)) -> 5.9331533 | K203: =SUM(OFFSET(Inf!$A$10,$H203*12,4*($C$8-1)+4,12,1)) -> 9.710424 | L203: =SUM(OFFSET(Inf!$A$10,$H203*12,4*($C$8-1)+1,12,1)) -> 6.284284 | R203: 14.83333333 | S203: =IF(OR(LEFT($B$8,1)="C"),#N/A,VLOOKUP($R203,Inf!$A$10:$AG$2410,4*($C$8-1)+3)) -> 0.39977 | T203: =IF(OR(LEFT($B$8,1)="C"),#N/A,VLOOKUP($R203,Inf!$A$10:$AG$2410,4*($C$8-1)+4)) -> 0.56956 | U203: =IF(OR(LEFT($B$8,1)="C"),#N/A,VLOOKUP($R203,Inf!$A$10:$AG$2410,4*($C$8-1)+5)) -> 0.76666 | V203: =IF(OR(LEFT($B$8,1)="C"),#N/A,VLOOKUP($R203,Inf!$A$10:$AG$2410,4*($C$8-1)+2)) -> 0.57998
H204: 179 | I204: =SUM(OFFSET(Inf!$A$10,$H204*12,4*($C$8-1)+2,12,1)) -> 3.4533332 | J204: =SUM(OFFSET(Inf!$A$10,$H204*12,4*($C$8-1)+3,12,1)) -> 5.9282033 | K204: =SUM(OFFSET(Inf!$A$10,$H204*12,4*($C$8-1)+4,12,1)) -> 9.77685 | L204: =SUM(OFFSET(Inf!$A$10,$H204*12,4*($C$8-1)+1,12,1)) -> 6.282827 | R204: 14.91666667 | S204: =IF(OR(LEFT($B$8,1)="C"),#N/A,VLOOKUP($R204,Inf!$A$10:$AG$2410,4*($C$8-1)+3)) -> 0.39977 | T204: =IF(OR(LEFT($B$8,1)="C"),#N/A,VLOOKUP($R204,Inf!$A$10:$AG$2410,4*($C$8-1)+4)) -> 0.56956 | U204: =IF(OR(LEFT($B$8,1)="C"),#N/A,VLOOKUP($R204,Inf!$A$10:$AG$2410,4*($C$8-1)+5)) -> 0.76666 | V204: =IF(OR(LEFT($B$8,1)="C"),#N/A,VLOOKUP($R204,Inf!$A$10:$AG$2410,4*($C$8-1)+2)) -> 0.57998
H205: 180 | I205: =SUM(OFFSET(Inf!$A$10,$H205*12,4*($C$8-1)+2,12,1)) -> 3.2990562 | J205: =SUM(OFFSET(Inf!$A$10,$H205*12,4*($C$8-1)+3,12,1)) -> 6.0114733 | K205: =SUM(OFFSET(Inf!$A$10,$H205*12,4*($C$8-1)+4,12,1)) -> 9.458599 | L205: =SUM(OFFSET(Inf!$A$10,$H205*12,4*($C$8-1)+1,12,1)) -> 6.263352 | R205: 15 | S205: =IF(OR(LEFT($B$8,1)="C"),#N/A,VLOOKUP($R205,Inf!$A$10:$AG$2410,4*($C$8-1)+3)) -> 0.55057 | T205: =IF(OR(LEFT($B$8,1)="C"),#N/A,VLOOKUP($R205,Inf!$A$10:$AG$2410,4*($C$8-1)+4)) -> 0.67069 | U205: =IF(OR(LEFT($B$8,1)="C"),#N/A,VLOOKUP($R205,Inf!$A$10:$AG$2410,4*($C$8-1)+5)) -> 0.83885 | V205: =IF(OR(LEFT($B$8,1)="C"),#N/A,VLOOKUP($R205,Inf!$A$10:$AG$2410,4*($C$8-1)+2)) -> 0.6785
H206: 181 | I206: =SUM(OFFSET(Inf!$A$10,$H206*12,4*($C$8-1)+2,12,1)) -> 3.2670282 | J206: =SUM(OFFSET(Inf!$A$10,$H206*12,4*($C$8-1)+3,12,1)) -> 6.0245833 | K206: =SUM(OFFSET(Inf!$A$10,$H206*12,4*($C$8-1)+4,12,1)) -> 9.512974 | L206: =SUM(OFFSET(Inf!$A$10,$H206*12,4*($C$8-1)+1,12,1)) -> 6.212954 | R206: 15.08333333 | S206: =IF(OR(LEFT($B$8,1)="C"),#N/A,VLOOKUP($R206,Inf!$A$10:$AG$2410,4*($C$8-1)+3)) -> 0.45225 | T206: =IF(OR(LEFT($B$8,1)="C"),#N/A,VLOOKUP($R206,Inf!$A$10:$AG$2410,4*($C$8-1)+4)) -> 0.55092 | U206: =IF(OR(LEFT($B$8,1)="C"),#N/A,VLOOKUP($R206,Inf!$A$10:$AG$2410,4*($C$8-1)+5)) -> 0.68905 | V206: =IF(OR(LEFT($B$8,1)="C"),#N/A,VLOOKUP($R206,Inf!$A$10:$AG$2410,4*($C$8-1)+2)) -> 0.55734
H207: 182 | I207: =SUM(OFFSET(Inf!$A$10,$H207*12,4*($C$8-1)+2,12,1)) -> 3.3402932 | J207: =SUM(OFFSET(Inf!$A$10,$H207*12,4*($C$8-1)+3,12,1)) -> 6.0799033 | K207: =SUM(OFFSET(Inf!$A$10,$H207*12,4*($C$8-1)+4,12,1)) -> 9.888754 | L207: =SUM(OFFSET(Inf!$A$10,$H207*12,4*($C$8-1)+1,12,1)) -> 6.315051 | R207: 15.16666667 | S207: =IF(OR(LEFT($B$8,1)="C"),#N/A,VLOOKUP($R207,Inf!$A$10:$AG$2410,4*($C$8-1)+3)) -> 0.45225 | T207: =IF(OR(LEFT($B$8,1)="C"),#N/A,VLOOKUP($R207,Inf!$A$10:$AG$2410,4*($C$8-1)+4)) -> 0.55092 | U207: =IF(OR(LEFT($B$8,1)="C"),#N/A,VLOOKUP($R207,Inf!$A$10:$AG$2410,4*($C$8-1)+5)) -> 0.68905 | V207: =IF(OR(LEFT($B$8,1)="C"),#N/A,VLOOKUP($R207,Inf!$A$10:$AG$2410,4*($C$8-1)+2)) -> 0.55734
... 58 more rows

Sheet Inf
A1: =A7 -> ! GoldSim Time History Results,GSVersion:10.50.300
A2: =C7 -> Element:\Results\PROJECT_results\Unsat_Zones\Project\NM_Infiltration
A3: =D7 -> Model:C:\Tailings Basin\Version 6.0\NorthMet_PlantSite_FEIS_BiggerWWTP.gsm
A4: =E7 -> Time:12/15/2014 16:12:17
A5: Copied | B5: 2014-12-16T08:39:16
B6: North Beach | F6: North Dam | J6: East Beach | N6: East Dam | R6: South Beach | V6: South Dam | Z6: Closure Beach
A7: ! GoldSim Time History Results,GSVersion:10.50.300 | B7: Result:Statistics | C7: Element:\Results\PROJECT_results\Unsat_Zones\Project\NM_Infiltration | D7: Model:C:\Tailings Basin\Version 6.0\NorthMet_PlantSite_FEIS_BiggerWWTP.gsm | E7: Time:12/15/2014 16:12:17
A8: !Statistics
A9: Time (yr) | B9: Ave_Infiltration_Rate [in/mon],Mean | C9: Ave_Infiltration_Rate [in/mon],10% | D9: Ave_Infiltration_Rate [in/mon],Median | E9: Ave_Infiltration_Rate [in/mon],90% | F9: INF_Limited [in/mon],Mean | G9: INF_Limited [in/mon],10% | H9: INF_Limited [in/mon],Median | I9: INF_Limited [in/mon],90% | J9: Ave_Infiltration_Rate [in/mon],Mean | K9: Ave_Infiltration_Rate [in/mon],10% | L9: Ave_Infiltration_Rate [in/mon],Median | M9: Ave_Infiltration_Rate [in/mon],90% | N9: INF_Limited [in/mon],Mean | O9: INF_Limited [in/mon],10% | P9: INF_Limited [in/mon],Median | Q9: INF_Limited [in/mon],90% | R9: Ave_Infiltration_Rate [in/mon],Mean | S9: Ave_Infiltration_Rate [in/mon],10% | T9: Ave_Infiltration_Rate [in/mon],Median | U9: Ave_Infiltration_Rate [in/mon],90% | V9: INF_Limited [in/mon],Mean | W9: INF_Limited [in/mon],10% | X9: INF_Limited [in/mon],Median | Y9: INF_Limited [in/mon],90% | Z9: Ave_Infiltration_Rate [in/mon],Mean | AA9: Ave_Infiltration_Rate [in/mon],10% | AB9: Ave_Infiltration_Rate [in/mon],Median | AC9: Ave_Infiltration_Rate [in/mon],90%
A10: 0 | B10: 0.63152 | C10: 0.50448 | D10: 0.63026 | E10: 0.76155 | F10: 0.68321 | G10: 0.54959 | H10: 0.67468 | I10: 0.82433 | J10: 0.65 | K10: 0.65 | L10: 0.65 | M10: 0.65 | N10: 0 | O10: 0 | P10: 0 | Q10: 0 | R10: 0.65 | S10: 0.65 | T10: 0.65 | U10: 0.65 | V10: 0 | W10: 0 | X10: 0 | Y10: 0 | Z10: 0.65 | AA10: 0.65 | AB10: 0.65 | AC10: 0.65
A11: 0.0833333 | B11: 24.981 | C11: 17.908 | D11: 24.266 | E11: 32.62 | F11: 0.56121 | G11: 0.45145 | H11: 0.5542 | I11: 0.67713 | J11: 0.65 | K11: 0.65 | L11: 0.65 | M11: 0.65 | N11: 0 | O11: 0 | P11: 0 | Q11: 0 | R11: 0.65 | S11: 0.65 | T11: 0.65 | U11: 0.65 | V11: 0 | W11: 0 | X11: 0 | Y11: 0 | Z11: 0.65 | AA11: 0.65 | AB11: 0.65 | AC11: 0.65
A12: 0.166667 | B12: 24.76 | C12: 17.625 | D12: 24.033 | E12: 32.415 | F12: 0.21824 | G12: 0.09913 | H12: 0.20751 | I12: 0.33835 | J12: 0.65 | K12: 0.65 | L12: 0.65 | M12: 0.65 | N12: 0 | O12: 0 | P12: 0 | Q12: 0 | R12: 0.65 | S12: 0.65 | T12: 0.65 | U12: 0.65 | V12: 0 | W12: 0 | X12: 0 | Y12: 0 | Z12: 0.65 | AA12: 0.65 | AB12: 0.65 | AC12: 0.65
A13: 0.25 | B13: 24.572 | C13: 17.434 | D13: 23.849 | E13: 32.236 | F13: 0.026849 | G13: 0.0083333 | H13: 0.0083333 | I13: 0.065671 | J13: 0.65 | K13: 0.65 | L13: 0.65 | M13: 0.65 | N13: 0 | O13: 0 | P13: 0 | Q13: 0 | R13: 0.65 | S13: 0.65 | T13: 0.65 | U13: 0.65 | V13: 0 | W13: 0 | X13: 0 | Y13: 0 | Z13: 0.65 | AA13: 0.65 | AB13: 0.65 | AC13: 0.65
A14: 0.333333 | B14: 25.018 | C14: 17.805 | D14: 24.337 | E14: 32.786 | F14: 0.2664 | G14: 0.0083333 | H14: 0.18676 | I14: 0.66029 | J14: 0.65 | K14: 0.65 | L14: 0.65 | M14: 0.65 | N14: 0 | O14: 0 | P14: 0 | Q14: 0 | R14: 0.65 | S14: 0.65 | T14: 0.65 | U14: 0.65 | V14: 0 | W14: 0 | X14: 0 | Y14: 0 | Z14: 0.65 | AA14: 0.65 | AB14: 0.65 | AC14: 0.65
A15: 0.416667 | B15: 25.651 | C15: 18.503 | D15: 24.944 | E15: 33.518 | F15: 0.87661 | G15: 0.36714 | H15: 0.83557 | I15: 1.3954 | J15: 0.65 | K15: 0.65 | L15: 0.65 | M15: 0.65 | N15: 0 | O15: 0 | P15: 0 | Q15: 0 | R15: 0.65 | S15: 0.65 | T15: 0.65 | U15: 0.65 | V15: 0 | W15: 0 | X15: 0 | Y15: 0 | Z15: 0.65 | AA15: 0.65 | AB15: 0.65 | AC15: 0.65
A16: 0.5 | B16: 25.222 | C16: 17.979 | D16: 24.532 | E16: 33.039 | F16: 0.3814 | G16: 0.0083333 | H16: 0.30292 | I16: 0.88035 | J16: 0.65 | K16: 0.65 | L16: 0.65 | M16: 0.65 | N16: 0 | O16: 0 | P16: 0 | Q16: 0 | R16: 0.65 | S16: 0.65 | T16: 0.65 | U16: 0.65 | V16: 0 | W16: 0 | X16: 0 | Y16: 0 | Z16: 0.65 | AA16: 0.65 | AB16: 0.65 | AC16: 0.65
A17: 0.583333 | B17: 25.14 | C17: 17.889 | D17: 24.453 | E17: 32.956 | F17: 0.30188 | G17: 0.0083333 | H17: 0.19835 | I17: 0.77051 | J17: 0.65 | K17: 0.65 | L17: 0.65 | M17: 0.65 | N17: 0 | O17: 0 | P17: 0 | Q17: 0 | R17: 0.65 | S17: 0.65 | T17: 0.65 | U17: 0.65 | V17: 0 | W17: 0 | X17: 0 | Y17: 0 | Z17: 0.65 | AA17: 0.65 | AB17: 0.65 | AC17: 0.65
A18: 0.666667 | B18: 25.699 | C18: 18.547 | D18: 24.992 | E18: 33.56 | F18: 0.90875 | G18: 0.42356 | H18: 0.86535 | I18: 1.4001 | J18: 0.65 | K18: 0.65 | L18: 0.65 | M18: 0.65 | N18: 0 | O18: 0 | P18: 0 | Q18: 0 | R18: 0.65 | S18: 0.65 | T18: 0.65 | U18: 0.65 | V18: 0 | W18: 0 | X18: 0 | Y18: 0 | Z18: 0.65 | AA18: 0.65 | AB18: 0.65 | AC18: 0.65
A19: 0.75 | B19: 25.38 | C19: 18.182 | D19: 24.705 | E19: 33.155 | F19: 0.64348 | G19: 0.30536 | H19: 0.61373 | I19: 0.98716 | J19: 0.65 | K19: 0.65 | L19: 0.65 | M19: 0.65 | N19: 0 | O19: 0 | P19: 0 | Q19: 0 | R19: 0.65 | S19: 0.65 | T19: 0.65 | U19: 0.65 | V19: 0 | W19: 0 | X19: 0 | Y19: 0 | Z19: 0.65 | AA19: 0.65 | AB19: 0.65 | AC19: 0.65
A20: 0.833333 | B20: 25.212 | C20: 18.048 | D20: 24.489 | E20: 32.924 | F20: 0.58305 | G20: 0.39395 | H20: 0.57225 | I20: 0.7808 | J20: 0.65 | K20: 0.65 | L20: 0.65 | M20: 0.65 | N20: 0 | O20: 0 | P20: 0 | Q20: 0 | R20: 0.65 | S20: 0.65 | T20: 0.65 | U20: 0.65 | V20: 0 | W20: 0 | X20: 0 | Y20: 0 | Z20: 0.65 | AA20: 0.65 | AB20: 0.65 | AC20: 0.65
A21: 0.916667 | B21: 25.365 | C21: 18.244 | D21: 24.639 | E21: 33.065 | F21: 0.82961 | G21: 0.66736 | H21: 0.81926 | I21: 1.001 | J21: 0.65 | K21: 0.65 | L21: 0.65 | M21: 0.65 | N21: 0 | O21: 0 | P21: 0 | Q21: 0 | R21: 0.65 | S21: 0.65 | T21: 0.65 | U21: 0.65 | V21: 0 | W21: 0 | X21: 0 | Y21: 0 | Z21: 0.65 | AA21: 0.65 | AB21: 0.65 | AC21: 0.65
A22: 1 | B22: 25.341 | C22: 18.583 | D22: 24.672 | E22: 33.581 | F22: 0.69327 | G22: 0.56439 | H22: 0.6869 | I22: 0.84892 | J22: 0.65 | K22: 0.65 | L22: 0.65 | M22: 0.65 | N22: 0 | O22: 0 | P22: 0 | Q22: 0 | R22: 0.65 | S22: 0.65 | T22: 0.65 | U22: 0.65 | V22: 0 | W22: 0 | X22: 0 | Y22: 0 | Z22: 0.65 | AA22: 0.65 | AB22: 0.65 | AC22: 0.65
A23: 1.08333 | B23: 25.244 | C23: 18.496 | D23: 24.586 | E23: 33.485 | F23: 0.56947 | G23: 0.46361 | H23: 0.56424 | I23: 0.69733 | J23: 0.65 | K23: 0.65 | L23: 0.65 | M23: 0.65 | N23: 0 | O23: 0 | P23: 0 | Q23: 0 | R23: 0.65 | S23: 0.65 | T23: 0.65 | U23: 0.65 | V23: 0 | W23: 0 | X23: 0 | Y23: 0 | Z23: 0.65 | AA23: 0.65 | AB23: 0.65 | AC23: 0.65
A24: 1.16667 | B24: 25.024 | C24: 18.299 | D24: 24.337 | E24: 33.204 | F24: 0.22402 | G24: 0.10496 | H24: 0.21023 | I24: 0.35814 | J24: 0.65 | K24: 0.65 | L24: 0.65 | M24: 0.65 | N24: 0 | O24: 0 | P24: 0 | Q24: 0 | R24: 0.65 | S24: 0.65 | T24: 0.65 | U24: 0.65 | V24: 0 | W24: 0 | X24: 0 | Y24: 0 | Z24: 0.65 | AA24: 0.65 | AB24: 0.65 | AC24: 0.65
A25: 1.25 | B25: 24.837 | C25: 18.076 | D25: 24.136 | E25: 33.007 | F25: 0.030352 | G25: 0.0083333 | H25: 0.0083333 | I25: 0.083981 | J25: 0.65 | K25: 0.65 | L25: 0.65 | M25: 0.65 | N25: 0 | O25: 0 | P25: 0 | Q25: 0 | R25: 0.65 | S25: 0.65 | T25: 0.65 | U25: 0.65 | V25: 0 | W25: 0 | X25: 0 | Y25: 0 | Z25: 0.65 | AA25: 0.65 | AB25: 0.65 | AC25: 0.65
A26: 1.33333 | B26: 25.296 | C26: 18.5 | D26: 24.563 | E26: 33.466 | F26: 0.28359 | G26: 0.0083333 | H26: 0.21239 | I26: 0.68133 | J26: 0.65 | K26: 0.65 | L26: 0.65 | M26: 0.65 | N26: 0 | O26: 0 | P26: 0 | Q26: 0 | R26: 0.65 | S26: 0.65 | T26: 0.65 | U26: 0.65 | V26: 0 | W26: 0 | X26: 0 | Y26: 0 | Z26: 0.65 | AA26: 0.65 | AB26: 0.65 | AC26: 0.65
A27: 1.41667 | B27: 25.939 | C27: 19.244 | D27: 25.235 | E27: 34.194 | F27: 0.90072 | G27: 0.38403 | H27: 0.84011 | I27: 1.4762 | J27: 0.65 | K27: 0.65 | L27: 0.65 | M27: 0.65 | N27: 0 | O27: 0 | P27: 0 | Q27: 0 | R27: 0.65 | S27: 0.65 | T27: 0.65 | U27: 0.65 | V27: 0 | W27: 0 | X27: 0 | Y27: 0 | Z27: 0.65 | AA27: 0.65 | AB27: 0.65 | AC27: 0.65
A28: 1.5 | B28: 25.506 | C28: 18.691 | D28: 24.755 | E28: 33.712 | F28: 0.40293 | G28: 0.0083333 | H28: 0.32315 | I28: 0.90657 | J28: 0.65 | K28: 0.65 | L28: 0.65 | M28: 0.65 | N28: 0 | O28: 0 | P28: 0 | Q28: 0 | R28: 0.65 | S28: 0.65 | T28: 0.65 | U28: 0.65 | V28: 0 | W28: 0 | X28: 0 | Y28: 0 | Z28: 0.65 | AA28: 0.65 | AB28: 0.65 | AC28: 0.65
A29: 1.58333 | B29: 25.424 | C29: 18.592 | D29: 24.685 | E29: 33.63 | F29: 0.32229 | G29: 0.0083333 | H29: 0.23359 | I29: 0.7926 | J29: 0.65 | K29: 0.65 | L29: 0.65 | M29: 0.65 | N29: 0 | O29: 0 | P29: 0 | Q29: 0 | R29: 0.65 | S29: 0.65 | T29: 0.65 | U29: 0.65 | V29: 0 | W29: 0 | X29: 0 | Y29: 0 | Z29: 0.65 | AA29: 0.65 | AB29: 0.65 | AC29: 0.65
A30: 1.66667 | B30: 25.986 | C30: 19.277 | D30: 25.289 | E30: 34.271 | F30: 0.93256 | G30: 0.44733 | H30: 0.8759 | I30: 1.4822 | J30: 0.65 | K30: 0.65 | L30: 0.65 | M30: 0.65 | N30: 0 | O30: 0 | P30: 0 | Q30: 0 | R30: 0.65 | S30: 0.65 | T30: 0.65 | U30: 0.65 | V30: 0 | W30: 0 | X30: 0 | Y30: 0 | Z30: 0.65 | AA30: 0.65 | AB30: 0.65 | AC30: 0.65
A31: 1.75 | B31: 25.659 | C31: 18.899 | D31: 24.928 | E31: 33.92 | F31: 0.6603 | G31: 0.32147 | H31: 0.61969 | I31: 1.0444 | J31: 0.65 | K31: 0.65 | L31: 0.65 | M31: 0.65 | N31: 0 | O31: 0 | P31: 0 | Q31: 0 | R31: 0.65 | S31: 0.65 | T31: 0.65 | U31: 0.65 | V31: 0 | W31: 0 | X31: 0 | Y31: 0 | Z31: 0.65 | AA31: 0.65 | AB31: 0.65 | AC31: 0.65
A32: 1.83333 | B32: 25.484 | C32: 18.71 | D32: 24.793 | E32: 33.718 | F32: 0.59452 | G32: 0.41488 | H32: 0.57709 | I32: 0.80803 | J32: 0.65 | K32: 0.65 | L32: 0.65 | M32: 0.65 | N32: 0 | O32: 0 | P32: 0 | Q32: 0 | R32: 0.65 | S32: 0.65 | T32: 0.65 | U32: 0.65 | V32: 0 | W32: 0 | X32: 0 | Y32: 0 | Z32: 0.65 | AA32: 0.65 | AB32: 0.65 | AC32: 0.65
A33: 1.91667 | B33: 25.635 | C33: 18.817 | D33: 24.971 | E33: 33.921 | F33: 0.84182 | G33: 0.68533 | H33: 0.8341 | I33: 1.0308 | J33: 0.65 | K33: 0.65 | L33: 0.65 | M33: 0.65 | N33: 0 | O33: 0 | P33: 0 | Q33: 0 | R33: 0.65 | S33: 0.65 | T33: 0.65 | U33: 0.65 | V33: 0 | W33: 0 | X33: 0 | Y33: 0 | Z33: 0.65 | AA33: 0.65 | AB33: 0.65 | AC33: 0.65
A34: 2 | B34: 25.28 | C34: 17.768 | D34: 24.559 | E34: 33.146 | F34: 0.67791 | G34: 0.53232 | H34: 0.67189 | I34: 0.82544 | J34: 0.65 | K34: 0.65 | L34: 0.65 | M34: 0.65 | N34: 0 | O34: 0 | P34: 0 | Q34: 0 | R34: 0.65 | S34: 0.65 | T34: 0.65 | U34: 0.65 | V34: 0 | W34: 0 | X34: 0 | Y34: 0 | Z34: 0.65 | AA34: 0.65 | AB34: 0.65 | AC34: 0.65
A35: 2.08333 | B35: 25.199 | C35: 17.663 | D35: 24.48 | E35: 33.076 | F35: 0.55686 | G35: 0.43726 | H35: 0.55191 | I35: 0.67804 | J35: 0.65 | K35: 0.65 | L35: 0.65 | M35: 0.65 | N35: 0 | O35: 0 | P35: 0 | Q35: 0 | R35: 0.65 | S35: 0.65 | T35: 0.65 | U35: 0.65 | V35: 0 | W35: 0 | X35: 0 | Y35: 0 | Z35: 0.65 | AA35: 0.65 | AB35: 0.65 | AC35: 0.65
A36: 2.16667 | B36: 24.995 | C36: 17.454 | D36: 24.267 | E36: 32.872 | F36: 0.20828 | G36: 0.094388 | H36: 0.20701 | I36: 0.31787 | J36: 0.65 | K36: 0.65 | L36: 0.65 | M36: 0.65 | N36: 0 | O36: 0 | P36: 0 | Q36: 0 | R36: 0.65 | S36: 0.65 | T36: 0.65 | U36: 0.65 | V36: 0 | W36: 0 | X36: 0 | Y36: 0 | Z36: 0.65 | AA36: 0.65 | AB36: 0.65 | AC36: 0.65
A37: 2.25 | B37: 24.82 | C37: 17.292 | D37: 24.063 | E37: 32.66 | F37: 0.022745 | G37: 0.0083333 | H37: 0.0083333 | I37: 0.030735 | J37: 0.65 | K37: 0.65 | L37: 0.65 | M37: 0.65 | N37: 0 | O37: 0 | P37: 0 | Q37: 0 | R37: 0.65 | S37: 0.65 | T37: 0.65 | U37: 0.65 | V37: 0 | W37: 0 | X37: 0 | Y37: 0 | Z37: 0.65 | AA37: 0.65 | AB37: 0.65 | AC37: 0.65
A38: 2.33333 | B38: 25.286 | C38: 17.813 | D38: 24.494 | E38: 33.096 | F38: 0.23665 | G38: 0.0083333 | H38: 0.16568 | I38: 0.55404 | J38: 0.65 | K38: 0.65 | L38: 0.65 | M38: 0.65 | N38: 0 | O38: 0 | P38: 0 | Q38: 0 | R38: 0.65 | S38: 0.65 | T38: 0.65 | U38: 0.65 | V38: 0 | W38: 0 | X38: 0 | Y38: 0 | Z38: 0.65 | AA38: 0.65 | AB38: 0.65 | AC38: 0.65
A39: 2.41667 | B39: 25.93 | C39: 18.501 | D39: 25.125 | E39: 33.837 | F39: 0.83401 | G39: 0.35149 | H39: 0.8272 | I39: 1.3033 | J39: 0.65 | K39: 0.65 | L39: 0.65 | M39: 0.65 | N39: 0 | O39: 0 | P39: 0 | Q39: 0 | R39: 0.65 | S39: 0.65 | T39: 0.65 | U39: 0.65 | V39: 0 | W39: 0 | X39: 0 | Y39: 0 | Z39: 0.65 | AA39: 0.65 | AB39: 0.65 | AC39: 0.65
A40: 2.5 | B40: 25.519 | C40: 18.063 | D40: 24.711 | E40: 33.379 | F40: 0.34296 | G40: 0.0083333 | H40: 0.27175 | I40: 0.75175 | J40: 0.65 | K40: 0.65 | L40: 0.65 | M40: 0.65 | N40: 0 | O40: 0 | P40: 0 | Q40: 0 | R40: 0.65 | S40: 0.65 | T40: 0.65 | U40: 0.65 | V40: 0 | W40: 0 | X40: 0 | Y40: 0 | Z40: 0.65 | AA40: 0.65 | AB40: 0.65 | AC40: 0.65
A41: 2.58333 | B41: 25.454 | C41: 17.985 | D41: 24.634 | E41: 33.305 | F41: 0.26708 | G41: 0.0083333 | H41: 0.17023 | I41: 0.64113 | J41: 0.65 | K41: 0.65 | L41: 0.65 | M41: 0.65 | N41: 0 | O41: 0 | P41: 0 | Q41: 0 | R41: 0.65 | S41: 0.65 | T41: 0.65 | U41: 0.65 | V41: 0 | W41: 0 | X41: 0 | Y41: 0 | Z41: 0.65 | AA41: 0.65 | AB41: 0.65 | AC41: 0.65
A42: 2.66667 | B42: 26.022 | C42: 18.56 | D42: 25.223 | E42: 33.947 | F42: 0.86789 | G42: 0.40001 | H42: 0.86146 | I42: 1.3162 | J42: 0.65 | K42: 0.65 | L42: 0.65 | M42: 0.65 | N42: 0 | O42: 0 | P42: 0 | Q42: 0 | R42: 0.65 | S42: 0.65 | T42: 0.65 | U42: 0.65 | V42: 0 | W42: 0 | X42: 0 | Y42: 0 | Z42: 0.65 | AA42: 0.65 | AB42: 0.65 | AC42: 0.65
A43: 2.75 | B43: 25.72 | C43: 18.218 | D43: 24.932 | E43: 33.611 | F43: 0.61507 | G43: 0.28797 | H43: 0.61075 | I43: 0.92785 | J43: 0.65 | K43: 0.65 | L43: 0.65 | M43: 0.65 | N43: 0 | O43: 0 | P43: 0 | Q43: 0 | R43: 0.65 | S43: 0.65 | T43: 0.65 | U43: 0.65 | V43: 0 | W43: 0 | X43: 0 | Y43: 0 | Z43: 0.65 | AA43: 0.65 | AB43: 0.65 | AC43: 0.65
A44: 2.83333 | B44: 25.567 | C44: 17.976 | D44: 24.81 | E44: 33.514 | F44: 0.56895 | G44: 0.39287 | H44: 0.56938 | I44: 0.74288 | J44: 0.65 | K44: 0.65 | L44: 0.65 | M44: 0.65 | N44: 0 | O44: 0 | P44: 0 | Q44: 0 | R44: 0.65 | S44: 0.65 | T44: 0.65 | U44: 0.65 | V44: 0 | W44: 0 | X44: 0 | Y44: 0 | Z44: 0.65 | AA44: 0.65 | AB44: 0.65 | AC44: 0.65
A45: 2.91667 | B45: 25.733 | C45: 18.123 | D45: 24.982 | E45: 33.701 | F45: 0.82318 | G45: 0.64639 | H45: 0.81587 | I45: 1.0023 | J45: 0.65 | K45: 0.65 | L45: 0.65 | M45: 0.65 | N45: 0 | O45: 0 | P45: 0 | Q45: 0 | R45: 0.65 | S45: 0.65 | T45: 0.65 | U45: 0.65 | V45: 0 | W45: 0 | X45: 0 | Y45: 0 | Z45: 0.65 | AA45: 0.65 | AB45: 0.65 | AC45: 0.65
A46: 3 | B46: 25.341 | C46: 18.026 | D46: 24.621 | E46: 33.341 | F46: 0.68441 | G46: 0.53634 | H46: 0.67797 | I46: 0.83731 | J46: 0.65 | K46: 0.65 | L46: 0.65 | M46: 0.65 | N46: 0 | O46: 0 | P46: 0 | Q46: 0 | R46: 0.65 | S46: 0.65 | T46: 0.65 | U46: 0.65 | V46: 0 | W46: 0 | X46: 0 | Y46: 0 | Z46: 0.65 | AA46: 0.65 | AB46: 0.65 | AC46: 0.65
A47: 3.08333 | B47: 25.26 | C47: 17.936 | D47: 24.542 | E47: 33.245 | F47: 0.5622 | G47: 0.44057 | H47: 0.5569 | I47: 0.68779 | J47: 0.65 | K47: 0.65 | L47: 0.65 | M47: 0.65 | N47: 0 | O47: 0 | P47: 0 | Q47: 0 | R47: 0.65 | S47: 0.65 | T47: 0.65 | U47: 0.65 | V47: 0 | W47: 0 | X47: 0 | Y47: 0 | Z47: 0.65 | AA47: 0.65 | AB47: 0.65 | AC47: 0.65
A48: 3.16667 | B48: 25.05 | C48: 17.694 | D48: 24.368 | E48: 32.983 | F48: 0.21907 | G48: 0.1029 | H48: 0.20901 | I48: 0.34211 | J48: 0.65 | K48: 0.65 | L48: 0.65 | M48: 0.65 | N48: 0 | O48: 0 | P48: 0 | Q48: 0 | R48: 0.65 | S48: 0.65 | T48: 0.65 | U48: 0.65 | V48: 0 | W48: 0 | X48: 0 | Y48: 0 | Z48: 0.65 | AA48: 0.65 | AB48: 0.65 | AC48: 0.65
A49: 3.25 | B49: 24.876 | C49: 17.553 | D49: 24.195 | E49: 32.795 | F49: 0.027713 | G49: 0.0083333 | H49: 0.0083333 | I49: 0.075853 | J49: 0.65 | K49: 0.65 | L49: 0.65 | M49: 0.65 | N49: 0 | O49: 0 | P49: 0 | Q49: 0 | R49: 0.65 | S49: 0.65 | T49: 0.65 | U49: 0.65 | V49: 0 | W49: 0 | X49: 0 | Y49: 0 | Z49: 0.65 | AA49: 0.65 | AB49: 0.65 | AC49: 0.65
A50: 3.33333 | B50: 25.329 | C50: 17.96 | D50: 24.669 | E50: 33.282 | F50: 0.26895 | G50: 0.0083333 | H50: 0.1909 | I50: 0.67521 | J50: 0.65 | K50: 0.65 | L50: 0.65 | M50: 0.65 | N50: 0 | O50: 0 | P50: 0 | Q50: 0 | R50: 0.65 | S50: 0.65 | T50: 0.65 | U50: 0.65 | V50: 0 | W50: 0 | X50: 0 | Y50: 0 | Z50: 0.65 | AA50: 0.65 | AB50: 0.65 | AC50: 0.65
A51: 3.41667 | B51: 25.977 | C51: 18.535 | D51: 25.279 | E51: 34.068 | F51: 0.8801 | G51: 0.36946 | H51: 0.83836 | I51: 1.4042 | J51: 0.65 | K51: 0.65 | L51: 0.65 | M51: 0.65 | N51: 0 | O51: 0 | P51: 0 | Q51: 0 | R51: 0.65 | S51: 0.65 | T51: 0.65 | U51: 0.65 | V51: 0 | W51: 0 | X51: 0 | Y51: 0 | Z51: 0.65 | AA51: 0.65 | AB51: 0.65 | AC51: 0.65
A52: 3.5 | B52: 25.561 | C52: 18.127 | D52: 24.882 | E52: 33.533 | F52: 0.38532 | G52: 0.0083333 | H52: 0.30642 | I52: 0.8941 | J52: 0.65 | K52: 0.65 | L52: 0.65 | M52: 0.65 | N52: 0 | O52: 0 | P52: 0 | Q52: 0 | R52: 0.65 | S52: 0.65 | T52: 0.65 | U52: 0.65 | V52: 0 | W52: 0 | X52: 0 | Y52: 0 | Z52: 0.65 | AA52: 0.65 | AB52: 0.65 | AC52: 0.65
A53: 3.58333 | B53: 25.495 | C53: 18.071 | D53: 24.817 | E53: 33.466 | F53: 0.30496 | G53: 0.0083333 | H53: 0.20535 | I53: 0.78794 | J53: 0.65 | K53: 0.65 | L53: 0.65 | M53: 0.65 | N53: 0 | O53: 0 | P53: 0 | Q53: 0 | R53: 0.65 | S53: 0.65 | T53: 0.65 | U53: 0.65 | V53: 0 | W53: 0 | X53: 0 | Y53: 0 | Z53: 0.65 | AA53: 0.65 | AB53: 0.65 | AC53: 0.65
A54: 3.66667 | B54: 26.072 | C54: 18.613 | D54: 25.373 | E54: 34.198 | F54: 0.91224 | G54: 0.43587 | H54: 0.87117 | I54: 1.4138 | J54: 0.65 | K54: 0.65 | L54: 0.65 | M54: 0.65 | N54: 0 | O54: 0 | P54: 0 | Q54: 0 | R54: 0.65 | S54: 0.65 | T54: 0.65 | U54: 0.65 | V54: 0 | W54: 0 | X54: 0 | Y54: 0 | Z54: 0.65 | AA54: 0.65 | AB54: 0.65 | AC54: 0.65
A55: 3.75 | B55: 25.773 | C55: 18.36 | D55: 25.077 | E55: 33.83 | F55: 0.64597 | G55: 0.31461 | H55: 0.6173 | I55: 0.99513 | J55: 0.65 | K55: 0.65 | L55: 0.65 | M55: 0.65 | N55: 0 | O55: 0 | P55: 0 | Q55: 0 | R55: 0.65 | S55: 0.65 | T55: 0.65 | U55: 0.65 | V55: 0 | W55: 0 | X55: 0 | Y55: 0 | Z55: 0.65 | AA55: 0.65 | AB55: 0.65 | AC55: 0.65
A56: 3.83333 | B56: 25.627 | C56: 18.217 | D56: 24.922 | E56: 33.672 | F56: 0.5845 | G56: 0.4002 | H56: 0.56808 | I56: 0.77841 | J56: 0.65 | K56: 0.65 | L56: 0.65 | M56: 0.65 | N56: 0 | O56: 0 | P56: 0 | Q56: 0 | R56: 0.65 | S56: 0.65 | T56: 0.65 | U56: 0.65 | V56: 0 | W56: 0 | X56: 0 | Y56: 0 | Z56: 0.65 | AA56: 0.65 | AB56: 0.65 | AC56: 0.65
A57: 3.91667 | B57: 25.8 | C57: 18.388 | D57: 25.063 | E57: 33.934 | F57: 0.83107 | G57: 0.65127 | H57: 0.82325 | I57: 1.0167 | J57: 0.65 | K57: 0.65 | L57: 0.65 | M57: 0.65 | N57: 0 | O57: 0 | P57: 0 | Q57: 0 | R57: 0.65 | S57: 0.65 | T57: 0.65 | U57: 0.65 | V57: 0 | W57: 0 | X57: 0 | Y57: 0 | Z57: 0.65 | AA57: 0.65 | AB57: 0.65 | AC57: 0.65
A58: 4 | B58: 26.486 | C58: 19.132 | D58: 25.749 | E58: 34.858 | F58: 0.68309 | G58: 0.54259 | H58: 0.68018 | I58: 0.82411 | J58: 0.65 | K58: 0.65 | L58: 0.65 | M58: 0.65 | N58: 0 | O58: 0 | P58: 0 | Q58: 0 | R58: 0.65 | S58: 0.65 | T58: 0.65 | U58: 0.65 | V58: 0 | W58: 0 | X58: 0 | Y58: 0 | Z58: 0.65 | AA58: 0.65 | AB58: 0.65 | AC58: 0.65
A59: 4.08333 | B59: 26.411 | C59: 19.059 | D59: 25.669 | E59: 34.788 | F59: 0.56111 | G59: 0.4457 | H59: 0.55872 | I59: 0.67695 | J59: 0.65 | K59: 0.65 | L59: 0.65 | M59: 0.65 | N59: 0 | O59: 0 | P59: 0 | Q59: 0 | R59: 0.65 | S59: 0.65 | T59: 0.65 | U59: 0.65 | V59: 0 | W59: 0 | X59: 0 | Y59: 0 | Z59: 0.65 | AA59: 0.65 | AB59: 0.65 | AC59: 0.65
A60: 4.16667 | B60: 26.215 | C60: 18.905 | D60: 25.46 | E60: 34.613 | F60: 0.22116 | G60: 0.10202 | H60: 0.21755 | I60: 0.34468 | J60: 0.65 | K60: 0.65 | L60: 0.65 | M60: 0.65 | N60: 0 | O60: 0 | P60: 0 | Q60: 0 | R60: 0.65 | S60: 0.65 | T60: 0.65 | U60: 0.65 | V60: 0 | W60: 0 | X60: 0 | Y60: 0 | Z60: 0.65 | AA60: 0.65 | AB60: 0.65 | AC60: 0.65
A61: 4.25 | B61: 26.052 | C61: 18.848 | D61: 25.268 | E61: 34.445 | F61: 0.02378 | G61: 0.0083333 | H61: 0.0083333 | I61: 0.058848 | J61: 0.65 | K61: 0.65 | L61: 0.65 | M61: 0.65 | N61: 0 | O61: 0 | P61: 0 | Q61: 0 | R61: 0.65 | S61: 0.65 | T61: 0.65 | U61: 0.65 | V61: 0 | W61: 0 | X61: 0 | Y61: 0 | Z61: 0.65 | AA61: 0.65 | AB61: 0.65 | AC61: 0.65
A62: 4.33333 | B62: 26.525 | C62: 19.24 | D62: 25.65 | E62: 34.778 | F62: 0.27436 | G62: 0.0083333 | H62: 0.22248 | I62: 0.62646 | J62: 0.65 | K62: 0.65 | L62: 0.65 | M62: 0.65 | N62: 0 | O62: 0 | P62: 0 | Q62: 0 | R62: 0.65 | S62: 0.65 | T62: 0.65 | U62: 0.65 | V62: 0 | W62: 0 | X62: 0 | Y62: 0 | Z62: 0.65 | AA62: 0.65 | AB62: 0.65 | AC62: 0.65
A63: 4.41667 | B63: 27.178 | C63: 19.787 | D63: 26.381 | E63: 35.468 | F63: 0.88925 | G63: 0.37803 | H63: 0.88001 | I63: 1.4211 | J63: 0.65 | K63: 0.65 | L63: 0.65 | M63: 0.65 | N63: 0 | O63: 0 | P63: 0 | Q63: 0 | R63: 0.65 | S63: 0.65 | T63: 0.65 | U63: 0.65 | V63: 0 | W63: 0 | X63: 0 | Y63: 0 | Z63: 0.65 | AA63: 0.65 | AB63: 0.65 | AC63: 0.65
A64: 4.5 | B64: 26.774 | C64: 19.463 | D64: 25.916 | E64: 35.017 | F64: 0.39173 | G64: 0.0083333 | H64: 0.34427 | I64: 0.852 | J64: 0.65 | K64: 0.65 | L64: 0.65 | M64: 0.65 | N64: 0 | O64: 0 | P64: 0 | Q64: 0 | R64: 0.65 | S64: 0.65 | T64: 0.65 | U64: 0.65 | V64: 0 | W64: 0 | X64: 0 | Y64: 0 | Z64: 0.65 | AA64: 0.65 | AB64: 0.65 | AC64: 0.65
A65: 4.58333 | B65: 26.715 | C65: 19.39 | D65: 25.842 | E65: 34.962 | F65: 0.31126 | G65: 0.0083333 | H65: 0.24505 | I65: 0.72823 | J65: 0.65 | K65: 0.65 | L65: 0.65 | M65: 0.65 | N65: 0 | O65: 0 | P65: 0 | Q65: 0 | R65: 0.65 | S65: 0.65 | T65: 0.65 | U65: 0.65 | V65: 0 | W65: 0 | X65: 0 | Y65: 0 | Z65: 0.65 | AA65: 0.65 | AB65: 0.65 | AC65: 0.65
A66: 4.66667 | B66: 27.289 | C66: 19.867 | D66: 26.488 | E66: 35.634 | F66: 0.92073 | G66: 0.43479 | H66: 0.90441 | I66: 1.4255 | J66: 0.65 | K66: 0.65 | L66: 0.65 | M66: 0.65 | N66: 0 | O66: 0 | P66: 0 | Q66: 0 | R66: 0.65 | S66: 0.65 | T66: 0.65 | U66: 0.65 | V66: 0 | W66: 0 | X66: 0 | Y66: 0 | Z66: 0.65 | AA66: 0.65 | AB66: 0.65 | AC66: 0.65
A67: 4.75 | B67: 26.99 | C67: 19.642 | D67: 26.196 | E67: 35.403 | F67: 0.6519 | G67: 0.31376 | H67: 0.64116 | I67: 1.0039 | J67: 0.65 | K67: 0.65 | L67: 0.65 | M67: 0.65 | N67: 0 | O67: 0 | P67: 0 | Q67: 0 | R67: 0.65 | S67: 0.65 | T67: 0.65 | U67: 0.65 | V67: 0 | W67: 0 | X67: 0 | Y67: 0 | Z67: 0.65 | AA67: 0.65 | AB67: 0.65 | AC67: 0.65
A68: 4.83333 | B68: 26.839 | C68: 19.42 | D68: 26.114 | E68: 35.348 | F68: 0.58623 | G68: 0.41002 | H68: 0.5788 | I68: 0.77596 | J68: 0.65 | K68: 0.65 | L68: 0.65 | M68: 0.65 | N68: 0 | O68: 0 | P68: 0 | Q68: 0 | R68: 0.65 | S68: 0.65 | T68: 0.65 | U68: 0.65 | V68: 0 | W68: 0 | X68: 0 | Y68: 0 | Z68: 0.65 | AA68: 0.65 | AB68: 0.65 | AC68: 0.65
A69: 4.91667 | B69: 27.01 | C69: 19.531 | D69: 26.267 | E69: 35.516 | F69: 0.82946 | G69: 0.65886 | H69: 0.82593 | I69: 1.0007 | J69: 0.65 | K69: 0.65 | L69: 0.65 | M69: 0.65 | N69: 0 | O69: 0 | P69: 0 | Q69: 0 | R69: 0.65 | S69: 0.65 | T69: 0.65 | U69: 0.65 | V69: 0 | W69: 0 | X69: 0 | Y69: 0 | Z69: 0.65 | AA69: 0.65 | AB69: 0.65 | AC69: 0.65
A70: 5 | B70: 26.309 | C70: 18.869 | D70: 25.559 | E70: 34.376 | F70: 0.67857 | G70: 0.53454 | H70: 0.67577 | I70: 0.82521 | J70: 0.65 | K70: 0.65 | L70: 0.65 | M70: 0.65 | N70: 0 | O70: 0 | P70: 0 | Q70: 0 | R70: 0.65 | S70: 0.65 | T70: 0.65 | U70: 0.65 | V70: 0 | W70: 0 | X70: 0 | Y70: 0 | Z70: 0.65 | AA70: 0.65 | AB70: 0.65 | AC70: 0.65
A71: 5.08333 | B71: 26.235 | C71: 18.809 | D71: 25.484 | E71: 34.331 | F71: 0.5574 | G71: 0.43909 | H71: 0.5551 | I71: 0.67785 | J71: 0.65 | K71: 0.65 | L71: 0.65 | M71: 0.65 | N71: 0 | O71: 0 | P71: 0 | Q71: 0 | R71: 0.65 | S71: 0.65 | T71: 0.65 | U71: 0.65 | V71: 0 | W71: 0 | X71: 0 | Y71: 0 | Z71: 0.65 | AA71: 0.65 | AB71: 0.65 | AC71: 0.65
A72: 5.16667 | B72: 26.038 | C72: 18.634 | D72: 25.316 | E72: 34.224 | F72: 0.21942 | G72: 0.10713 | H72: 0.21142 | I72: 0.3464 | J72: 0.65 | K72: 0.65 | L72: 0.65 | M72: 0.65 | N72: 0 | O72: 0 | P72: 0 | Q72: 0 | R72: 0.65 | S72: 0.65 | T72: 0.65 | U72: 0.65 | V72: 0 | W72: 0 | X72: 0 | Y72: 0 | Z72: 0.65 | AA72: 0.65 | AB72: 0.65 | AC72: 0.65
A73: 5.25 | B73: 25.874 | C73: 18.424 | D73: 25.15 | E73: 34.112 | F73: 0.027795 | G73: 0.0083333 | H73: 0.0083333 | I73: 0.073932 | J73: 0.65 | K73: 0.65 | L73: 0.65 | M73: 0.65 | N73: 0 | O73: 0 | P73: 0 | Q73: 0 | R73: 0.65 | S73: 0.65 | T73: 0.65 | U73: 0.65 | V73: 0 | W73: 0 | X73: 0 | Y73: 0 | Z73: 0.65 | AA73: 0.65 | AB73: 0.65 | AC73: 0.65
A74: 5.33333 | B74: 26.339 | C74: 18.861 | D74: 25.674 | E74: 34.496 | F74: 0.27601 | G74: 0.0083333 | H74: 0.21339 | I74: 0.64964 | J74: 0.65 | K74: 0.65 | L74: 0.65 | M74: 0.65 | N74: 0 | O74: 0 | P74: 0 | Q74: 0 | R74: 0.65 | S74: 0.65 | T74: 0.65 | U74: 0.65 | V74: 0 | W74: 0 | X74: 0 | Y74: 0 | Z74: 0.65 | AA74: 0.65 | AB74: 0.65 | AC74: 0.65
A75: 5.41667 | B75: 26.99 | C75: 19.494 | D75: 26.278 | E75: 35.138 | F75: 0.88236 | G75: 0.40104 | H75: 0.84614 | I75: 1.4291 | J75: 0.65 | K75: 0.65 | L75: 0.65 | M75: 0.65 | N75: 0 | O75: 0 | P75: 0 | Q75: 0 | R75: 0.65 | S75: 0.65 | T75: 0.65 | U75: 0.65 | V75: 0 | W75: 0 | X75: 0 | Y75: 0 | Z75: 0.65 | AA75: 0.65 | AB75: 0.65 | AC75: 0.65
A76: 5.5 | B76: 26.586 | C76: 19.049 | D76: 25.914 | E76: 34.78 | F76: 0.39361 | G76: 0.0083333 | H76: 0.33077 | I76: 0.86633 | J76: 0.65 | K76: 0.65 | L76: 0.65 | M76: 0.65 | N76: 0 | O76: 0 | P76: 0 | Q76: 0 | R76: 0.65 | S76: 0.65 | T76: 0.65 | U76: 0.65 | V76: 0 | W76: 0 | X76: 0 | Y76: 0 | Z76: 0.65 | AA76: 0.65 | AB76: 0.65 | AC76: 0.65
A77: 5.58333 | B77: 26.527 | C77: 19.004 | D77: 25.863 | E77: 34.738 | F77: 0.31332 | G77: 0.0083333 | H77: 0.2312 | I77: 0.75759 | J77: 0.65 | K77: 0.65 | L77: 0.65 | M77: 0.65 | N77: 0 | O77: 0 | P77: 0 | Q77: 0 | R77: 0.65 | S77: 0.65 | T77: 0.65 | U77: 0.65 | V77: 0 | W77: 0 | X77: 0 | Y77: 0 | Z77: 0.65 | AA77: 0.65 | AB77: 0.65 | AC77: 0.65
A78: 5.66667 | B78: 27.103 | C78: 19.569 | D78: 26.384 | E78: 35.278 | F78: 0.91341 | G78: 0.45634 | H78: 0.87943 | I78: 1.4304 | J78: 0.65 | K78: 0.65 | L78: 0.65 | M78: 0.65 | N78: 0 | O78: 0 | P78: 0 | Q78: 0 | R78: 0.65 | S78: 0.65 | T78: 0.65 | U78: 0.65 | V78: 0 | W78: 0 | X78: 0 | Y78: 0 | Z78: 0.65 | AA78: 0.65 | AB78: 0.65 | AC78: 0.65
A79: 5.75 | B79: 26.808 | C79: 19.224 | D79: 26.072 | E79: 34.995 | F79: 0.64673 | G79: 0.32811 | H79: 0.62268 | I79: 1.0061 | J79: 0.65 | K79: 0.65 | L79: 0.65 | M79: 0.65 | N79: 0 | O79: 0 | P79: 0 | Q79: 0 | R79: 0.65 | S79: 0.65 | T79: 0.65 | U79: 0.65 | V79: 0 | W79: 0 | X79: 0 | Y79: 0 | Z79: 0.65 | AA79: 0.65 | AB79: 0.65 | AC79: 0.65
A80: 5.83333 | B80: 26.663 | C80: 19.091 | D80: 25.911 | E80: 34.894 | F80: 0.58214 | G80: 0.41078 | H80: 0.57507 | I80: 0.77551 | J80: 0.65 | K80: 0.65 | L80: 0.65 | M80: 0.65 | N80: 0 | O80: 0 | P80: 0 | Q80: 0 | R80: 0.65 | S80: 0.65 | T80: 0.65 | U80: 0.65 | V80: 0 | W80: 0 | X80: 0 | Y80: 0 | Z80: 0.65 | AA80: 0.65 | AB80: 0.65 | AC80: 0.65
A81: 5.91667 | B81: 26.836 | C81: 19.265 | D81: 26.075 | E81: 35.012 | F81: 0.82398 | G81: 0.64909 | H81: 0.82058 | I81: 1.002 | J81: 0.65 | K81: 0.65 | L81: 0.65 | M81: 0.65 | N81: 0 | O81: 0 | P81: 0 | Q81: 0 | R81: 0.65 | S81: 0.65 | T81: 0.65 | U81: 0.65 | V81: 0 | W81: 0 | X81: 0 | Y81: 0 | Z81: 0.65 | AA81: 0.65 | AB81: 0.65 | AC81: 0.65
A82: 6 | B82: 26.444 | C82: 19.22 | D82: 25.497 | E82: 35.237 | F82: 0.67851 | G82: 0.53647 | H82: 0.67492 | I82: 0.82518 | J82: 0.65 | K82: 0.65 | L82: 0.65 | M82: 0.65 | N82: 0 | O82: 0 | P82: 0 | Q82: 0 | R82: 0.65 | S82: 0.65 | T82: 0.65 | U82: 0.65 | V82: 0 | W82: 0 | X82: 0 | Y82: 0 | Z82: 0.65 | AA82: 0.65 | AB82: 0.65 | AC82: 0.65
A83: 6.08333 | B83: 26.389 | C83: 19.155 | D83: 25.455 | E83: 35.205 | F83: 0.55735 | G83: 0.44067 | H83: 0.5544 | I83: 0.67783 | J83: 0.65 | K83: 0.65 | L83: 0.65 | M83: 0.65 | N83: 0 | O83: 0 | P83: 0 | Q83: 0 | R83: 0.65 | S83: 0.65 | T83: 0.65 | U83: 0.65 | V83: 0 | W83: 0 | X83: 0 | Y83: 0 | Z83: 0.65 | AA83: 0.65 | AB83: 0.65 | AC83: 0.65
A84: 6.16667 | B84: 26.214 | C84: 18.955 | D84: 25.271 | E84: 35.034 | F84: 0.21431 | G84: 0.10179 | H84: 0.20728 | I84: 0.33611 | J84: 0.65 | K84: 0.65 | L84: 0.65 | M84: 0.65 | N84: 0 | O84: 0 | P84: 0 | Q84: 0 | R84: 0.65 | S84: 0.65 | T84: 0.65 | U84: 0.65 | V84: 0 | W84: 0 | X84: 0 | Y84: 0 | Z84: 0.65 | AA84: 0.65 | AB84: 0.65 | AC84: 0.65
A85: 6.25 | B85: 26.067 | C85: 18.739 | D85: 25.11 | E85: 34.876 | F85: 0.022322 | G85: 0.0083333 | H85: 0.0083333 | I85: 0.059104 | J85: 0.65 | K85: 0.65 | L85: 0.65 | M85: 0.65 | N85: 0 | O85: 0 | P85: 0 | Q85: 0 | R85: 0.65 | S85: 0.65 | T85: 0.65 | U85: 0.65 | V85: 0 | W85: 0 | X85: 0 | Y85: 0 | Z85: 0.65 | AA85: 0.65 | AB85: 0.65 | AC85: 0.65
A86: 6.33333 | B86: 26.558 | C86: 19.232 | D86: 25.552 | E86: 35.363 | F86: 0.25375 | G86: 0.0083333 | H86: 0.20228 | I86: 0.61987 | J86: 0.65 | K86: 0.65 | L86: 0.65 | M86: 0.65 | N86: 0 | O86: 0 | P86: 0 | Q86: 0 | R86: 0.65 | S86: 0.65 | T86: 0.65 | U86: 0.65 | V86: 0 | W86: 0 | X86: 0 | Y86: 0 | Z86: 0.65 | AA86: 0.65 | AB86: 0.65 | AC86: 0.65
A87: 6.41667 | B87: 27.226 | C87: 19.863 | D87: 26.204 | E87: 36.049 | F87: 0.85977 | G87: 0.37583 | H87: 0.83277 | I87: 1.3827 | J87: 0.65 | K87: 0.65 | L87: 0.65 | M87: 0.65 | N87: 0 | O87: 0 | P87: 0 | Q87: 0 | R87: 0.65 | S87: 0.65 | T87: 0.65 | U87: 0.65 | V87: 0 | W87: 0 | X87: 0 | Y87: 0 | Z87: 0.65 | AA87: 0.65 | AB87: 0.65 | AC87: 0.65
A88: 6.5 | B88: 26.845 | C88: 19.487 | D88: 25.842 | E88: 35.694 | F88: 0.36465 | G88: 0.0083333 | H88: 0.31718 | I88: 0.83075 | J88: 0.65 | K88: 0.65 | L88: 0.65 | M88: 0.65 | N88: 0 | O88: 0 | P88: 0 | Q88: 0 | R88: 0.65 | S88: 0.65 | T88: 0.65 | U88: 0.65 | V88: 0 | W88: 0 | X88: 0 | Y88: 0 | Z88: 0.65 | AA88: 0.65 | AB88: 0.65 | AC88: 0.65
A89: 6.58333 | B89: 26.807 | C89: 19.44 | D89: 25.798 | E89: 35.675 | F89: 0.28728 | G89: 0.0083333 | H89: 0.22102 | I89: 0.72363 | J89: 0.65 | K89: 0.65 | L89: 0.65 | M89: 0.65 | N89: 0 | O89: 0 | P89: 0 | Q89: 0 | R89: 0.65 | S89: 0.65 | T89: 0.65 | U89: 0.65 | V89: 0 | W89: 0 | X89: 0 | Y89: 0 | Z89: 0.65 | AA89: 0.65 | AB89: 0.65 | AC89: 0.65
A90: 6.66667 | B90: 27.398 | C90: 19.991 | D90: 26.398 | E90: 36.273 | F90: 0.89259 | G90: 0.43446 | H90: 0.86391 | I90: 1.3897 | J90: 0.65 | K90: 0.65 | L90: 0.65 | M90: 0.65 | N90: 0 | O90: 0 | P90: 0 | Q90: 0 | R90: 0.65 | S90: 0.65 | T90: 0.65 | U90: 0.65 | V90: 0 | W90: 0 | X90: 0 | Y90: 0 | Z90: 0.65 | AA90: 0.65 | AB90: 0.65 | AC90: 0.65
A91: 6.75 | B91: 27.122 | C91: 19.755 | D91: 26.126 | E91: 36.017 | F91: 0.63229 | G91: 0.31346 | H91: 0.61154 | I91: 0.97853 | J91: 0.65 | K91: 0.65 | L91: 0.65 | M91: 0.65 | N91: 0 | O91: 0 | P91: 0 | Q91: 0 | R91: 0.65 | S91: 0.65 | T91: 0.65 | U91: 0.65 | V91: 0 | W91: 0 | X91: 0 | Y91: 0 | Z91: 0.65 | AA91: 0.65 | AB91: 0.65 | AC91: 0.65
A92: 6.83333 | B92: 26.995 | C92: 19.616 | D92: 26.056 | E92: 35.953 | F92: 0.57644 | G92: 0.40311 | H92: 0.55769 | I92: 0.76352 | J92: 0.65 | K92: 0.65 | L92: 0.65 | M92: 0.65 | N92: 0 | O92: 0 | P92: 0 | Q92: 0 | R92: 0.65 | S92: 0.65 | T92: 0.65 | U92: 0.65 | V92: 0 | W92: 0 | X92: 0 | Y92: 0 | Z92: 0.65 | AA92: 0.65 | AB92: 0.65 | AC92: 0.65
A93: 6.91667 | B93: 27.186 | C93: 19.777 | D93: 26.229 | E93: 36.184 | F93: 0.82391 | G93: 0.65143 | H93: 0.81955 | I93: 1.002 | J93: 0.65 | K93: 0.65 | L93: 0.65 | M93: 0.65 | N93: 0 | O93: 0 | P93: 0 | Q93: 0 | R93: 0.65 | S93: 0.65 | T93: 0.65 | U93: 0.65 | V93: 0 | W93: 0 | X93: 0 | Y93: 0 | Z93: 0.65 | AA93: 0.65 | AB93: 0.65 | AC93: 0.65
A94: 7 | B94: 27.682 | C94: 19.582 | D94: 27.019 | E94: 36.006 | F94: 0.68254 | G94: 0.53689 | H94: 0.67428 | I94: 0.83225 | J94: 0.65 | K94: 0.65 | L94: 0.65 | M94: 0.65 | N94: 0.68254 | O94: 0.53689 | P94: 0.67428 | Q94: 0.83225 | R94: 0.65 | S94: 0.65 | T94: 0.65 | U94: 0.65 | V94: 0.68254 | W94: 0.53689 | X94: 0.67428 | Y94: 0.83225 | Z94: 0.65 | AA94: 0.65 | AB94: 0.65 | AC94: 0.65
A95: 7.08333 | B95: 27.732 | C95: 19.523 | D95: 27.102 | E95: 36.151 | F95: 0.56066 | G95: 0.44102 | H95: 0.55387 | I95: 0.68363 | J95: 0.51859 | K95: 0.40784 | L95: 0.51339 | M95: 0.62641 | N95: 0.56066 | O95: 0.44102 | P95: 0.55387 | Q95: 0.68363 | R95: 0.51859 | S95: 0.40784 | T95: 0.51339 | U95: 0.62641 | V95: 0.56066 | W95: 0.44102 | X95: 0.55387 | Y95: 0.68363 | Z95: 0.65 | AA95: 0.65 | AB95: 0.65 | AC95: 0.65
A96: 7.16667 | B96: 27.798 | C96: 19.568 | D96: 27.127 | E96: 36.346 | F96: 0.21733 | G96: 0.10379 | H96: 0.21043 | I96: 0.34693 | J96: 0.28001 | K96: 0.1901 | L96: 0.27819 | M96: 0.37012 | N96: 0.21733 | O96: 0.10379 | P96: 0.21043 | Q96: 0.34693 | R96: 0.28001 | S96: 0.1901 | T96: 0.27819 | U96: 0.37012 | V96: 0.21733 | W96: 0.10379 | X96: 0.21043 | Y96: 0.34693 | Z96: 0.65 | AA96: 0.65 | AB96: 0.65 | AC96: 0.65
A97: 7.25 | B97: 27.811 | C97: 19.458 | D97: 27.165 | E97: 36.511 | F97: 0.025908 | G97: 0.0083333 | H97: 0.0083333 | I97: 0.063061 | J97: 0.072742 | K97: 0.0083333 | L97: 0.022243 | M97: 0.20921 | N97: 0.025908 | O97: 0.0083333 | P97: 0.0083333 | Q97: 0.063061 | R97: 0.072742 | S97: 0.0083333 | T97: 0.022243 | U97: 0.20921 | V97: 0.025908 | W97: 0.0083333 | X97: 0.0083333 | Y97: 0.063061 | Z97: 0.65 | AA97: 0.65 | AB97: 0.65 | AC97: 0.65
A98: 7.33333 | B98: 0.52025 | C98: 0.22091 | D98: 0.51168 | E98: 0.84066 | F98: 0.26639 | G98: 0.0083333 | H98: 0.19891 | I98: 0.66463 | J98: 113.66 | K98: 79.865 | L98: 110.94 | M98: 148.96 | N98: 0.26639 | O98: 0.0083333 | P98: 0.19891 | Q98: 0.66463 | R98: 0.52025 | S98: 0.22091 | T98: 0.51168 | U98: 0.84066 | V98: 0.26639 | W98: 0.0083333 | X98: 0.19891 | Y98: 0.66463 | Z98: 0.65 | AA98: 0.65 | AB98: 0.65 | AC98: 0.65
A99: 7.41667 | B99: 1.1538 | C99: 0.76994 | D99: 1.1489 | E99: 1.5463 | F99: 0.87279 | G99: 0.36836 | H99: 0.84577 | I99: 1.4285 | J99: 1.1538 | K99: 0.76994 | L99: 1.1489 | M99: 1.5463 | N99: 0.87279 | O99: 0.36836 | P99: 0.84577 | Q99: 1.4285 | R99: 23.908 | S99: 17.236 | T99: 23.343 | U99: 30.899 | V99: 0.87279 | W99: 0.36836 | X99: 0.84577 | Y99: 1.4285 | Z99: 0.65 | AA99: 0.65 | AB99: 0.65 | AC99: 0.65
A100: 7.5 | B100: 0.70122 | C100: 0.32784 | D100: 0.6915 | E100: 1.0956 | F100: 0.38032 | G100: 0.0083333 | H100: 0.30884 | I100: 0.88815 | J100: 0.70122 | K100: 0.32784 | L100: 0.6915 | M100: 1.0956 | N100: 0.38032 | O100: 0.0083333 | P100: 0.30884 | Q100: 0.88815 | R100: 23.447 | S100: 16.795 | T100: 22.882 | U100: 30.532 | V100: 0.38032 | W100: 0.0083333 | X100: 0.30884 | Y100: 0.88815 | Z100: 0.65 | AA100: 0.65 | AB100: 0.65 | AC100: 0.65
A101: 7.58333 | B101: 0.60371 | C101: 0.24619 | D101: 0.59401 | E101: 0.98542 | F101: 0.30205 | G101: 0.0083333 | H101: 0.21059 | I101: 0.77164 | J101: 0.60371 | K101: 0.24619 | L101: 0.59401 | M101: 0.98542 | N101: 0.30205 | O101: 0.0083333 | P101: 0.21059 | Q101: 0.77164 | R101: 23.34 | S101: 16.679 | T101: 22.786 | U101: 30.443 | V101: 0.30205 | W101: 0.0083333 | X101: 0.21059 | Y101: 0.77164 | Z101: 0.65 | AA101: 0.65 | AB101: 0.65 | AC101: 0.65
A102: 7.66667 | B102: 1.1582 | C102: 0.79008 | D102: 1.1516 | E102: 1.5281 | F102: 0.90493 | G102: 0.44455 | H102: 0.87783 | I102: 1.4339 | J102: 1.1582 | K102: 0.79008 | L102: 1.1516 | M102: 1.5281 | N102: 0.90493 | O102: 0.44455 | P102: 0.87783 | Q102: 1.4339 | R102: 23.878 | S102: 17.247 | T102: 23.336 | U102: 30.892 | V102: 0.90493 | W102: 0.44455 | X102: 0.87783 | Y102: 1.4339 | Z102: 0.65 | AA102: 0.65 | AB102: 0.65 | AC102: 0.65
A103: 7.75 | B103: 0.81576 | C103: 0.55825 | D103: 0.81164 | E103: 1.0748 | F103: 0.64092 | G103: 0.31929 | H103: 0.62253 | I103: 1.01 | J103: 0.81576 | K103: 0.55825 | L103: 0.81164 | M103: 1.0748 | N103: 0.64092 | O103: 0.31929 | P103: 0.62253 | Q103: 1.01 | R103: 23.546 | S103: 16.854 | T103: 22.988 | U103: 30.541 | V103: 0.64092 | W103: 0.31929 | X103: 0.62253 | Y103: 1.01 | Z103: 0.65 | AA103: 0.65 | AB103: 0.65 | AC103: 0.65
A104: 7.83333 | B104: 0.62688 | C104: 0.47139 | D104: 0.61906 | E104: 0.79535 | F104: 0.58176 | G104: 0.39571 | H104: 0.56248 | I104: 0.78634 | J104: 0.62688 | K104: 0.47139 | L104: 0.61906 | M104: 0.79535 | N104: 0.58176 | O104: 0.39571 | P104: 0.56248 | Q104: 0.78634 | R104: 23.357 | S104: 16.614 | T104: 22.839 | U104: 30.353 | V104: 0.58176 | W104: 0.39571 | X104: 0.56248 | Y104: 0.78634 | Z104: 0.65 | AA104: 0.65 | AB104: 0.65 | AC104: 0.65
A105: 7.91667 | B105: 0.76661 | C105: 0.60289 | D105: 0.75893 | E105: 0.92599 | F105: 0.8288 | G105: 0.65194 | H105: 0.81877 | I105: 1.0106 | J105: 0.76661 | K105: 0.60289 | L105: 0.75893 | M105: 0.92599 | N105: 0.8288 | O105: 0.65194 | P105: 0.81877 | Q105: 1.0106 | R105: 23.492 | S105: 16.721 | T105: 22.948 | U105: 30.424 | V105: 0.8288 | W105: 0.65194 | X105: 0.81877 | Y105: 1.0106 | Z105: 0.65 | AA105: 0.65 | AB105: 0.65 | AC105: 0.65
A106: 8 | B106: 30.472 | C106: 22.037 | D106: 29.672 | E106: 39.905 | F106: 0.68215 | G106: 0.54715 | H106: 0.6857 | I106: 0.81545 | J106: 0.63127 | K106: 0.5182 | L106: 0.6283 | M106: 0.7625 | N106: 0.68215 | O106: 0.54715 | P106: 0.6857 | Q106: 0.81545 | R106: 0.63127 | S106: 0.5182 | T106: 0.6283 | U106: 0.7625 | V106: 0.68215 | W106: 0.54715 | X106: 0.6857 | Y106: 0.81545 | Z106: 0.65 | AA106: 0.65 | AB106: 0.65 | AC106: 0.65
A107: 8.08333 | B107: 30.313 | C107: 21.92 | D107: 29.516 | E107: 39.723 | F107: 0.56034 | G107: 0.44944 | H107: 0.56326 | I107: 0.66983 | J107: 0.51854 | K107: 0.42566 | L107: 0.51611 | M107: 0.62634 | N107: 0.56034 | O107: 0.44944 | P107: 0.56326 | Q107: 0.66983 | R107: 0.51854 | S107: 0.42566 | T107: 0.51611 | U107: 0.62634 | V107: 0.56034 | W107: 0.44944 | X107: 0.56326 | Y107: 0.66983 | Z107: 0.65 | AA107: 0.65 | AB107: 0.65 | AC107: 0.65
A108: 8.16667 | B108: 30.032 | C108: 21.706 | D108: 29.231 | E108: 39.35 | F108: 0.21502 | G108: 0.097686 | H108: 0.21308 | I108: 0.3362 | J108: 0.27766 | K108: 0.18773 | L108: 0.27382 | M108: 0.3677 | N108: 0.21502 | O108: 0.097686 | P108: 0.21308 | Q108: 0.3362 | R108: 0.27766 | S108: 0.18773 | T108: 0.27382 | U108: 0.3677 | V108: 0.21502 | W108: 0.097686 | X108: 0.21308 | Y108: 0.3362 | Z108: 0.65 | AA108: 0.65 | AB108: 0.65 | AC108: 0.65
A109: 8.25 | B109: 29.787 | C109: 21.453 | D109: 29.004 | E109: 39.076 | F109: 0.024836 | G109: 0.0083333 | H109: 0.0083333 | I109: 0.062407 | J109: 0.071714 | K109: 0.0083333 | L109: 0.029024 | M109: 0.19316 | N109: 0.024836 | O109: 0.0083333 | P109: 0.0083333 | Q109: 0.062407 | R109: 0.071714 | S109: 0.0083333 | T109: 0.029024 | U109: 0.19316 | V109: 0.024836 | W109: 0.0083333 | X109: 0.0083333 | Y109: 0.062407 | Z109: 0.65 | AA109: 0.65 | AB109: 0.65 | AC109: 0.65
A110: 8.33333 | B110: 20.352 | C110: 0.39933 | D110: 25.206 | E110: 37.168 | F110: 0.25455 | G110: 0.0083333 | H110: 0.1893 | I110: 0.62036 | J110: 36.422 | K110: 0.27909 | L110: 0.65614 | M110: 119.79 | N110: 0.25455 | O110: 0.0083333 | P110: 0.1893 | Q110: 0.62036 | R110: 0.51142 | S110: 0.21857 | T110: 0.52393 | U110: 0.79588 | V110: 0.25455 | W110: 0.0083333 | X110: 0.1893 | Y110: 0.62036 | Z110: 0.65 | AA110: 0.65 | AB110: 0.65 | AC110: 0.65
A111: 8.41667 | B111: 1.1435 | C111: 0.76109 | D111: 1.1299 | E111: 1.5304 | F111: 0.86268 | G111: 0.35382 | H111: 0.85168 | I111: 1.378 | J111: 81.935 | K111: 1.0705 | L111: 95.568 | M111: 136.87 | N111: 0.86268 | O111: 0.35382 | P111: 0.85168 | Q111: 1.378 | R111: 6.759 | S111: 0.81326 | T111: 1.2533 | U111: 25.44 | V111: 0.86268 | W111: 0.35382 | X111: 0.85168 | Y111: 1.378 | Z111: 0.65 | AA111: 0.65 | AB111: 0.65 | AC111: 0.65
A112: 8.5 | B112: 0.68997 | C112: 0.33556 | D112: 0.70305 | E112: 1.0437 | F112: 0.36767 | G112: 0.0083333 | H112: 0.31205 | I112: 0.83799 | J112: 16.031 | K112: 0.35323 | L112: 0.76218 | M112: 90.028 | N112: 0.36767 | O112: 0.0083333 | P112: 0.31205 | Q112: 0.83799 | R112: 20.141 | S112: 0.78941 | T112: 21.905 | U112: 29.861 | V112: 0.36767 | W112: 0.0083333 | X112: 0.31205 | Y112: 0.83799 | Z112: 0.65 | AA112: 0.65 | AB112: 0.65 | AC112: 0.65
A113: 8.58333 | B113: 0.59307 | C113: 0.24111 | D113: 0.6085 | E113: 0.93361 | F113: 0.28764 | G113: 0.0083333 | H113: 0.20535 | I113: 0.7207 | J113: 0.59307 | K113: 0.24111 | L113: 0.6085 | M113: 0.93361 | N113: 0.28764 | O113: 0.0083333 | P113: 0.20535 | Q113: 0.7207 | R113: 23.297 | S113: 16.821 | T113: 22.732 | U113: 30.262 | V113: 0.28764 | W113: 0.0083333 | X113: 0.20535 | Y113: 0.7207 | Z113: 0.65 | AA113: 0.65 | AB113: 0.65 | AC113: 0.65
A114: 8.66667 | B114: 1.1487 | C114: 0.77965 | D114: 1.1316 | E114: 1.5149 | F114: 0.89548 | G114: 0.41716 | H114: 0.88526 | I114: 1.393 | J114: 1.1487 | K114: 0.77965 | L114: 1.1316 | M114: 1.5149 | N114: 0.89548 | O114: 0.41716 | P114: 0.88526 | Q114: 1.393 | R114: 23.825 | S114: 17.383 | T114: 23.212 | U114: 30.917 | V114: 0.89548 | W114: 0.41716 | X114: 0.88526 | Y114: 1.393 | Z114: 0.65 | AA114: 0.65 | AB114: 0.65 | AC114: 0.65
A115: 8.75 | B115: 0.80915 | C115: 0.5511 | D115: 0.79665 | E115: 1.0638 | F115: 0.63432 | G115: 0.30006 | H115: 0.62593 | I115: 0.98137 | J115: 0.80915 | K115: 0.5511 | L115: 0.79665 | M115: 1.0638 | N115: 0.63432 | O115: 0.30006 | P115: 0.62593 | Q115: 0.98137 | R115: 23.501 | S115: 17.064 | T115: 22.873 | U115: 30.591 | V115: 0.63432 | W115: 0.30006 | X115: 0.62593 | Y115: 0.98137 | Z115: 0.65 | AA115: 0.65 | AB115: 0.65 | AC115: 0.65
A116: 8.83333 | B116: 0.62422 | C116: 0.47754 | D116: 0.62053 | E116: 0.77768 | F116: 0.57882 | G116: 0.388 | H116: 0.57902 | I116: 0.76442 | J116: 0.62422 | K116: 0.47754 | L116: 0.62053 | M116: 0.77768 | N116: 0.57882 | O116: 0.388 | P116: 0.57902 | Q116: 0.76442 | R116: 23.312 | S116: 16.92 | T116: 22.669 | U116: 30.418 | V116: 0.57882 | W116: 0.388 | X116: 0.57902 | Y116: 0.76442 | Z116: 0.65 | AA116: 0.65 | AB116: 0.65 | AC116: 0.65
A117: 8.91667 | B117: 0.76654 | C117: 0.62924 | D117: 0.76294 | E117: 0.92589 | F117: 0.82832 | G117: 0.66439 | H117: 0.83264 | I117: 0.99019 | J117: 0.76654 | K117: 0.62924 | L117: 0.76294 | M117: 0.92589 | N117: 0.82832 | O117: 0.66439 | P117: 0.83264 | Q117: 0.99019 | R117: 23.446 | S117: 17.009 | T117: 22.812 | U117: 30.628 | V117: 0.82832 | W117: 0.66439 | X117: 0.83264 | Y117: 0.99019 | Z117: 0.65 | AA117: 0.65 | AB117: 0.65 | AC117: 0.65
A118: 9 | B118: 29.613 | C118: 21.214 | D118: 28.613 | E118: 39.268 | F118: 0.68656 | G118: 0.54323 | H118: 0.68079 | I118: 0.83239 | J118: 0.63219 | K118: 0.51198 | L118: 0.62113 | M118: 0.76258 | N118: 0.68656 | O118: 0.54323 | P118: 0.68079 | Q118: 0.83239 | R118: 0.63219 | S118: 0.51198 | T118: 0.62113 | U118: 0.76258 | V118: 0.68656 | W118: 0.54323 | X118: 0.68079 | Y118: 0.83239 | Z118: 0.65 | AA118: 0.65 | AB118: 0.65 | AC118: 0.65
A119: 9.08333 | B119: 29.452 | C119: 21.065 | D119: 28.457 | E119: 39.079 | F119: 0.56396 | G119: 0.44622 | H119: 0.55922 | I119: 0.68375 | J119: 0.5193 | K119: 0.42056 | L119: 0.51021 | M119: 0.6264 | N119: 0.56396 | O119: 0.44622 | P119: 0.55922 | Q119: 0.68375 | R119: 0.5193 | S119: 0.42056 | T119: 0.51021 | U119: 0.6264 | V119: 0.56396 | W119: 0.44622 | X119: 0.55922 | Y119: 0.68375 | Z119: 0.65 | AA119: 0.65 | AB119: 0.65 | AC119: 0.65
A120: 9.16667 | B120: 29.17 | C120: 20.861 | D120: 28.219 | E120: 38.659 | F120: 0.22078 | G120: 0.10342 | H120: 0.21962 | I120: 0.34259 | J120: 0.27898 | K120: 0.18983 | L120: 0.27484 | M120: 0.37752 | N120: 0.22078 | O120: 0.10342 | P120: 0.21962 | Q120: 0.34259 | R120: 0.27898 | S120: 0.18983 | T120: 0.27484 | U120: 0.37752 | V120: 0.22078 | W120: 0.10342 | X120: 0.21962 | Y120: 0.34259 | Z120: 0.65 | AA120: 0.65 | AB120: 0.65 | AC120: 0.65
A121: 9.25 | B121: 28.918 | C121: 20.668 | D121: 28.002 | E121: 38.375 | F121: 0.024732 | G121: 0.0083333 | H121: 0.0083333 | I121: 0.059927 | J121: 0.071289 | K121: 0.0083333 | L121: 0.017834 | M121: 0.20995 | N121: 0.024732 | O121: 0.0083333 | P121: 0.0083333 | Q121: 0.059927 | R121: 0.071289 | S121: 0.0083333 | T121: 0.017834 | U121: 0.20995 | V121: 0.024732 | W121: 0.0083333 | X121: 0.0083333 | Y121: 0.059927 | Z121: 0.65 | AA121: 0.65 | AB121: 0.65 | AC121: 0.65
A122: 9.33333 | B122: 19.132 | C122: 0.34798 | D122: 23.729 | E122: 36.183 | F122: 0.27389 | G122: 0.0083333 | H122: 0.22202 | I122: 0.63423 | J122: 34.333 | K122: 0.28321 | L122: 0.67471 | M122: 108.12 | N122: 0.27389 | O122: 0.0083333 | P122: 0.22202 | Q122: 0.63423 | R122: 0.51484 | S122: 0.24499 | T122: 0.50937 | U122: 0.82588 | V122: 0.27389 | W122: 0.0083333 | X122: 0.22202 | Y122: 0.63423 | Z122: 0.65 | AA122: 0.65 | AB122: 0.65 | AC122: 0.65
A123: 9.41667 | B123: 1.1492 | C123: 0.77026 | D123: 1.1337 | E123: 1.5612 | F123: 0.88714 | G123: 0.38954 | H123: 0.88196 | I123: 1.4045 | J123: 75.061 | K123: 1.1007 | L123: 85.755 | M123: 122.54 | N123: 0.88714 | O123: 0.38954 | P123: 0.88196 | Q123: 1.4045 | R123: 6.0995 | S123: 0.8214 | T123: 1.2503 | U123: 23.707 | V123: 0.88714 | W123: 0.38954 | X123: 0.88196 | Y123: 1.4045 | Z123: 0.65 | AA123: 0.65 | AB123: 0.65 | AC123: 0.65
A124: 9.5 | B124: 0.69497 | C124: 0.35897 | D124: 0.69098 | E124: 1.0808 | F124: 0.39106 | G124: 0.0083333 | H124: 0.3467 | I124: 0.85225 | J124: 19.049 | K124: 0.38317 | L124: 0.77225 | M124: 90.246 | N124: 0.39106 | O124: 0.0083333 | P124: 0.3467 | Q124: 0.85225 | R124: 18.802 | S124: 0.63551 | T124: 20.927 | U124: 30.417 | V124: 0.39106 | W124: 0.0083333 | X124: 0.3467 | Y124: 0.85225 | Z124: 0.65 | AA124: 0.65 | AB124: 0.65 | AC124: 0.65
A125: 9.58333 | B125: 0.59697 | C125: 0.27114 | D125: 0.58568 | E125: 0.9691 | F125: 0.31078 | G125: 0.0083333 | H125: 0.2413 | I125: 0.73864 | J125: 0.59697 | K125: 0.27114 | L125: 0.58568 | M125: 0.9691 | N125: 0.31078 | O125: 0.0083333 | P125: 0.2413 | Q125: 0.73864 | R125: 23.051 | S125: 16.68 | T125: 22.229 | U125: 30.481 | V125: 0.31078 | W125: 0.0083333 | X125: 0.2413 | Y125: 0.73864 | Z125: 0.65 | AA125: 0.65 | AB125: 0.65 | AC125: 0.65
A126: 9.66667 | B126: 1.154 | C126: 0.78866 | D126: 1.1358 | E126: 1.5573 | F126: 0.91934 | G126: 0.43924 | H126: 0.91663 | I126: 1.4143 | J126: 1.154 | K126: 0.78866 | L126: 1.1358 | M126: 1.5573 | N126: 0.91934 | O126: 0.43924 | P126: 0.91663 | Q126: 1.4143 | R126: 23.569 | S126: 17.211 | T126: 22.799 | U126: 31.081 | V126: 0.91934 | W126: 0.43924 | X126: 0.91663 | Y126: 1.4143 | Z126: 0.65 | AA126: 0.65 | AB126: 0.65 | AC126: 0.65
A127: 9.75 | B127: 0.8129 | C127: 0.55752 | D127: 0.80138 | E127: 1.0947 | F127: 0.65101 | G127: 0.31609 | H127: 0.64819 | I127: 0.99537 | J127: 0.8129 | K127: 0.55752 | L127: 0.80138 | M127: 1.0947 | N127: 0.65101 | O127: 0.31609 | P127: 0.64819 | Q127: 0.99537 | R127: 23.265 | S127: 16.916 | T127: 22.522 | U127: 30.705 | V127: 0.65101 | W127: 0.31609 | X127: 0.64819 | Y127: 0.99537 | Z127: 0.65 | AA127: 0.65 | AB127: 0.65 | AC127: 0.65
A128: 9.83333 | B128: 0.62615 | C128: 0.47524 | D128: 0.61566 | E128: 0.791 | F128: 0.58759 | G128: 0.41637 | H128: 0.58234 | I128: 0.78257 | J128: 0.62615 | K128: 0.47524 | L128: 0.61566 | M128: 0.791 | N128: 0.58759 | O128: 0.41637 | P128: 0.58234 | Q128: 0.78257 | R128: 23.083 | S128: 16.739 | T128: 22.352 | U128: 30.527 | V128: 0.58759 | W128: 0.41637 | X128: 0.58234 | Y128: 0.78257 | Z128: 0.65 | AA128: 0.65 | AB128: 0.65 | AC128: 0.65
A129: 9.91667 | B129: 0.76766 | C129: 0.62169 | D129: 0.75423 | E129: 0.92598 | F129: 0.83369 | G129: 0.65964 | H129: 0.82668 | I129: 1.0108 | J129: 0.76766 | K129: 0.62169 | L129: 0.75423 | M129: 0.92598 | N129: 0.83369 | O129: 0.65964 | P129: 0.82668 | Q129: 1.0108 | R129: 23.218 | S129: 16.942 | T129: 22.441 | U129: 30.753 | V129: 0.83369 | W129: 0.65964 | X129: 0.82668 | Y129: 1.0108 | Z129: 0.65 | AA129: 0.65 | AB129: 0.65 | AC129: 0.65
A130: 10 | B130: 29.886 | C130: 21.888 | D130: 29.241 | E130: 38.566 | F130: 0.67833 | G130: 0.54479 | H130: 0.67093 | I130: 0.82157 | J130: 0.62853 | K130: 0.51008 | L130: 0.62391 | M130: 0.75562 | N130: 0.67833 | O130: 0.54479 | P130: 0.67093 | Q130: 0.82157 | R130: 0.62853 | S130: 0.51008 | T130: 0.62391 | U130: 0.75562 | V130: 0.67833 | W130: 0.54479 | X130: 0.67093 | Y130: 0.82157 | Z130: 0.65 | AA130: 0.65 | AB130: 0.65 | AC130: 0.65
A131: 10.0833 | B131: 29.715 | C131: 21.708 | D131: 29.043 | E131: 38.426 | F131: 0.5572 | G131: 0.4475 | H131: 0.55112 | I131: 0.67486 | J131: 0.51629 | K131: 0.419 | L131: 0.51249 | M131: 0.62068 | N131: 0.5572 | O131: 0.4475 | P131: 0.55112 | Q131: 0.67486 | R131: 0.51629 | S131: 0.419 | T131: 0.51249 | U131: 0.62068 | V131: 0.5572 | W131: 0.4475 | X131: 0.55112 | Y131: 0.67486 | Z131: 0.65 | AA131: 0.65 | AB131: 0.65 | AC131: 0.65
A132: 10.1667 | B132: 29.434 | C132: 21.432 | D132: 28.792 | E132: 38.104 | F132: 0.21558 | G132: 0.094688 | H132: 0.20895 | I132: 0.33703 | J132: 0.2774 | K132: 0.18939 | L132: 0.27072 | M132: 0.3741 | N132: 0.21558 | O132: 0.094688 | P132: 0.20895 | Q132: 0.33703 | R132: 0.2774 | S132: 0.18939 | T132: 0.27072 | U132: 0.3741 | V132: 0.21558 | W132: 0.094688 | X132: 0.20895 | Y132: 0.33703 | Z132: 0.65 | AA132: 0.65 | AB132: 0.65 | AC132: 0.65
A133: 10.25 | B133: 29.191 | C133: 21.238 | D133: 28.449 | E133: 37.968 | F133: 0.025857 | G133: 0.0083333 | H133: 0.0083333 | I133: 0.071953 | J133: 0.072028 | K133: 0.0083333 | L133: 0.020372 | M133: 0.21337 | N133: 0.025857 | O133: 0.0083333 | P133: 0.0083333 | Q133: 0.071953 | R133: 0.072028 | S133: 0.0083333 | T133: 0.020372 | U133: 0.21337 | V133: 0.025857 | W133: 0.0083333 | X133: 0.0083333 | Y133: 0.071953 | Z133: 0.65 | AA133: 0.65 | AB133: 0.65 | AC133: 0.65
A134: 10.3333 | B134: 19.667 | C134: 0.3881 | D134: 24.715 | E134: 36.494 | F134: 0.2644 | G134: 0.0083333 | H134: 0.20461 | I134: 0.66355 | J134: 31.473 | K134: 0.26818 | L134: 0.67565 | M134: 101.5 | N134: 0.2644 | O134: 0.0083333 | P134: 0.20461 | Q134: 0.66355 | R134: 0.51371 | S134: 0.22224 | T134: 0.49435 | U134: 0.82337 | V134: 0.2644 | W134: 0.0083333 | X134: 0.20461 | Y134: 0.66355 | Z134: 0.65 | AA134: 0.65 | AB134: 0.65 | AC134: 0.65
A135: 10.4167 | B135: 1.1427 | C135: 0.7669 | D135: 1.1172 | E135: 1.5626 | F135: 0.86546 | G135: 0.33851 | H135: 0.83665 | I135: 1.3845 | J135: 76.084 | K135: 1.2241 | L135: 84.604 | M135: 115.31 | N135: 0.86546 | O135: 0.33851 | P135: 0.83665 | Q135: 1.3845 | R135: 5.1064 | S135: 0.77768 | T135: 1.1901 | U135: 22.397 | V135: 0.86546 | W135: 0.33851 | X135: 0.83665 | Y135: 1.3845 | Z135: 0.65 | AA135: 0.65 | AB135: 0.65 | AC135: 0.65
A136: 10.5 | B136: 0.69239 | C136: 0.33585 | D136: 0.67129 | E136: 1.083 | F136: 0.37828 | G136: 0.0083333 | H136: 0.32257 | I136: 0.8775 | J136: 25.15 | K136: 0.37839 | L136: 0.82136 | M136: 92.998 | N136: 0.37828 | O136: 0.0083333 | P136: 0.32257 | Q136: 0.8775 | R136: 17.556 | S136: 0.58427 | T136: 21.001 | U136: 29.837 | V136: 0.37828 | W136: 0.0083333 | X136: 0.32257 | Y136: 0.8775 | Z136: 0.65 | AA136: 0.65 | AB136: 0.65 | AC136: 0.65
A137: 10.5833 | B137: 0.59606 | C137: 0.24652 | D137: 0.57018 | E137: 0.96581 | F137: 0.29962 | G137: 0.0083333 | H137: 0.22077 | I137: 0.7701 | J137: 0.59606 | K137: 0.24652 | L137: 0.57018 | M137: 0.96581 | N137: 0.29962 | O137: 0.0083333 | P137: 0.22077 | Q137: 0.7701 | R137: 23.701 | S137: 17.3 | T137: 23.331 | U137: 30.702 | V137: 0.29962 | W137: 0.0083333 | X137: 0.22077 | Y137: 0.7701 | Z137: 0.65 | AA137: 0.65 | AB137: 0.65 | AC137: 0.65
A138: 10.6667 | B138: 1.1475 | C138: 0.78571 | D138: 1.1206 | E138: 1.5417 | F138: 0.89782 | G138: 0.40662 | H138: 0.86996 | I138: 1.3969 | J138: 1.1475 | K138: 0.78571 | L138: 1.1206 | M138: 1.5417 | N138: 0.89782 | O138: 0.40662 | P138: 0.86996 | Q138: 1.3969 | R138: 24.237 | S138: 17.878 | T138: 23.954 | U138: 31.301 | V138: 0.89782 | W138: 0.40662 | X138: 0.86996 | Y138: 1.3969 | Z138: 0.65 | AA138: 0.65 | AB138: 0.65 | AC138: 0.65
A139: 10.75 | B139: 0.80829 | C139: 0.5547 | D139: 0.78956 | E139: 1.0826 | F139: 0.63591 | G139: 0.29233 | H139: 0.6166 | I139: 0.9862 | J139: 0.80829 | K139: 0.5547 | L139: 0.78956 | M139: 1.0826 | N139: 0.63591 | O139: 0.29233 | P139: 0.6166 | Q139: 0.9862 | R139: 23.94 | S139: 17.57 | T139: 23.581 | U139: 31.015 | V139: 0.63591 | W139: 0.29233 | X139: 0.6166 | Y139: 0.9862 | Z139: 0.65 | AA139: 0.65 | AB139: 0.65 | AC139: 0.65
A140: 10.8333 | B140: 0.62257 | C140: 0.47406 | D140: 0.6132 | E140: 0.78106 | F140: 0.57759 | G140: 0.39796 | H140: 0.56351 | I140: 0.77387 | J140: 0.62257 | K140: 0.47406 | L140: 0.6132 | M140: 0.78106 | N140: 0.57759 | O140: 0.39796 | P140: 0.56351 | Q140: 0.77387 | R140: 23.773 | S140: 17.372 | T140: 23.369 | U140: 30.741 | V140: 0.57759 | W140: 0.39796 | X140: 0.56351 | Y140: 0.77387 | Z140: 0.65 | AA140: 0.65 | AB140: 0.65 | AC140: 0.65
A141: 10.9167 | B141: 0.76322 | C141: 0.61939 | D141: 0.7576 | E141: 0.91753 | F141: 0.82369 | G141: 0.66153 | H141: 0.81471 | I141: 0.99762 | J141: 0.76322 | K141: 0.61939 | L141: 0.7576 | M141: 0.91753 | N141: 0.82369 | O141: 0.66153 | P141: 0.81471 | Q141: 0.99762 | R141: 23.924 | S141: 17.51 | T141: 23.477 | U141: 30.816 | V141: 0.82369 | W141: 0.66153 | X141: 0.81471 | Y141: 0.99762 | Z141: 0.65 | AA141: 0.65 | AB141: 0.65 | AC141: 0.65
A142: 11 | B142: 29.325 | C142: 21.142 | D142: 28.172 | E142: 38.875 | F142: 0.68384 | G142: 0.54636 | H142: 0.67573 | I142: 0.82805 | J142: 0.63129 | K142: 0.50811 | L142: 0.62462 | M142: 0.772 | N142: 0.68384 | O142: 0.54636 | P142: 0.67573 | Q142: 0.82805 | R142: 0.63129 | S142: 0.50811 | T142: 0.62462 | U142: 0.772 | V142: 0.68384 | W142: 0.54636 | X142: 0.67573 | Y142: 0.82805 | Z142: 0.65 | AA142: 0.65 | AB142: 0.65 | AC142: 0.65
A143: 11.0833 | B143: 29.179 | C143: 21.014 | D143: 28.046 | E143: 38.737 | F143: 0.56172 | G143: 0.4488 | H143: 0.55506 | I143: 0.68018 | J143: 0.51856 | K143: 0.41738 | L143: 0.51308 | M143: 0.63414 | N143: 0.56172 | O143: 0.4488 | P143: 0.55506 | Q143: 0.68018 | R143: 0.51856 | S143: 0.41738 | T143: 0.51308 | U143: 0.63414 | V143: 0.56172 | W143: 0.4488 | X143: 0.55506 | Y143: 0.68018 | Z143: 0.65 | AA143: 0.65 | AB143: 0.65 | AC143: 0.65
A144: 11.1667 | B144: 28.915 | C144: 20.73 | D144: 27.827 | E144: 38.503 | F144: 0.21244 | G144: 0.10104 | H144: 0.20787 | I144: 0.33015 | J144: 0.2763 | K144: 0.19083 | L144: 0.27585 | M144: 0.36543 | N144: 0.21244 | O144: 0.10104 | P144: 0.20787 | Q144: 0.33015 | R144: 0.2763 | S144: 0.19083 | T144: 0.27585 | U144: 0.36543 | V144: 0.21244 | W144: 0.10104 | X144: 0.20787 | Y144: 0.33015 | Z144: 0.65 | AA144: 0.65 | AB144: 0.65 | AC144: 0.65
A145: 11.25 | B145: 28.679 | C145: 20.562 | D145: 27.619 | E145: 38.285 | F145: 0.02197 | G145: 0.0083333 | H145: 0.0083333 | I145: 0.026105 | J145: 0.068995 | K145: 0.0083333 | L145: 0.019901 | M145: 0.199 | N145: 0.02197 | O145: 0.0083333 | P145: 0.0083333 | Q145: 0.026105 | R145: 0.068995 | S145: 0.0083333 | T145: 0.019901 | U145: 0.199 | V145: 0.02197 | W145: 0.0083333 | X145: 0.0083333 | Y145: 0.026105 | Z145: 0.65 | AA145: 0.65 | AB145: 0.65 | AC145: 0.65
A146: 11.3333 | B146: 19.917 | C146: 0.41665 | D146: 24.602 | E146: 36.601 | F146: 0.24547 | G146: 0.0083333 | H146: 0.18605 | I146: 0.58219 | J146: 28.638 | K146: 0.25148 | L146: 0.63748 | M146: 98.093 | N146: 0.24547 | O146: 0.0083333 | P146: 0.18605 | Q146: 0.58219 | R146: 0.50574 | S146: 0.21035 | T146: 0.50803 | U146: 0.81249 | V146: 0.24547 | W146: 0.0083333 | X146: 0.18605 | Y146: 0.58219 | Z146: 0.65 | AA146: 0.65 | AB146: 0.65 | AC146: 0.65
A147: 11.4167 | B147: 1.1375 | C147: 0.76719 | D147: 1.1342 | E147: 1.5235 | F147: 0.85119 | G147: 0.37243 | H147: 0.83229 | I147: 1.3518 | J147: 76.451 | K147: 1.2466 | L147: 81.35 | M147: 115.97 | N147: 0.85119 | O147: 0.37243 | P147: 0.83229 | Q147: 1.3518 | R147: 4.3641 | S147: 0.79551 | T147: 1.1804 | U147: 19.279 | V147: 0.85119 | W147: 0.37243 | X147: 0.83229 | Y147: 1.3518 | Z147: 0.65 | AA147: 0.65 | AB147: 0.65 | AC147: 0.65
A148: 11.5 | B148: 0.68308 | C148: 0.32135 | D148: 0.68468 | E148: 1.062 | F148: 0.35556 | G148: 0.0083333 | H148: 0.29657 | I148: 0.79236 | J148: 31.328 | K148: 0.39729 | L148: 0.88251 | M148: 99.055 | N148: 0.35556 | O148: 0.0083333 | P148: 0.29657 | Q148: 0.79236 | R148: 15.7 | S148: 0.52459 | T148: 19.288 | U148: 29.387 | V148: 0.35556 | W148: 0.0083333 | X148: 0.29657 | Y148: 0.79236 | Z148: 0.65 | AA148: 0.65 | AB148: 0.65 | AC148: 0.65
A149: 11.5833 | B149: 0.58632 | C149: 0.23332 | D149: 0.59147 | E149: 0.95424 | F149: 0.27688 | G149: 0.0083333 | H149: 0.19885 | I149: 0.6757 | J149: 0.58632 | K149: 0.23332 | L149: 0.59147 | M149: 0.95424 | N149: 0.27688 | O149: 0.0083333 | P149: 0.19885 | Q149: 0.6757 | R149: 23.697 | S149: 17.177 | T149: 22.806 | U149: 31.451 | V149: 0.27688 | W149: 0.0083333 | X149: 0.19885 | Y149: 0.6757 | Z149: 0.65 | AA149: 0.65 | AB149: 0.65 | AC149: 0.65
A150: 11.6667 | B150: 1.1431 | C150: 0.79089 | D150: 1.1419 | E150: 1.5073 | F150: 0.88508 | G150: 0.43095 | H150: 0.86644 | I150: 1.3678 | J150: 1.1431 | K150: 0.79089 | L150: 1.1419 | M150: 1.5073 | N150: 0.88508 | O150: 0.43095 | P150: 0.86644 | Q150: 1.3678 | R150: 24.247 | S150: 17.717 | T150: 23.325 | U150: 31.943 | V150: 0.88508 | W150: 0.43095 | X150: 0.86644 | Y150: 1.3678 | Z150: 0.65 | AA150: 0.65 | AB150: 0.65 | AC150: 0.65
A151: 11.75 | B151: 0.8053 | C151: 0.55793 | D151: 0.80462 | E151: 1.0597 | F151: 0.62715 | G151: 0.31154 | H151: 0.61394 | I151: 0.96432 | J151: 0.8053 | K151: 0.55793 | L151: 0.80462 | M151: 1.0597 | N151: 0.62715 | O151: 0.31154 | P151: 0.61394 | Q151: 0.96432 | R151: 23.955 | S151: 17.427 | T151: 23.031 | U151: 31.652 | V151: 0.62715 | W151: 0.31154 | X151: 0.61394 | Y151: 0.96432 | Z151: 0.65 | AA151: 0.65 | AB151: 0.65 | AC151: 0.65
A152: 11.8333 | B152: 0.6227 | C152: 0.47871 | D152: 0.61923 | E152: 0.7771 | F152: 0.57691 | G152: 0.38872 | H152: 0.56081 | I152: 0.76141 | J152: 0.6227 | K152: 0.47871 | L152: 0.61923 | M152: 0.7771 | N152: 0.57691 | O152: 0.38872 | P152: 0.56081 | Q152: 0.76141 | R152: 23.791 | S152: 17.233 | T152: 22.848 | U152: 31.523 | V152: 0.57691 | W152: 0.38872 | X152: 0.56081 | Y152: 0.76141 | Z152: 0.65 | AA152: 0.65 | AB152: 0.65 | AC152: 0.65
A153: 11.9167 | B153: 0.76656 | C153: 0.61699 | D153: 0.75846 | E153: 0.93742 | F153: 0.83038 | G153: 0.66344 | H153: 0.82052 | I153: 1.0055 | J153: 0.76656 | K153: 0.61699 | L153: 0.75846 | M153: 0.93742 | N153: 0.83038 | O153: 0.66344 | P153: 0.82052 | Q153: 1.0055 | R153: 23.943 | S153: 17.353 | T153: 22.976 | U153: 31.676 | V153: 0.83038 | W153: 0.66344 | X153: 0.82052 | Y153: 1.0055 | Z153: 0.65 | AA153: 0.65 | AB153: 0.65 | AC153: 0.65
A154: 12 | B154: 28.994 | C154: 21.076 | D154: 28.364 | E154: 37.622 | F154: 0.69282 | G154: 0.55268 | H154: 0.69362 | I154: 0.83091 | J154: 0.63772 | K154: 0.51653 | L154: 0.63214 | M154: 0.76688 | N154: 0.69282 | O154: 0.55268 | P154: 0.69362 | Q154: 0.83091 | R154: 0.63772 | S154: 0.51653 | T154: 0.63214 | U154: 0.76688 | V154: 0.69282 | W154: 0.55268 | X154: 0.69362 | Y154: 0.83091 | Z154: 0.65 | AA154: 0.65 | AB154: 0.65 | AC154: 0.65
A155: 12.0833 | B155: 28.838 | C155: 20.963 | D155: 28.183 | E155: 37.449 | F155: 0.5691 | G155: 0.45399 | H155: 0.56976 | I155: 0.68254 | J155: 0.52384 | K155: 0.42429 | L155: 0.51926 | M155: 0.62994 | N155: 0.5691 | O155: 0.45399 | P155: 0.56976 | Q155: 0.68254 | R155: 0.52384 | S155: 0.42429 | T155: 0.51926 | U155: 0.62994 | V155: 0.5691 | W155: 0.45399 | X155: 0.56976 | Y155: 0.68254 | Z155: 0.65 | AA155: 0.65 | AB155: 0.65 | AC155: 0.65
A156: 12.1667 | B156: 28.561 | C156: 20.709 | D156: 27.88 | E156: 37.225 | F156: 0.21991 | G156: 0.10199 | H156: 0.21126 | I156: 0.34388 | J156: 0.27989 | K156: 0.18425 | L156: 0.27605 | M156: 0.38393 | N156: 0.21991 | O156: 0.10199 | P156: 0.21126 | Q156: 0.34388 | R156: 0.27989 | S156: 0.18425 | T156: 0.27605 | U156: 0.38393 | V156: 0.21991 | W156: 0.10199 | X156: 0.21126 | Y156: 0.34388 | Z156: 0.65 | AA156: 0.65 | AB156: 0.65 | AC156: 0.65
A157: 12.25 | B157: 28.321 | C157: 20.498 | D157: 27.673 | E157: 37.039 | F157: 0.025576 | G157: 0.0083333 | H157: 0.0083333 | I157: 0.03849 | J157: 0.070571 | K157: 0.0083333 | L157: 0.020092 | M157: 0.19951 | N157: 0.025576 | O157: 0.0083333 | P157: 0.0083333 | Q157: 0.03849 | R157: 0.070571 | S157: 0.0083333 | T157: 0.020092 | U157: 0.19951 | V157: 0.025576 | W157: 0.0083333 | X157: 0.0083333 | Y157: 0.03849 | Z157: 0.65 | AA157: 0.65 | AB157: 0.65 | AC157: 0.65
A158: 12.3333 | B158: 20.186 | C158: 0.39021 | D158: 24.96 | E158: 34.983 | F158: 0.26428 | G158: 0.0083333 | H158: 0.21355 | I158: 0.63186 | J158: 26.366 | K158: 0.256 | L158: 0.63312 | M158: 94.171 | N158: 0.26428 | O158: 0.0083333 | P158: 0.21355 | Q158: 0.63186 | R158: 0.51351 | S158: 0.20095 | T158: 0.50191 | U158: 0.82726 | V158: 0.26428 | W158: 0.0083333 | X158: 0.21355 | Y158: 0.63186 | Z158: 0.65 | AA158: 0.65 | AB158: 0.65 | AC158: 0.65
A159: 12.4167 | B159: 1.1525 | C159: 0.74451 | D159: 1.1343 | E159: 1.5952 | F159: 0.88241 | G159: 0.37858 | H159: 0.84969 | I159: 1.4176 | J159: 76.181 | K159: 1.7403 | L159: 80.959 | M159: 110.13 | N159: 0.88241 | O159: 0.37858 | P159: 0.84969 | Q159: 1.4176 | R159: 3.9182 | S159: 0.76796 | T159: 1.183 | U159: 19.343 | V159: 0.88241 | W159: 0.37858 | X159: 0.84969 | Y159: 1.4176 | Z159: 0.65 | AA159: 0.65 | AB159: 0.65 | AC159: 0.65
A160: 12.5 | B160: 0.6935 | C160: 0.30757 | D160: 0.67523 | E160: 1.0891 | F160: 0.37931 | G160: 0.0083333 | H160: 0.32884 | I160: 0.85634 | J160: 33.385 | K160: 0.43818 | L160: 0.99226 | M160: 95.165 | N160: 0.37931 | O160: 0.0083333 | P160: 0.32884 | Q160: 0.85634 | R160: 14.987 | S160: 0.44597 | T160: 19.099 | U160: 29.25 | V160: 0.37931 | W160: 0.0083333 | X160: 0.32884 | Y160: 0.85634 | Z160: 0.65 | AA160: 0.65 | AB160: 0.65 | AC160: 0.65
A161: 12.5833 | B161: 0.59539 | C161: 0.22124 | D161: 0.58171 | E161: 0.969 | F161: 0.29926 | G161: 0.0083333 | H161: 0.23277 | I161: 0.73034 | J161: 0.59539 | K161: 0.22124 | L161: 0.58171 | M161: 0.969 | N161: 0.29926 | O161: 0.0083333 | P161: 0.23277 | Q161: 0.73034 | R161: 23.805 | S161: 17.295 | T161: 23.186 | U161: 30.838 | V161: 0.29926 | W161: 0.0083333 | X161: 0.23277 | Y161: 0.73034 | Z161: 0.65 | AA161: 0.65 | AB161: 0.65 | AC161: 0.65
A162: 12.6667 | B162: 1.1579 | C162: 0.76619 | D162: 1.1414 | E162: 1.5846 | F162: 0.91613 | G162: 0.43442 | H162: 0.88298 | I162: 1.42 | J162: 1.1579 | K162: 0.76619 | L162: 1.1414 | M162: 1.5846 | N162: 0.91613 | O162: 0.43442 | P162: 0.88298 | Q162: 1.42 | R162: 24.367 | S162: 17.834 | T162: 23.797 | U162: 31.41 | V162: 0.91613 | W162: 0.43442 | X162: 0.88298 | Y162: 1.42 | Z162: 0.65 | AA162: 0.65 | AB162: 0.65 | AC162: 0.65
A163: 12.75 | B163: 0.81571 | C163: 0.54191 | D163: 0.80525 | E163: 1.1141 | F163: 0.64892 | G163: 0.31396 | H163: 0.62665 | I163: 0.99918 | J163: 0.81571 | K163: 0.54191 | L163: 0.80525 | M163: 1.1141 | N163: 0.64892 | O163: 0.31396 | P163: 0.62665 | Q163: 0.99918 | R163: 24.06 | S163: 17.549 | T163: 23.494 | U163: 31.134 | V163: 0.64892 | W163: 0.31396 | X163: 0.62665 | Y163: 0.99918 | Z163: 0.65 | AA163: 0.65 | AB163: 0.65 | AC163: 0.65
A164: 12.8333 | B164: 0.62992 | C164: 0.4752 | D164: 0.6177 | E164: 0.80648 | F164: 0.58994 | G164: 0.41871 | H164: 0.57811 | I164: 0.78645 | J164: 0.62992 | K164: 0.4752 | L164: 0.6177 | M164: 0.80648 | N164: 0.58994 | O164: 0.41871 | P164: 0.57811 | Q164: 0.78645 | R164: 23.893 | S164: 17.394 | T164: 23.43 | U164: 30.979 | V164: 0.58994 | W164: 0.41871 | X164: 0.57811 | Y164: 0.78645 | Z164: 0.65 | AA164: 0.65 | AB164: 0.65 | AC164: 0.65
A165: 12.9167 | B165: 0.77437 | C165: 0.62721 | D165: 0.7676 | E165: 0.93121 | F165: 0.84128 | G165: 0.67111 | H165: 0.84226 | I165: 1.009 | J165: 0.77437 | K165: 0.62721 | L165: 0.7676 | M165: 0.93121 | N165: 0.84128 | O165: 0.67111 | P165: 0.84226 | Q165: 1.009 | R165: 24.049 | S165: 17.567 | T165: 23.59 | U165: 31.112 | V165: 0.84128 | W165: 0.67111 | X165: 0.84226 | Y165: 1.009 | Z165: 0.65 | AA165: 0.65 | AB165: 0.65 | AC165: 0.65
A166: 13 | B166: 29.083 | C166: 20.5 | D166: 28.324 | E166: 38.707 | F166: 0.691 | G166: 0.55121 | H166: 0.68402 | I166: 0.83037 | J166: 0.63844 | K166: 0.51365 | L166: 0.62959 | M166: 0.77187 | N166: 0.691 | O166: 0.55121 | P166: 0.68402 | Q166: 0.83037 | R166: 0.63844 | S166: 0.51365 | T166: 0.62959 | U166: 0.77187 | V166: 0.691 | W166: 0.55121 | X166: 0.68402 | Y166: 0.83037 | Z166: 0.65 | AA166: 0.65 | AB166: 0.65 | AC166: 0.65
A167: 13.0833 | B167: 28.96 | C167: 20.378 | D167: 28.198 | E167: 38.498 | F167: 0.56761 | G167: 0.45278 | H167: 0.56187 | I167: 0.68209 | J167: 0.52443 | K167: 0.42193 | L167: 0.51716 | M167: 0.63404 | N167: 0.56761 | O167: 0.45278 | P167: 0.56187 | Q167: 0.68209 | R167: 0.52443 | S167: 0.42193 | T167: 0.51716 | U167: 0.63404 | V167: 0.56761 | W167: 0.45278 | X167: 0.56187 | Y167: 0.68209 | Z167: 0.65 | AA167: 0.65 | AB167: 0.65 | AC167: 0.65
A168: 13.1667 | B168: 28.709 | C168: 20.106 | D168: 27.963 | E168: 38.277 | F168: 0.21445 | G168: 0.092042 | H168: 0.2175 | I168: 0.33461 | J168: 0.28267 | K168: 0.1856 | L168: 0.28 | M168: 0.38485 | N168: 0.21445 | O168: 0.092042 | P168: 0.2175 | Q168: 0.33461 | R168: 0.28267 | S168: 0.1856 | T168: 0.28 | U168: 0.38485 | V168: 0.21445 | W168: 0.092042 | X168: 0.2175 | Y168: 0.33461 | Z168: 0.65 | AA168: 0.65 | AB168: 0.65 | AC168: 0.65
A169: 13.25 | B169: 28.487 | C169: 19.884 | D169: 27.717 | E169: 38.013 | F169: 0.02188 | G169: 0.0083333 | H169: 0.0083333 | I169: 0.054222 | J169: 0.077041 | K169: 0.0083333 | L169: 0.031144 | M169: 0.21625 | N169: 0.02188 | O169: 0.0083333 | P169: 0.0083333 | Q169: 0.054222 | R169: 0.077041 | S169: 0.0083333 | T169: 0.031144 | U169: 0.21625 | V169: 0.02188 | W169: 0.0083333 | X169: 0.0083333 | Y169: 0.054222 | Z169: 0.65 | AA169: 0.65 | AB169: 0.65 | AC169: 0.65
A170: 13.3333 | B170: 20.944 | C170: 0.42643 | D170: 24.558 | E170: 37.175 | F170: 0.25163 | G170: 0.0083333 | H170: 0.18441 | I170: 0.59866 | J170: 24.277 | K170: 0.24558 | L170: 0.6363 | M170: 94.347 | N170: 0.25163 | O170: 0.0083333 | P170: 0.18441 | Q170: 0.59866 | R170: 0.52425 | S170: 0.20013 | T170: 0.51468 | U170: 0.85772 | V170: 0.25163 | W170: 0.0083333 | X170: 0.18441 | Y170: 0.59866 | Z170: 0.65 | AA170: 0.65 | AB170: 0.65 | AC170: 0.65
A171: 13.4167 | B171: 1.1647 | C171: 0.75066 | D171: 1.1506 | E171: 1.6053 | F171: 0.85896 | G171: 0.33404 | H171: 0.87146 | I171: 1.3748 | J171: 76.476 | K171: 1.7572 | L171: 79.19 | M171: 113.53 | N171: 0.85896 | O171: 0.33404 | P171: 0.87146 | Q171: 1.3748 | R171: 3.7453 | S171: 0.75718 | T171: 1.1893 | U171: 18.835 | V171: 0.85896 | W171: 0.33404 | X171: 0.87146 | Y171: 1.3748 | Z171: 0.65 | AA171: 0.65 | AB171: 0.65 | AC171: 0.65
A172: 13.5 | B172: 0.70683 | C172: 0.30184 | D172: 0.69439 | E172: 1.1242 | F172: 0.36207 | G172: 0.0083333 | H172: 0.30144 | I172: 0.80784 | J172: 36.53 | K172: 0.39353 | L172: 1.0709 | M172: 100.93 | N172: 0.36207 | O172: 0.0083333 | P172: 0.30144 | Q172: 0.80784 | R172: 14.389 | S172: 0.47428 | T172: 17.98 | U172: 29.558 | V172: 0.36207 | W172: 0.0083333 | X172: 0.30144 | Y172: 0.80784 | Z172: 0.65 | AA172: 0.65 | AB172: 0.65 | AC172: 0.65
A173: 13.5833 | B173: 0.60824 | C173: 0.2202 | D173: 0.59691 | E173: 1.0057 | F173: 0.28438 | G173: 0.0083333 | H173: 0.19518 | I173: 0.69715 | J173: 0.60824 | K173: 0.2202 | L173: 0.59691 | M173: 1.0057 | N173: 0.28438 | O173: 0.0083333 | P173: 0.19518 | Q173: 0.69715 | R173: 24.375 | S173: 17.169 | T173: 23.637 | U173: 32.428 | V173: 0.28438 | W173: 0.0083333 | X173: 0.19518 | Y173: 0.69715 | Z173: 0.65 | AA173: 0.65 | AB173: 0.65 | AC173: 0.65
A174: 13.6667 | B174: 1.1692 | C174: 0.7712 | D174: 1.1589 | E174: 1.5868 | F174: 0.89368 | G174: 0.39755 | H174: 0.90373 | I174: 1.3864 | J174: 1.1692 | K174: 0.7712 | L174: 1.1589 | M174: 1.5868 | N174: 0.89368 | O174: 0.39755 | P174: 0.90373 | Q174: 1.3864 | R174: 24.934 | S174: 17.736 | T174: 24.199 | U174: 33.014 | V174: 0.89368 | W174: 0.39755 | X174: 0.90373 | Y174: 1.3864 | Z174: 0.65 | AA174: 0.65 | AB174: 0.65 | AC174: 0.65
A175: 13.75 | B175: 0.82358 | C175: 0.54565 | D175: 0.81644 | E175: 1.1165 | F175: 0.63326 | G175: 0.2873 | H175: 0.63762 | I175: 0.97735 | J175: 0.82358 | K175: 0.54565 | L175: 0.81644 | M175: 1.1165 | N175: 0.63326 | O175: 0.2873 | P175: 0.63762 | Q175: 0.97735 | R175: 24.629 | S175: 17.362 | T175: 23.948 | U175: 32.639 | V175: 0.63326 | W175: 0.2873 | X175: 0.63762 | Y175: 0.97735 | Z175: 0.65 | AA175: 0.65 | AB175: 0.65 | AC175: 0.65
A176: 13.8333 | B176: 0.6334 | C176: 0.47092 | D176: 0.62372 | E176: 0.81188 | F176: 0.58254 | G176: 0.39882 | H176: 0.57902 | I176: 0.76579 | J176: 0.6334 | K176: 0.47092 | L176: 0.62372 | M176: 0.81188 | N176: 0.58254 | O176: 0.39882 | P176: 0.57902 | Q176: 0.76579 | R176: 24.463 | S176: 17.267 | T176: 23.827 | U176: 32.487 | V176: 0.58254 | W176: 0.39882 | X176: 0.57902 | Y176: 0.76579 | Z176: 0.65 | AA176: 0.65 | AB176: 0.65 | AC176: 0.65
A177: 13.9167 | B177: 0.77524 | C177: 0.62372 | D177: 0.7645 | E177: 0.93727 | F177: 0.83907 | G177: 0.66932 | H177: 0.83059 | I177: 1.0083 | J177: 0.77524 | K177: 0.62372 | L177: 0.7645 | M177: 0.93727 | N177: 0.83907 | O177: 0.66932 | P177: 0.83059 | Q177: 1.0083 | R177: 24.623 | S177: 17.443 | T177: 23.966 | U177: 32.586 | V177: 0.83907 | W177: 0.66932 | X177: 0.83059 | Y177: 1.0083 | Z177: 0.65 | AA177: 0.65 | AB177: 0.65 | AC177: 0.65
A178: 14 | B178: 28.734 | C178: 20.528 | D178: 27.773 | E178: 38.059 | F178: 0.67985 | G178: 0.54582 | H178: 0.6698 | I178: 0.82705 | J178: 0.63222 | K178: 0.51003 | L178: 0.61957 | M178: 0.76751 | N178: 0.67985 | O178: 0.54582 | P178: 0.6698 | Q178: 0.82705 | R178: 0.63222 | S178: 0.51003 | T178: 0.61957 | U178: 0.76751 | V178: 0.67985 | W178: 0.54582 | X178: 0.6698 | Y178: 0.82705 | Z178: 0.65 | AA178: 0.65 | AB178: 0.65 | AC178: 0.65
A179: 14.0833 | B179: 28.589 | C179: 20.441 | D179: 27.648 | E179: 37.897 | F179: 0.55845 | G179: 0.44835 | H179: 0.55019 | I179: 0.67936 | J179: 0.51932 | K179: 0.41895 | L179: 0.50893 | M179: 0.63046 | N179: 0.55845 | O179: 0.44835 | P179: 0.55019 | Q179: 0.67936 | R179: 0.51932 | S179: 0.41895 | T179: 0.50893 | U179: 0.63046 | V179: 0.55845 | W179: 0.44835 | X179: 0.55019 | Y179: 0.67936 | Z179: 0.65 | AA179: 0.65 | AB179: 0.65 | AC179: 0.65
A180: 14.1667 | B180: 28.334 | C180: 20.219 | D180: 27.429 | E180: 37.667 | F180: 0.21672 | G180: 0.093925 | H180: 0.21168 | I180: 0.34876 | J180: 0.28125 | K180: 0.19184 | L180: 0.27564 | M180: 0.37865 | N180: 0.21672 | O180: 0.093925 | P180: 0.21168 | Q180: 0.34876 | R180: 0.28125 | S180: 0.19184 | T180: 0.27564 | U180: 0.37865 | V180: 0.21672 | W180: 0.093925 | X180: 0.21168 | Y180: 0.34876 | Z180: 0.65 | AA180: 0.65 | AB180: 0.65 | AC180: 0.65
A181: 14.25 | B181: 28.099 | C181: 19.988 | D181: 27.194 | E181: 37.463 | F181: 0.027415 | G181: 0.0083333 | H181: 0.0083333 | I181: 0.061442 | J181: 0.072675 | K181: 0.0083333 | L181: 0.020174 | M181: 0.21266 | N181: 0.027415 | O181: 0.0083333 | P181: 0.0083333 | Q181: 0.061442 | R181: 0.072675 | S181: 0.0083333 | T181: 0.020174 | U181: 0.21266 | V181: 0.027415 | W181: 0.0083333 | X181: 0.0083333 | Y181: 0.061442 | Z181: 0.65 | AA181: 0.65 | AB181: 0.65 | AC181: 0.65
A182: 14.3333 | B182: 22.314 | C182: 0.49364 | D182: 25.596 | E182: 36.93 | F182: 0.26777 | G182: 0.0083333 | H182: 0.20175 | I182: 0.66385 | J182: 18.473 | K182: 0.26387 | L182: 0.58408 | M182: 81.818 | N182: 0.26777 | O182: 0.0083333 | P182: 0.20175 | Q182: 0.66385 | R182: 0.52447 | S182: 0.24394 | T182: 0.51549 | U182: 0.83361 | V182: 0.26777 | W182: 0.0083333 | X182: 0.20175 | Y182: 0.66385 | Z182: 0.65 | AA182: 0.65 | AB182: 0.65 | AC182: 0.65
A183: 14.4167 | B183: 1.1592 | C183: 0.78499 | D183: 1.1368 | E183: 1.5804 | F183: 0.87009 | G183: 0.3448 | H183: 0.84528 | I183: 1.4434 | J183: 73.039 | K183: 1.6065 | L183: 76.649 | M183: 107.88 | N183: 0.87009 | O183: 0.3448 | P183: 0.84528 | Q183: 1.4434 | R183: 3.7088 | S183: 0.78558 | T183: 1.1715 | U183: 17.173 | V183: 0.87009 | W183: 0.3448 | X183: 0.84528 | Y183: 1.4434 | Z183: 0.65 | AA183: 0.65 | AB183: 0.65 | AC183: 0.65
A184: 14.5 | B184: 0.70654 | C184: 0.36013 | D184: 0.69337 | E184: 1.0844 | F184: 0.38228 | G184: 0.0083333 | H184: 0.31285 | I184: 0.88901 | J184: 39.167 | K184: 0.46221 | L184: 1.2577 | M184: 96.203 | N184: 0.38228 | O184: 0.0083333 | P184: 0.31285 | Q184: 0.88901 | R184: 13.018 | S184: 0.43995 | T184: 15.831 | U184: 29.621 | V184: 0.38228 | W184: 0.0083333 | X184: 0.31285 | Y184: 0.88901 | Z184: 0.65 | AA184: 0.65 | AB184: 0.65 | AC184: 0.65
A185: 14.5833 | B185: 0.60871 | C185: 0.2729 | D185: 0.59704 | E185: 0.97856 | F185: 0.30372 | G185: 0.0083333 | H185: 0.21708 | I185: 0.77075 | J185: 0.60871 | K185: 0.2729 | L185: 0.59704 | M185: 0.97856 | N185: 0.30372 | O185: 0.0083333 | P185: 0.21708 | Q185: 0.77075 | R185: 24.248 | S185: 17.421 | T185: 23.538 | U185: 32.105 | V185: 0.30372 | W185: 0.0083333 | X185: 0.21708 | Y185: 0.77075 | Z185: 0.65 | AA185: 0.65 | AB185: 0.65 | AC185: 0.65
A186: 14.6667 | B186: 1.1633 | C186: 0.79679 | D186: 1.1386 | E186: 1.5602 | F186: 0.90284 | G186: 0.39956 | H186: 0.88353 | I186: 1.441 | J186: 1.1633 | K186: 0.79679 | L186: 1.1386 | M186: 1.5602 | N186: 0.90284 | O186: 0.39956 | P186: 0.88353 | Q186: 1.441 | R186: 24.774 | S186: 17.982 | T186: 24.018 | U186: 32.604 | V186: 0.90284 | W186: 0.39956 | X186: 0.88353 | Y186: 1.441 | Z186: 0.65 | AA186: 0.65 | AB186: 0.65 | AC186: 0.65
A187: 14.75 | B187: 0.81931 | C187: 0.56266 | D187: 0.80127 | E187: 1.0967 | F187: 0.63946 | G187: 0.28756 | H187: 0.62615 | I187: 1.0142 | J187: 0.81931 | K187: 0.56266 | L187: 0.80127 | M187: 1.0967 | N187: 0.63946 | O187: 0.28756 | P187: 0.62615 | Q187: 1.0142 | R187: 24.439 | S187: 17.613 | T187: 23.683 | U187: 32.299 | V187: 0.63946 | W187: 0.28756 | X187: 0.62615 | Y187: 1.0142 | Z187: 0.65 | AA187: 0.65 | AB187: 0.65 | AC187: 0.65
A188: 14.8333 | B188: 0.62871 | C188: 0.47305 | D188: 0.61664 | E188: 0.80249 | F188: 0.57998 | G188: 0.39977 | H188: 0.56956 | I188: 0.76666 | J188: 0.62871 | K188: 0.47305 | L188: 0.61664 | M188: 0.80249 | N188: 0.57998 | O188: 0.39977 | P188: 0.56956 | Q188: 0.76666 | R188: 24.243 | S188: 17.425 | T188: 23.489 | U188: 32.064 | V188: 0.57998 | W188: 0.39977 | X188: 0.56956 | Y188: 0.76666 | Z188: 0.65 | AA188: 0.65 | AB188: 0.65 | AC188: 0.65
A189: 14.9167 | B189: 0.76769 | C189: 0.61932 | D189: 0.75234 | E189: 0.93198 | F189: 0.82553 | G189: 0.66278 | H189: 0.81332 | I189: 1.0043 | J189: 0.76769 | K189: 0.61932 | L189: 0.75234 | M189: 0.93198 | N189: 0.82553 | O189: 0.66278 | P189: 0.81332 | Q189: 1.0043 | R189: 24.371 | S189: 17.557 | T189: 23.608 | U189: 32.189 | V189: 0.82553 | W189: 0.66278 | X189: 0.81332 | Y189: 1.0043 | Z189: 0.65 | AA189: 0.65 | AB189: 0.65 | AC189: 0.65
A190: 15 | B190: 28.584 | C190: 20.436 | D190: 27.512 | E190: 38.33 | F190: 0.6785 | G190: 0.55057 | H190: 0.67069 | I190: 0.83885 | J190: 0.63064 | K190: 0.51635 | L190: 0.62625 | M190: 0.75207 | N190: 0.6785 | O190: 0.55057 | P190: 0.67069 | Q190: 0.83885 | R190: 0.63064 | S190: 0.51635 | T190: 0.62625 | U190: 0.75207 | V190: 0.6785 | W190: 0.55057 | X190: 0.67069 | Y190: 0.83885 | Z190: 0.65 | AA190: 0.65 | AB190: 0.65 | AC190: 0.65
A191: 15.0833 | B191: 28.404 | C191: 20.313 | D191: 27.364 | E191: 38.074 | F191: 0.55734 | G191: 0.45225 | H191: 0.55092 | I191: 0.68905 | J191: 0.51803 | K191: 0.42415 | L191: 0.51442 | M191: 0.61777 | N191: 0.55734 | O191: 0.45225 | P191: 0.55092 | Q191: 0.68905 | R191: 0.51803 | S191: 0.42415 | T191: 0.51442 | U191: 0.61777 | V191: 0.55734 | W191: 0.45225 | X191: 0.55092 | Y191: 0.68905 | Z191: 0.65 | AA191: 0.65 | AB191: 0.65 | AC191: 0.65
A192: 15.1667 | B192: 28.144 | C192: 20.099 | D192: 27.097 | E192: 37.889 | F192: 0.21347 | G192: 0.098406 | H192: 0.21537 | I192: 0.32446 | J192: 0.27835 | K192: 0.19291 | L192: 0.27603 | M192: 0.36069 | N192: 0.21347 | O192: 0.098406 | P192: 0.21537 | Q192: 0.32446 | R192: 0.27835 | S192: 0.19291 | T192: 0.27603 | U192: 0.36069 | V192: 0.21347 | W192: 0.098406 | X192: 0.21537 | Y192: 0.32446 | Z192: 0.65 | AA192: 0.65 | AB192: 0.65 | AC192: 0.65
A193: 15.25 | B193: 27.922 | C193: 19.862 | D193: 26.888 | E193: 37.696 | F193: 0.022513 | G193: 0.0083333 | H193: 0.0083333 | I193: 0.039378 | J193: 0.071951 | K193: 0.0083333 | L193: 0.022571 | M193: 0.20192 | N193: 0.022513 | O193: 0.0083333 | P193: 0.0083333 | Q193: 0.039378 | R193: 0.071951 | S193: 0.0083333 | T193: 0.022571 | U193: 0.20192 | V193: 0.022513 | W193: 0.0083333 | X193: 0.0083333 | Y193: 0.039378 | Z193: 0.65 | AA193: 0.65 | AB193: 0.65 | AC193: 0.65
A194: 15.3333 | B194: 21.21 | C194: 0.41851 | D194: 24.781 | E194: 36.953 | F194: 0.25364 | G194: 0.0083333 | H194: 0.20397 | I194: 0.58016 | J194: 19.948 | K194: 0.25577 | L194: 0.61833 | M194: 77.701 | N194: 0.25364 | O194: 0.0083333 | P194: 0.20397 | Q194: 0.58016 | R194: 0.51428 | S194: 0.22023 | T194: 0.51338 | U194: 0.80656 | V194: 0.25364 | W194: 0.0083333 | X194: 0.20397 | Y194: 0.58016 | Z194: 0.65 | AA194: 0.65 | AB194: 0.65 | AC194: 0.65
A195: 15.4167 | B195: 1.1466 | C195: 0.78052 | D195: 1.1341 | E195: 1.4994 | F195: 0.85626 | G195: 0.35938 | H195: 0.85926 | I195: 1.3295 | J195: 70.91 | K195: 46.381 | L195: 71.483 | M195: 102.39 | N195: 0.85626 | O195: 0.35938 | P195: 0.85926 | Q195: 1.3295 | R195: 2.9218 | S195: 0.78341 | T195: 1.1692 | U195: 1.7601 | V195: 0.85626 | W195: 0.35938 | X195: 0.85926 | Y195: 1.3295 | Z195: 0.65 | AA195: 0.65 | AB195: 0.65 | AC195: 0.65
A196: 15.5 | B196: 0.69375 | C196: 0.33594 | D196: 0.693 | E196: 1.0516 | F196: 0.36555 | G196: 0.0083333 | H196: 0.32574 | I196: 0.78459 | J196: 39.026 | K196: 0.4553 | L196: 46.192 | M196: 89.027 | N196: 0.36555 | O196: 0.0083333 | P196: 0.32574 | Q196: 0.78459 | R196: 12.22 | S196: 0.42832 | T196: 1.2549 | U196: 29.712 | V196: 0.36555 | W196: 0.0083333 | X196: 0.32574 | Y196: 0.78459 | Z196: 0.65 | AA196: 0.65 | AB196: 0.65 | AC196: 0.65
A197: 15.5833 | B197: 0.59643 | C197: 0.24375 | D197: 0.59396 | E197: 0.94647 | F197: 0.28656 | G197: 0.0083333 | H197: 0.22208 | I197: 0.66931 | J197: 0.59643 | K197: 0.24375 | L197: 0.59396 | M197: 0.94647 | N197: 0.28656 | O197: 0.0083333 | P197: 0.22208 | Q197: 0.66931 | R197: 24.139 | S197: 17.318 | T197: 23.313 | U197: 32.429 | V197: 0.28656 | W197: 0.0083333 | X197: 0.22208 | Y197: 0.66931 | Z197: 0.65 | AA197: 0.65 | AB197: 0.65 | AC197: 0.65
A198: 15.6667 | B198: 1.1514 | C198: 0.80195 | D198: 1.1405 | E198: 1.4907 | F198: 0.889 | G198: 0.42118 | H198: 0.89844 | I198: 1.3458 | J198: 1.1514 | K198: 0.80195 | L198: 1.1405 | M198: 1.4907 | N198: 0.889 | O198: 0.42118 | P198: 0.89844 | Q198: 1.3458 | R198: 24.673 | S198: 17.758 | T198: 23.802 | U198: 32.956 | V198: 0.889 | W198: 0.42118 | X198: 0.89844 | Y198: 1.3458 | Z198: 0.65 | AA198: 0.65 | AB198: 0.65 | AC198: 0.65
A199: 15.75 | B199: 0.81107 | C199: 0.56804 | D199: 0.80431 | E199: 1.0467 | F199: 0.62978 | G199: 0.30177 | H199: 0.63669 | I199: 0.94885 | J199: 0.81107 | K199: 0.56804 | L199: 0.80431 | M199: 1.0467 | N199: 0.62978 | O199: 0.30177 | P199: 0.63669 | Q199: 0.94885 | R199: 24.33 | S199: 17.413 | T199: 23.474 | U199: 32.572 | V199: 0.62978 | W199: 0.30177 | X199: 0.63669 | Y199: 0.94885 | Z199: 0.65 | AA199: 0.65 | AB199: 0.65 | AC199: 0.65
A200: 15.8333 | B200: 0.62468 | C200: 0.4876 | D200: 0.62425 | E200: 0.76722 | F200: 0.57523 | G200: 0.41009 | H200: 0.56749 | I200: 0.75501 | J200: 0.62468 | K200: 0.4876 | L200: 0.62425 | M200: 0.76722 | N200: 0.57523 | O200: 0.41009 | P200: 0.56749 | Q200: 0.75501 | R200: 24.137 | S200: 17.329 | T200: 23.254 | U200: 32.362 | V200: 0.57523 | W200: 0.41009 | X200: 0.56749 | Y200: 0.75501 | Z200: 0.65 | AA200: 0.65 | AB200: 0.65 | AC200: 0.65
... 2210 more rows
